Body,Body Name,Posted Fiscal Date,Amount,Transaction Number,Supplier Name,Directorate,Service,Activity,Cost Centre Name,Subjective Name
http://opendatacommunities.org/doc/london-borough-council/havering,London Borough of Havering,25/04/2019,214371.00,APR2019L84,London Borough of Redbridge,Adults,Adult Services,Prevention,PD Equipment,"PURCHASE - EQUIPMENT, FURNITURE AND MATERIALS"
http://opendatacommunities.org/doc/london-borough-council/havering,London Borough of Havering,25/04/2019,214371.50,APR2019L85,London Borough of Redbridge,Adults,Adult Services,Prevention,PD Equipment,"PURCHASE - EQUIPMENT, FURNITURE AND MATERIALS"
http://opendatacommunities.org/doc/london-borough-council/havering,London Borough of Havering,12/04/2019,2556.00,APR2019L125,Look Ahead Housing Care Support and Housing,Adults,Adult Services,Learning Disabilities,Learning Disability Support,HOME CARE - PRIVATE CONTRACTORS PAYMENT
http://opendatacommunities.org/doc/london-borough-council/havering,London Borough of Havering,26/04/2019,3333.33,APR2019L138,The Sycamore Trust,Adults,Adult Services,Strategy and Commissioning,Learning Disabilities Commissioning,PAYMENTS TO VOLUNTARY SECTOR
http://opendatacommunities.org/doc/london-borough-council/havering,London Borough of Havering,26/04/2019,3333.34,APR2019L139,The Sycamore Trust,Adults,Adult Services,Strategy and Commissioning,Learning Disabilities Commissioning,PAYMENTS TO VOLUNTARY SECTOR
http://opendatacommunities.org/doc/london-borough-council/havering,London Borough of Havering,04/04/2019,3333.33,APR2019L140,The Sycamore Trust,Adults,Adult Services,Strategy and Commissioning,Learning Disabilities Commissioning,PAYMENTS TO VOLUNTARY SECTOR
http://opendatacommunities.org/doc/london-borough-council/havering,London Borough of Havering,04/04/2019,3333.34,APR2019L141,The Sycamore Trust,Adults,Adult Services,Strategy and Commissioning,Learning Disabilities Commissioning,PAYMENTS TO VOLUNTARY SECTOR
http://opendatacommunities.org/doc/london-borough-council/havering,London Borough of Havering,24/04/2019,589.46,APR2019L153,British Gas Trading Ltd t/as British Gas Business,Adults,Adult Services,Mental Health - Non Section 75,156 Bevan Way,GAS
http://opendatacommunities.org/doc/london-borough-council/havering,London Borough of Havering,12/04/2019,2959.88,APR2019L209,Marula House Ltd,Adults,Adult Services,Mental Health - Non Section 75,Mental Health Support,HOME CARE - PRIVATE CONTRACTORS PAYMENT
http://opendatacommunities.org/doc/london-borough-council/havering,London Borough of Havering,12/04/2019,1568.00,APR2019L210,Marula House Ltd,Adults,Adult Services,Mental Health - Non Section 75,Mental Health Support,SUPPORTED OTHER ACCOMMODATION - PRIVATE CONTRACTORS PAYMENT
http://opendatacommunities.org/doc/london-borough-council/havering,London Borough of Havering,04/04/2019,28774.30,APR2019L211,London and Quadrant Housing Trust,Adults,Adult Services,Learning Disabilities,Learning Disability Support,RENTS PAYABLE
http://opendatacommunities.org/doc/london-borough-council/havering,London Borough of Havering,15/04/2019,487.12,APR2019L218,Headway East London,Adults,Adult Services,Adult Community Team,Support for Social Isolation - Other,DAYCARE - PRIVATE CONTRACTORS PAYMENT
http://opendatacommunities.org/doc/london-borough-council/havering,London Borough of Havering,24/04/2019,646.24,APR2019L219,Headway East London,Adults,Adult Services,Adult Community Team,Support for Social Isolation - Other,DAYCARE - PRIVATE CONTRACTORS PAYMENT
http://opendatacommunities.org/doc/london-borough-council/havering,London Borough of Havering,12/04/2019,8480.00,APR2019L222,CAS Learning Disabilities Ltd,Adults,Adult Services,Learning Disabilities,Learning Disability Support,RESIDENTIAL PLACEMENTS - PRIVATE CONTRACTORS PAYMENT
http://opendatacommunities.org/doc/london-borough-council/havering,London Borough of Havering,12/04/2019,6359.60,APR2019L255,Care By Us,Adults,Adult Services,Learning Disabilities,Learning Disability Support,HOME CARE - PRIVATE CONTRACTORS PAYMENT
http://opendatacommunities.org/doc/london-borough-council/havering,London Borough of Havering,12/04/2019,6610.20,APR2019L259,Signhealth,Adults,Adult Services,Learning Disabilities,Learning Disability Support,RESIDENTIAL PLACEMENTS - PRIVATE CONTRACTORS PAYMENT
http://opendatacommunities.org/doc/london-borough-council/havering,London Borough of Havering,12/04/2019,1747.20,APR2019L260,Signhealth,Adults,Adult Services,Learning Disabilities,Learning Disability Support,RESIDENTIAL PLACEMENTS - PRIVATE CONTRACTORS PAYMENT
http://opendatacommunities.org/doc/london-borough-council/havering,London Borough of Havering,12/04/2019,11520.00,APR2019L262,Independence Homes Ltd,Adults,Adult Services,Adult Community Team,Physical Support,LONG TERM SUPPORT - COMMUNITY: SUPPORTED LIVING
http://opendatacommunities.org/doc/london-borough-council/havering,London Borough of Havering,16/04/2019,2660.00,APR2019L266,**Redacted Personal Data**,Adults,Adult Services,Strategy and Commissioning,Learning Disabilities Commissioning,LEGAL FEES
http://opendatacommunities.org/doc/london-borough-council/havering,London Borough of Havering,26/04/2019,3093.58,APR2019L275,Carers of Barking & Dagenham,Adults,Adult Services,Strategy and Commissioning,Carers Commissioning,PAYMENTS TO VOLUNTARY SECTOR
http://opendatacommunities.org/doc/london-borough-council/havering,London Borough of Havering,26/04/2019,3093.58,APR2019L276,Carers of Barking & Dagenham,Adults,Adult Services,Strategy and Commissioning,Carers Commissioning,PAYMENTS TO VOLUNTARY SECTOR
http://opendatacommunities.org/doc/london-borough-council/havering,London Borough of Havering,26/04/2019,3093.58,APR2019L277,Carers of Barking & Dagenham,Adults,Adult Services,Strategy and Commissioning,Carers Commissioning,PAYMENTS TO VOLUNTARY SECTOR
http://opendatacommunities.org/doc/london-borough-council/havering,London Borough of Havering,26/04/2019,3093.58,APR2019L278,Carers of Barking & Dagenham,Adults,Adult Services,Strategy and Commissioning,Carers Commissioning,PAYMENTS TO VOLUNTARY SECTOR
http://opendatacommunities.org/doc/london-borough-council/havering,London Borough of Havering,26/04/2019,3143.58,APR2019L279,Carers of Barking & Dagenham,Adults,Adult Services,Strategy and Commissioning,Carers Commissioning,PAYMENTS TO VOLUNTARY SECTOR
http://opendatacommunities.org/doc/london-borough-council/havering,London Borough of Havering,01/04/2019,3093.58,APR2019L280,Carers of Barking & Dagenham,Adults,Adult Services,Strategy and Commissioning,Carers Commissioning,PAYMENTS TO VOLUNTARY SECTOR
http://opendatacommunities.org/doc/london-borough-council/havering,London Borough of Havering,01/04/2019,3093.58,APR2019L281,Carers of Barking & Dagenham,Adults,Adult Services,Strategy and Commissioning,Carers Commissioning,PAYMENTS TO VOLUNTARY SECTOR
http://opendatacommunities.org/doc/london-borough-council/havering,London Borough of Havering,01/04/2019,3093.58,APR2019L282,Carers of Barking & Dagenham,Adults,Adult Services,Strategy and Commissioning,Carers Commissioning,PAYMENTS TO VOLUNTARY SECTOR
http://opendatacommunities.org/doc/london-borough-council/havering,London Borough of Havering,01/04/2019,3093.58,APR2019L283,Carers of Barking & Dagenham,Adults,Adult Services,Strategy and Commissioning,Carers Commissioning,PAYMENTS TO VOLUNTARY SECTOR
http://opendatacommunities.org/doc/london-borough-council/havering,London Borough of Havering,01/04/2019,3143.58,APR2019L284,Carers of Barking & Dagenham,Adults,Adult Services,Strategy and Commissioning,Carers Commissioning,PAYMENTS TO VOLUNTARY SECTOR
http://opendatacommunities.org/doc/london-borough-council/havering,London Borough of Havering,12/04/2019,38168.64,APR2019L286,TLC Care Homes Ltd,Adults,Adult Services,Learning Disabilities,Learning Disability Support,HOME CARE - PRIVATE CONTRACTORS PAYMENT
http://opendatacommunities.org/doc/london-borough-council/havering,London Borough of Havering,17/04/2019,516.80,APR2019L290,The Learning Centre (TLC Romford) Ltd,Adults,Adult Services,Learning Disabilities,Learning Disability Support,DAYCARE - PRIVATE CONTRACTORS PAYMENT
http://opendatacommunities.org/doc/london-borough-council/havering,London Borough of Havering,01/04/2019,8400.00,APR2019L297,HAS Technology Ltd T/A CM2000,Adults,Adult Services,Health & Social Care Other,Asst Dir Adult Services,PRIVATE CONTRACTORS PAYMENT - OTHER
http://opendatacommunities.org/doc/london-borough-council/havering,London Borough of Havering,01/04/2019,8400.00,APR2019L298,HAS Technology Ltd T/A CM2000,Adults,Adult Services,Health & Social Care Other,Asst Dir Adult Services,PRIVATE CONTRACTORS PAYMENT - OTHER
http://opendatacommunities.org/doc/london-borough-council/havering,London Borough of Havering,04/04/2019,8400.00,APR2019L299,HAS Technology Ltd T/A CM2000,Adults,Adult Services,Health & Social Care Other,Asst Dir Adult Services,PRIVATE CONTRACTORS PAYMENT - OTHER
http://opendatacommunities.org/doc/london-borough-council/havering,London Borough of Havering,08/04/2019,630.00,APR2019L345,Action First Assessments Ltd,Adults,Adult Services,Adult Safeguarding,Adult Protection,PRIVATE CONTRACTORS PAYMENT - OTHER
http://opendatacommunities.org/doc/london-borough-council/havering,London Borough of Havering,08/04/2019,1925.00,APR2019L346,Action First Assessments Ltd,Adults,Adult Services,Adult Safeguarding,Adult Protection,PRIVATE CONTRACTORS PAYMENT - OTHER
http://opendatacommunities.org/doc/london-borough-council/havering,London Borough of Havering,08/04/2019,1575.00,APR2019L347,Action First Assessments Ltd,Adults,Adult Services,Adult Safeguarding,Adult Protection,PRIVATE CONTRACTORS PAYMENT - OTHER
http://opendatacommunities.org/doc/london-borough-council/havering,London Borough of Havering,08/04/2019,1260.00,APR2019L348,Action First Assessments Ltd,Adults,Adult Services,Adult Safeguarding,Adult Protection,PRIVATE CONTRACTORS PAYMENT - OTHER
http://opendatacommunities.org/doc/london-borough-council/havering,London Borough of Havering,08/04/2019,945.00,APR2019L349,Action First Assessments Ltd,Adults,Adult Services,Adult Safeguarding,Adult Protection,PRIVATE CONTRACTORS PAYMENT - OTHER
http://opendatacommunities.org/doc/london-borough-council/havering,London Borough of Havering,08/04/2019,1575.00,APR2019L350,Action First Assessments Ltd,Adults,Adult Services,Adult Safeguarding,Adult Protection,PRIVATE CONTRACTORS PAYMENT - OTHER
http://opendatacommunities.org/doc/london-borough-council/havering,London Borough of Havering,08/04/2019,2555.00,APR2019L351,Action First Assessments Ltd,Adults,Adult Services,Adult Safeguarding,Adult Protection,PRIVATE CONTRACTORS PAYMENT - OTHER
http://opendatacommunities.org/doc/london-borough-council/havering,London Borough of Havering,08/04/2019,630.00,APR2019L352,Action First Assessments Ltd,Adults,Adult Services,Adult Safeguarding,Adult Protection,PRIVATE CONTRACTORS PAYMENT - OTHER
http://opendatacommunities.org/doc/london-borough-council/havering,London Borough of Havering,08/04/2019,630.00,APR2019L353,Action First Assessments Ltd,Adults,Adult Services,Adult Safeguarding,Adult Protection,PRIVATE CONTRACTORS PAYMENT - OTHER
http://opendatacommunities.org/doc/london-borough-council/havering,London Borough of Havering,08/04/2019,630.00,APR2019L354,Action First Assessments Ltd,Adults,Adult Services,Adult Safeguarding,Adult Protection,PRIVATE CONTRACTORS PAYMENT - OTHER
http://opendatacommunities.org/doc/london-borough-council/havering,London Borough of Havering,08/04/2019,945.00,APR2019L355,Action First Assessments Ltd,Adults,Adult Services,Adult Safeguarding,Adult Protection,PRIVATE CONTRACTORS PAYMENT - OTHER
http://opendatacommunities.org/doc/london-borough-council/havering,London Borough of Havering,12/04/2019,5916.00,APR2019L358,Action On Hearing Loss,Adults,Adult Services,Learning Disabilities,Learning Disability Support,RESIDENTIAL PLACEMENTS - PRIVATE CONTRACTORS PAYMENT
http://opendatacommunities.org/doc/london-borough-council/havering,London Borough of Havering,12/04/2019,5144.00,APR2019L359,Action On Hearing Loss,Adults,Adult Services,Learning Disabilities,Sensory Support,RESIDENTIAL PLACEMENTS - PRIVATE CONTRACTORS PAYMENT
http://opendatacommunities.org/doc/london-borough-council/havering,London Borough of Havering,29/04/2019,11068.20,APR2019L384,Housing 21,Adults,Adult Services,Strategy and Commissioning,Adult Community Commissioning,RENTS PAYABLE
http://opendatacommunities.org/doc/london-borough-council/havering,London Borough of Havering,12/04/2019,565.00,APR2019L401,Bupa Care Homes - Hutton Village_a,Adults,Adult Services,Adult Community Team,Support with Memory & Cognition,NURSING HOMES - PRIVATE CONTRACTORS PAYMENT
http://opendatacommunities.org/doc/london-borough-council/havering,London Borough of Havering,12/04/2019,2045.96,APR2019L402,Bupa Care Homes - Hutton Village_a,Adults,Adult Services,Adult Community Team,Physical Support,NURSING HOMES - PRIVATE CONTRACTORS PAYMENT
http://opendatacommunities.org/doc/london-borough-council/havering,London Borough of Havering,12/04/2019,403.57,APR2019L403,Bupa Care Homes - Hutton Village_a,Adults,Adult Services,Adult Community Team,Support with Memory & Cognition,NURSING HOMES - PRIVATE CONTRACTORS PAYMENT
http://opendatacommunities.org/doc/london-borough-council/havering,London Borough of Havering,12/04/2019,1372.14,APR2019L404,Bupa Care Homes - Hutton Village_a,Adults,Adult Services,Adult Community Team,Support with Memory & Cognition,NURSING HOMES - PRIVATE CONTRACTORS PAYMENT
http://opendatacommunities.org/doc/london-borough-council/havering,London Borough of Havering,24/04/2019,454.02,APR2019L405,Morepower Ltd t/a Aqs Homecare_a,Adults,Adult Services,Adult Community Team,Physical Support,HOME CARE - PRIVATE CONTRACTORS PAYMENT
http://opendatacommunities.org/doc/london-borough-council/havering,London Borough of Havering,24/04/2019,430.62,APR2019L406,Morepower Ltd t/a Aqs Homecare_a,Adults,Adult Services,Adult Community Team,Physical Support,HOME CARE - PRIVATE CONTRACTORS PAYMENT
http://opendatacommunities.org/doc/london-borough-council/havering,London Borough of Havering,24/04/2019,535.48,APR2019L407,Morepower Ltd t/a Aqs Homecare_a,Adults,Adult Services,Adult Community Team,Physical Support,HOME CARE - PRIVATE CONTRACTORS PAYMENT
http://opendatacommunities.org/doc/london-borough-council/havering,London Borough of Havering,24/04/2019,1602.30,APR2019L408,Morepower Ltd t/a Aqs Homecare_a,Adults,Adult Services,Adult Community Team,Physical Support,HOME CARE - PRIVATE CONTRACTORS PAYMENT
http://opendatacommunities.org/doc/london-borough-council/havering,London Borough of Havering,24/04/2019,912.47,APR2019L409,Morepower Ltd t/a Aqs Homecare_a,Adults,Adult Services,Adult Community Team,Physical Support,HOME CARE - PRIVATE CONTRACTORS PAYMENT
http://opendatacommunities.org/doc/london-borough-council/havering,London Borough of Havering,24/04/2019,629.42,APR2019L410,Morepower Ltd t/a Aqs Homecare_a,Adults,Adult Services,Adult Community Team,Physical Support,HOME CARE - PRIVATE CONTRACTORS PAYMENT
http://opendatacommunities.org/doc/london-borough-council/havering,London Borough of Havering,24/04/2019,2231.75,APR2019L411,Morepower Ltd t/a Aqs Homecare_a,Adults,Adult Services,Adult Community Team,Physical Support,HOME CARE - PRIVATE CONTRACTORS PAYMENT
http://opendatacommunities.org/doc/london-borough-council/havering,London Borough of Havering,24/04/2019,954.79,APR2019L412,Morepower Ltd t/a Aqs Homecare_a,Adults,Adult Services,Adult Community Team,Physical Support,HOME CARE - PRIVATE CONTRACTORS PAYMENT
http://opendatacommunities.org/doc/london-borough-council/havering,London Borough of Havering,24/04/2019,1149.45,APR2019L413,Morepower Ltd t/a Aqs Homecare_a,Adults,Adult Services,Adult Community Team,Physical Support,HOME CARE - PRIVATE CONTRACTORS PAYMENT
http://opendatacommunities.org/doc/london-borough-council/havering,London Borough of Havering,24/04/2019,544.84,APR2019L414,Morepower Ltd t/a Aqs Homecare_a,Adults,Adult Services,Adult Community Team,Physical Support,HOME CARE - PRIVATE CONTRACTORS PAYMENT
http://opendatacommunities.org/doc/london-borough-council/havering,London Borough of Havering,24/04/2019,718.52,APR2019L415,Morepower Ltd t/a Aqs Homecare_a,Adults,Adult Services,Adult Community Team,Physical Support,HOME CARE - PRIVATE CONTRACTORS PAYMENT
http://opendatacommunities.org/doc/london-borough-council/havering,London Borough of Havering,24/04/2019,805.13,APR2019L416,Morepower Ltd t/a Aqs Homecare_a,Adults,Adult Services,Adult Community Team,Physical Support,HOME CARE - PRIVATE CONTRACTORS PAYMENT
http://opendatacommunities.org/doc/london-borough-council/havering,London Borough of Havering,24/04/2019,2971.72,APR2019L417,Morepower Ltd t/a Aqs Homecare_a,Adults,Adult Services,Adult Community Team,Physical Support,HOME CARE - PRIVATE CONTRACTORS PAYMENT
http://opendatacommunities.org/doc/london-borough-council/havering,London Borough of Havering,24/04/2019,2406.00,APR2019L418,Morepower Ltd t/a Aqs Homecare_a,Adults,Adult Services,Adult Community Team,Physical Support,HOME CARE - PRIVATE CONTRACTORS PAYMENT
http://opendatacommunities.org/doc/london-borough-council/havering,London Borough of Havering,24/04/2019,1133.94,APR2019L419,Morepower Ltd t/a Aqs Homecare_a,Adults,Adult Services,Adult Community Team,Physical Support,HOME CARE - PRIVATE CONTRACTORS PAYMENT
http://opendatacommunities.org/doc/london-borough-council/havering,London Borough of Havering,24/04/2019,1180.08,APR2019L420,Morepower Ltd t/a Aqs Homecare_a,Adults,Adult Services,Adult Community Team,Support with Memory & Cognition,HOME CARE - PRIVATE CONTRACTORS PAYMENT
http://opendatacommunities.org/doc/london-borough-council/havering,London Borough of Havering,24/04/2019,2257.92,APR2019L421,Morepower Ltd t/a Aqs Homecare_a,Adults,Adult Services,Adult Community Team,Physical Support,HOME CARE - PRIVATE CONTRACTORS PAYMENT
http://opendatacommunities.org/doc/london-borough-council/havering,London Borough of Havering,24/04/2019,644.10,APR2019L422,Morepower Ltd t/a Aqs Homecare_a,Adults,Adult Services,Adult Community Team,Physical Support,HOME CARE - PRIVATE CONTRACTORS PAYMENT
http://opendatacommunities.org/doc/london-borough-council/havering,London Borough of Havering,24/04/2019,709.63,APR2019L423,Morepower Ltd t/a Aqs Homecare_a,Adults,Adult Services,Adult Community Team,Physical Support,HOME CARE - PRIVATE CONTRACTORS PAYMENT
http://opendatacommunities.org/doc/london-borough-council/havering,London Borough of Havering,24/04/2019,970.89,APR2019L424,Morepower Ltd t/a Aqs Homecare_a,Adults,Adult Services,Adult Community Team,Physical Support,HOME CARE - PRIVATE CONTRACTORS PAYMENT
http://opendatacommunities.org/doc/london-borough-council/havering,London Borough of Havering,24/04/2019,1028.40,APR2019L425,Morepower Ltd t/a Aqs Homecare_a,Adults,Adult Services,Adult Community Team,Physical Support,HOME CARE - PRIVATE CONTRACTORS PAYMENT
http://opendatacommunities.org/doc/london-borough-council/havering,London Borough of Havering,24/04/2019,1091.85,APR2019L426,Morepower Ltd t/a Aqs Homecare_a,Adults,Adult Services,Adult Community Team,Physical Support,HOME CARE - PRIVATE CONTRACTORS PAYMENT
http://opendatacommunities.org/doc/london-borough-council/havering,London Borough of Havering,24/04/2019,2343.40,APR2019L427,Morepower Ltd t/a Aqs Homecare_a,Adults,Adult Services,Adult Community Team,Physical Support,HOME CARE - PRIVATE CONTRACTORS PAYMENT
http://opendatacommunities.org/doc/london-borough-council/havering,London Borough of Havering,24/04/2019,622.68,APR2019L428,Morepower Ltd t/a Aqs Homecare_a,Adults,Adult Services,Adult Community Team,Physical Support,HOME CARE - PRIVATE CONTRACTORS PAYMENT
http://opendatacommunities.org/doc/london-borough-council/havering,London Borough of Havering,24/04/2019,2410.17,APR2019L429,Morepower Ltd t/a Aqs Homecare_a,Adults,Adult Services,Adult Community Team,Physical Support,HOME CARE - PRIVATE CONTRACTORS PAYMENT
http://opendatacommunities.org/doc/london-borough-council/havering,London Borough of Havering,24/04/2019,415.93,APR2019L430,Morepower Ltd t/a Aqs Homecare_a,Adults,Adult Services,Adult Community Team,Physical Support,HOME CARE - PRIVATE CONTRACTORS PAYMENT
http://opendatacommunities.org/doc/london-borough-council/havering,London Borough of Havering,24/04/2019,445.29,APR2019L431,Morepower Ltd t/a Aqs Homecare_a,Adults,Adult Services,Mental Health - Non Section 75,Mental Health Support,HOME CARE - PRIVATE CONTRACTORS PAYMENT
http://opendatacommunities.org/doc/london-borough-council/havering,London Borough of Havering,24/04/2019,1195.62,APR2019L432,Morepower Ltd t/a Aqs Homecare_a,Adults,Adult Services,Adult Community Team,Physical Support,HOME CARE - PRIVATE CONTRACTORS PAYMENT
http://opendatacommunities.org/doc/london-borough-council/havering,London Borough of Havering,24/04/2019,816.67,APR2019L433,Morepower Ltd t/a Aqs Homecare_a,Adults,Adult Services,Adult Community Team,Physical Support,HOME CARE - PRIVATE CONTRACTORS PAYMENT
http://opendatacommunities.org/doc/london-borough-council/havering,London Borough of Havering,24/04/2019,573.02,APR2019L434,Morepower Ltd t/a Aqs Homecare_a,Adults,Adult Services,Adult Community Team,Physical Support,HOME CARE - PRIVATE CONTRACTORS PAYMENT
http://opendatacommunities.org/doc/london-borough-council/havering,London Borough of Havering,24/04/2019,795.01,APR2019L435,Morepower Ltd t/a Aqs Homecare_a,Adults,Adult Services,Adult Community Team,Support with Memory & Cognition,HOME CARE - PRIVATE CONTRACTORS PAYMENT
http://opendatacommunities.org/doc/london-borough-council/havering,London Borough of Havering,24/04/2019,1949.15,APR2019L436,Morepower Ltd t/a Aqs Homecare_a,Adults,Adult Services,Adult Community Team,Physical Support,HOME CARE - PRIVATE CONTRACTORS PAYMENT
http://opendatacommunities.org/doc/london-borough-council/havering,London Borough of Havering,24/04/2019,1691.40,APR2019L437,Morepower Ltd t/a Aqs Homecare_a,Adults,Adult Services,Adult Community Team,Physical Support,HOME CARE - PRIVATE CONTRACTORS PAYMENT
http://opendatacommunities.org/doc/london-borough-council/havering,London Borough of Havering,24/04/2019,1235.42,APR2019L438,Morepower Ltd t/a Aqs Homecare_a,Adults,Adult Services,Adult Community Team,Support with Memory & Cognition,HOME CARE - PRIVATE CONTRACTORS PAYMENT
http://opendatacommunities.org/doc/london-borough-council/havering,London Borough of Havering,24/04/2019,521.66,APR2019L439,Morepower Ltd t/a Aqs Homecare_a,Adults,Adult Services,Adult Community Team,Physical Support,HOME CARE - PRIVATE CONTRACTORS PAYMENT
http://opendatacommunities.org/doc/london-borough-council/havering,London Borough of Havering,24/04/2019,582.04,APR2019L440,Morepower Ltd t/a Aqs Homecare_a,Adults,Adult Services,Adult Community Team,Physical Support,HOME CARE - PRIVATE CONTRACTORS PAYMENT
http://opendatacommunities.org/doc/london-borough-council/havering,London Borough of Havering,24/04/2019,846.82,APR2019L441,Morepower Ltd t/a Aqs Homecare_a,Adults,Adult Services,Adult Community Team,Physical Support,HOME CARE - PRIVATE CONTRACTORS PAYMENT
http://opendatacommunities.org/doc/london-borough-council/havering,London Borough of Havering,24/04/2019,677.37,APR2019L442,Morepower Ltd t/a Aqs Homecare_a,Adults,Adult Services,Adult Community Team,Physical Support,HOME CARE - PRIVATE CONTRACTORS PAYMENT
http://opendatacommunities.org/doc/london-borough-council/havering,London Borough of Havering,24/04/2019,482.75,APR2019L443,Morepower Ltd t/a Aqs Homecare_a,Adults,Adult Services,Adult Community Team,Physical Support,HOME CARE - PRIVATE CONTRACTORS PAYMENT
http://opendatacommunities.org/doc/london-borough-council/havering,London Borough of Havering,12/04/2019,516.00,APR2019L444,Priory Supporting Care Ltd_a,Adults,Adult Services,Adult Community Team,Physical Support,RESIDENTIAL PLACEMENTS - PRIVATE CONTRACTORS PAYMENT
http://opendatacommunities.org/doc/london-borough-council/havering,London Borough of Havering,12/04/2019,579.00,APR2019L445,Priory Supporting Care Ltd_a,Adults,Adult Services,Adult Community Team,Support with Memory & Cognition,RESIDENTIAL PLACEMENTS - PRIVATE CONTRACTORS PAYMENT
http://opendatacommunities.org/doc/london-borough-council/havering,London Borough of Havering,12/04/2019,579.00,APR2019L446,Priory Supporting Care Ltd_a,Adults,Adult Services,Adult Community Team,Support with Memory & Cognition,RESIDENTIAL PLACEMENTS - PRIVATE CONTRACTORS PAYMENT
http://opendatacommunities.org/doc/london-borough-council/havering,London Borough of Havering,12/04/2019,588.00,APR2019L447,Priory Supporting Care Ltd_a,Adults,Adult Services,Adult Community Team,Support with Memory & Cognition,RESIDENTIAL PLACEMENTS - PRIVATE CONTRACTORS PAYMENT
http://opendatacommunities.org/doc/london-borough-council/havering,London Borough of Havering,12/04/2019,2286.04,APR2019L448,Priory Supporting Care Ltd_a,Adults,Adult Services,Adult Community Team,Physical Support,RESIDENTIAL PLACEMENTS - PRIVATE CONTRACTORS PAYMENT
http://opendatacommunities.org/doc/london-borough-council/havering,London Borough of Havering,12/04/2019,2316.00,APR2019L449,Priory Supporting Care Ltd_a,Adults,Adult Services,Adult Community Team,Support with Memory & Cognition,RESIDENTIAL PLACEMENTS - PRIVATE CONTRACTORS PAYMENT
http://opendatacommunities.org/doc/london-borough-council/havering,London Borough of Havering,12/04/2019,2316.00,APR2019L450,Priory Supporting Care Ltd_a,Adults,Adult Services,Adult Community Team,Support with Memory & Cognition,RESIDENTIAL PLACEMENTS - PRIVATE CONTRACTORS PAYMENT
http://opendatacommunities.org/doc/london-borough-council/havering,London Borough of Havering,12/04/2019,2316.00,APR2019L451,Priory Supporting Care Ltd_a,Adults,Adult Services,Adult Community Team,Support with Memory & Cognition,RESIDENTIAL PLACEMENTS - PRIVATE CONTRACTORS PAYMENT
http://opendatacommunities.org/doc/london-borough-council/havering,London Borough of Havering,12/04/2019,2316.00,APR2019L452,Priory Supporting Care Ltd_a,Adults,Adult Services,Adult Community Team,Support with Memory & Cognition,RESIDENTIAL PLACEMENTS - PRIVATE CONTRACTORS PAYMENT
http://opendatacommunities.org/doc/london-borough-council/havering,London Borough of Havering,12/04/2019,2064.00,APR2019L453,Priory Supporting Care Ltd_a,Adults,Adult Services,Adult Community Team,Physical Support,RESIDENTIAL PLACEMENTS - PRIVATE CONTRACTORS PAYMENT
http://opendatacommunities.org/doc/london-borough-council/havering,London Borough of Havering,12/04/2019,2400.00,APR2019L454,Priory Supporting Care Ltd_a,Adults,Adult Services,Adult Community Team,Physical Support,RESIDENTIAL PLACEMENTS - PRIVATE CONTRACTORS PAYMENT
http://opendatacommunities.org/doc/london-borough-council/havering,London Borough of Havering,12/04/2019,2315.88,APR2019L455,Priory Supporting Care Ltd_a,Adults,Adult Services,Adult Community Team,Support with Memory & Cognition,RESPITE CARE - PRIVATE CONTRACTORS PAYMENT
http://opendatacommunities.org/doc/london-borough-council/havering,London Borough of Havering,12/04/2019,2316.00,APR2019L456,Priory Supporting Care Ltd_a,Adults,Adult Services,Adult Community Team,Support with Memory & Cognition,RESIDENTIAL PLACEMENTS - PRIVATE CONTRACTORS PAYMENT
http://opendatacommunities.org/doc/london-borough-council/havering,London Borough of Havering,12/04/2019,-934.20,APR2019L457,Priory Supporting Care Ltd_a,Adults,Adult Services,Adult Community Team,Physical Support,RESIDENTIAL CARE INCOME
http://opendatacommunities.org/doc/london-borough-council/havering,London Borough of Havering,12/04/2019,1548.00,APR2019L458,Priory Supporting Care Ltd_a,Adults,Adult Services,Adult Community Team,Physical Support,RESIDENTIAL PLACEMENTS - PRIVATE CONTRACTORS PAYMENT
http://opendatacommunities.org/doc/london-borough-council/havering,London Borough of Havering,12/04/2019,-527.52,APR2019L459,Priory Supporting Care Ltd_a,Adults,Adult Services,Adult Community Team,Support with Memory & Cognition,RESIDENTIAL CARE INCOME
http://opendatacommunities.org/doc/london-borough-council/havering,London Borough of Havering,12/04/2019,1737.00,APR2019L460,Priory Supporting Care Ltd_a,Adults,Adult Services,Adult Community Team,Support with Memory & Cognition,RESIDENTIAL PLACEMENTS - PRIVATE CONTRACTORS PAYMENT
http://opendatacommunities.org/doc/london-borough-council/havering,London Borough of Havering,12/04/2019,-935.25,APR2019L461,Priory Supporting Care Ltd_a,Adults,Adult Services,Adult Community Team,Support with Memory & Cognition,RESIDENTIAL CARE INCOME
http://opendatacommunities.org/doc/london-borough-council/havering,London Borough of Havering,12/04/2019,1737.00,APR2019L462,Priory Supporting Care Ltd_a,Adults,Adult Services,Adult Community Team,Support with Memory & Cognition,RESIDENTIAL PLACEMENTS - PRIVATE CONTRACTORS PAYMENT
http://opendatacommunities.org/doc/london-borough-council/havering,London Borough of Havering,12/04/2019,-1201.26,APR2019L463,Priory Supporting Care Ltd_a,Adults,Adult Services,Adult Community Team,Support with Memory & Cognition,RESIDENTIAL CARE INCOME
http://opendatacommunities.org/doc/london-borough-council/havering,London Borough of Havering,12/04/2019,1764.00,APR2019L464,Priory Supporting Care Ltd_a,Adults,Adult Services,Adult Community Team,Support with Memory & Cognition,RESIDENTIAL PLACEMENTS - PRIVATE CONTRACTORS PAYMENT
http://opendatacommunities.org/doc/london-borough-council/havering,London Borough of Havering,12/04/2019,2315.88,APR2019L465,Priory Supporting Care Ltd_a,Adults,Adult Services,Adult Community Team,Support with Memory & Cognition,RESPITE CARE - PRIVATE CONTRACTORS PAYMENT
http://opendatacommunities.org/doc/london-borough-council/havering,London Borough of Havering,12/04/2019,579.00,APR2019L469,Ash Grove Residential Care Home_a,Adults,Adult Services,Adult Community Team,Support with Memory & Cognition,RESIDENTIAL PLACEMENTS - PRIVATE CONTRACTORS PAYMENT
http://opendatacommunities.org/doc/london-borough-council/havering,London Borough of Havering,12/04/2019,579.00,APR2019L470,Ash Grove Residential Care Home_a,Adults,Adult Services,Adult Community Team,Support with Memory & Cognition,RESIDENTIAL PLACEMENTS - PRIVATE CONTRACTORS PAYMENT
http://opendatacommunities.org/doc/london-borough-council/havering,London Borough of Havering,12/04/2019,579.00,APR2019L471,Ash Grove Residential Care Home_a,Adults,Adult Services,Adult Community Team,Support with Memory & Cognition,RESIDENTIAL PLACEMENTS - PRIVATE CONTRACTORS PAYMENT
http://opendatacommunities.org/doc/london-borough-council/havering,London Borough of Havering,12/04/2019,579.00,APR2019L472,Ash Grove Residential Care Home_a,Adults,Adult Services,Adult Community Team,Support with Memory & Cognition,RESIDENTIAL PLACEMENTS - PRIVATE CONTRACTORS PAYMENT
http://opendatacommunities.org/doc/london-borough-council/havering,London Borough of Havering,12/04/2019,2316.00,APR2019L473,Ash Grove Residential Care Home_a,Adults,Adult Services,Adult Community Team,Support with Memory & Cognition,RESIDENTIAL PLACEMENTS - PRIVATE CONTRACTORS PAYMENT
http://opendatacommunities.org/doc/london-borough-council/havering,London Borough of Havering,12/04/2019,2316.00,APR2019L474,Ash Grove Residential Care Home_a,Adults,Adult Services,Adult Community Team,Physical Support,RESIDENTIAL PLACEMENTS - PRIVATE CONTRACTORS PAYMENT
http://opendatacommunities.org/doc/london-borough-council/havering,London Borough of Havering,12/04/2019,2316.00,APR2019L475,Ash Grove Residential Care Home_a,Adults,Adult Services,Adult Community Team,Support with Memory & Cognition,RESIDENTIAL PLACEMENTS - PRIVATE CONTRACTORS PAYMENT
http://opendatacommunities.org/doc/london-borough-council/havering,London Borough of Havering,12/04/2019,-427.05,APR2019L476,Ash Grove Residential Care Home_a,Adults,Adult Services,Adult Community Team,Physical Support,RESIDENTIAL CARE INCOME
http://opendatacommunities.org/doc/london-borough-council/havering,London Borough of Havering,12/04/2019,1737.00,APR2019L477,Ash Grove Residential Care Home_a,Adults,Adult Services,Adult Community Team,Support with Memory & Cognition,RESIDENTIAL PLACEMENTS - PRIVATE CONTRACTORS PAYMENT
http://opendatacommunities.org/doc/london-borough-council/havering,London Borough of Havering,12/04/2019,-449.85,APR2019L478,Ash Grove Residential Care Home_a,Adults,Adult Services,Adult Community Team,Support with Memory & Cognition,RESIDENTIAL CARE INCOME
http://opendatacommunities.org/doc/london-borough-council/havering,London Borough of Havering,12/04/2019,1737.00,APR2019L479,Ash Grove Residential Care Home_a,Adults,Adult Services,Adult Community Team,Support with Memory & Cognition,RESIDENTIAL PLACEMENTS - PRIVATE CONTRACTORS PAYMENT
http://opendatacommunities.org/doc/london-borough-council/havering,London Borough of Havering,12/04/2019,-452.22,APR2019L480,Ash Grove Residential Care Home_a,Adults,Adult Services,Adult Community Team,Support with Memory & Cognition,RESIDENTIAL CARE INCOME
http://opendatacommunities.org/doc/london-borough-council/havering,London Borough of Havering,12/04/2019,1737.00,APR2019L481,Ash Grove Residential Care Home_a,Adults,Adult Services,Adult Community Team,Support with Memory & Cognition,RESIDENTIAL PLACEMENTS - PRIVATE CONTRACTORS PAYMENT
http://opendatacommunities.org/doc/london-borough-council/havering,London Borough of Havering,12/04/2019,-821.04,APR2019L482,Ash Grove Residential Care Home_a,Adults,Adult Services,Adult Community Team,Support with Memory & Cognition,RESIDENTIAL CARE INCOME
http://opendatacommunities.org/doc/london-borough-council/havering,London Borough of Havering,12/04/2019,1737.00,APR2019L483,Ash Grove Residential Care Home_a,Adults,Adult Services,Adult Community Team,Support with Memory & Cognition,RESIDENTIAL PLACEMENTS - PRIVATE CONTRACTORS PAYMENT
http://opendatacommunities.org/doc/london-borough-council/havering,London Borough of Havering,12/04/2019,-1075.29,APR2019L484,Ash Grove Residential Care Home_a,Adults,Adult Services,Adult Community Team,Support with Memory & Cognition,RESIDENTIAL PLACEMENTS - PRIVATE CONTRACTORS PAYMENT
http://opendatacommunities.org/doc/london-borough-council/havering,London Borough of Havering,18/04/2019,575.28,APR2019L485,Carers Trust East Midlands,Adults,Adult Services,Learning Disabilities,Learning Disability Support,HOME CARE - PRIVATE CONTRACTORS PAYMENT
http://opendatacommunities.org/doc/london-borough-council/havering,London Borough of Havering,18/04/2019,964.44,APR2019L486,Carers Trust East Midlands,Adults,Adult Services,Adult Community Team,Physical Support,HOME CARE - PRIVATE CONTRACTORS PAYMENT
http://opendatacommunities.org/doc/london-borough-council/havering,London Borough of Havering,18/04/2019,676.80,APR2019L487,Carers Trust East Midlands,Adults,Adult Services,Learning Disabilities,Learning Disability Support,HOME CARE - PRIVATE CONTRACTORS PAYMENT
http://opendatacommunities.org/doc/london-borough-council/havering,London Borough of Havering,12/04/2019,4853.12,APR2019L488,Clacton Family Trust_a,Adults,Adult Services,Learning Disabilities,Learning Disability Support,RESIDENTIAL PLACEMENTS - PRIVATE CONTRACTORS PAYMENT
http://opendatacommunities.org/doc/london-borough-council/havering,London Borough of Havering,12/04/2019,579.00,APR2019L489,Langley House_a,Adults,Adult Services,Adult Community Team,Support with Memory & Cognition,RESIDENTIAL PLACEMENTS - PRIVATE CONTRACTORS PAYMENT
http://opendatacommunities.org/doc/london-borough-council/havering,London Borough of Havering,12/04/2019,516.00,APR2019L490,Langley House_a,Adults,Adult Services,Adult Community Team,Physical Support,RESIDENTIAL PLACEMENTS - PRIVATE CONTRACTORS PAYMENT
http://opendatacommunities.org/doc/london-borough-council/havering,London Borough of Havering,12/04/2019,579.00,APR2019L491,Langley House_a,Adults,Adult Services,Adult Community Team,Support with Memory & Cognition,RESIDENTIAL PLACEMENTS - PRIVATE CONTRACTORS PAYMENT
http://opendatacommunities.org/doc/london-borough-council/havering,London Borough of Havering,12/04/2019,516.00,APR2019L492,Langley House_a,Adults,Adult Services,Adult Community Team,Physical Support,RESIDENTIAL PLACEMENTS - PRIVATE CONTRACTORS PAYMENT
http://opendatacommunities.org/doc/london-borough-council/havering,London Borough of Havering,12/04/2019,516.00,APR2019L493,Langley House_a,Adults,Adult Services,Adult Community Team,Physical Support,RESIDENTIAL PLACEMENTS - PRIVATE CONTRACTORS PAYMENT
http://opendatacommunities.org/doc/london-borough-council/havering,London Borough of Havering,12/04/2019,516.00,APR2019L494,Langley House_a,Adults,Adult Services,Adult Community Team,Physical Support,RESIDENTIAL PLACEMENTS - PRIVATE CONTRACTORS PAYMENT
http://opendatacommunities.org/doc/london-borough-council/havering,London Borough of Havering,12/04/2019,516.00,APR2019L495,Langley House_a,Adults,Adult Services,Adult Community Team,Physical Support,RESIDENTIAL PLACEMENTS - PRIVATE CONTRACTORS PAYMENT
http://opendatacommunities.org/doc/london-borough-council/havering,London Borough of Havering,12/04/2019,1105.71,APR2019L496,Langley House_a,Adults,Adult Services,Adult Community Team,Physical Support,RESIDENTIAL PLACEMENTS - PRIVATE CONTRACTORS PAYMENT
http://opendatacommunities.org/doc/london-borough-council/havering,London Borough of Havering,12/04/2019,2064.00,APR2019L497,Langley House_a,Adults,Adult Services,Adult Community Team,Physical Support,RESIDENTIAL PLACEMENTS - PRIVATE CONTRACTORS PAYMENT
http://opendatacommunities.org/doc/london-borough-council/havering,London Borough of Havering,12/04/2019,2064.00,APR2019L498,Langley House_a,Adults,Adult Services,Adult Community Team,Physical Support,RESIDENTIAL PLACEMENTS - PRIVATE CONTRACTORS PAYMENT
http://opendatacommunities.org/doc/london-borough-council/havering,London Borough of Havering,12/04/2019,2064.00,APR2019L499,Langley House_a,Adults,Adult Services,Adult Community Team,Physical Support,RESIDENTIAL PLACEMENTS - PRIVATE CONTRACTORS PAYMENT
http://opendatacommunities.org/doc/london-borough-council/havering,London Borough of Havering,12/04/2019,2064.00,APR2019L500,Langley House_a,Adults,Adult Services,Adult Community Team,Physical Support,RESIDENTIAL PLACEMENTS - PRIVATE CONTRACTORS PAYMENT
http://opendatacommunities.org/doc/london-borough-council/havering,London Borough of Havering,12/04/2019,2064.00,APR2019L501,Langley House_a,Adults,Adult Services,Adult Community Team,Physical Support,RESIDENTIAL PLACEMENTS - PRIVATE CONTRACTORS PAYMENT
http://opendatacommunities.org/doc/london-borough-council/havering,London Borough of Havering,12/04/2019,2064.00,APR2019L502,Langley House_a,Adults,Adult Services,Adult Community Team,Physical Support,RESIDENTIAL PLACEMENTS - PRIVATE CONTRACTORS PAYMENT
http://opendatacommunities.org/doc/london-borough-council/havering,London Borough of Havering,12/04/2019,2316.00,APR2019L503,Langley House_a,Adults,Adult Services,Adult Community Team,Support with Memory & Cognition,RESIDENTIAL PLACEMENTS - PRIVATE CONTRACTORS PAYMENT
http://opendatacommunities.org/doc/london-borough-council/havering,London Borough of Havering,12/04/2019,2316.00,APR2019L504,Langley House_a,Adults,Adult Services,Adult Community Team,Support with Memory & Cognition,RESIDENTIAL PLACEMENTS - PRIVATE CONTRACTORS PAYMENT
http://opendatacommunities.org/doc/london-borough-council/havering,London Borough of Havering,12/04/2019,2064.00,APR2019L505,Langley House_a,Adults,Adult Services,Adult Community Team,Physical Support,RESIDENTIAL PLACEMENTS - PRIVATE CONTRACTORS PAYMENT
http://opendatacommunities.org/doc/london-borough-council/havering,London Borough of Havering,12/04/2019,2064.00,APR2019L506,Langley House_a,Adults,Adult Services,Adult Community Team,Physical Support,RESIDENTIAL PLACEMENTS - PRIVATE CONTRACTORS PAYMENT
http://opendatacommunities.org/doc/london-borough-council/havering,London Borough of Havering,12/04/2019,2163.60,APR2019L507,Langley House_a,Adults,Adult Services,Adult Community Team,Physical Support,RESIDENTIAL PLACEMENTS - PRIVATE CONTRACTORS PAYMENT
http://opendatacommunities.org/doc/london-borough-council/havering,London Borough of Havering,12/04/2019,-427.05,APR2019L508,Langley House_a,Adults,Adult Services,Adult Community Team,Support with Memory & Cognition,RESIDENTIAL CARE INCOME
http://opendatacommunities.org/doc/london-borough-council/havering,London Borough of Havering,12/04/2019,1737.00,APR2019L509,Langley House_a,Adults,Adult Services,Adult Community Team,Support with Memory & Cognition,RESIDENTIAL PLACEMENTS - PRIVATE CONTRACTORS PAYMENT
http://opendatacommunities.org/doc/london-borough-council/havering,London Borough of Havering,12/04/2019,-499.11,APR2019L510,Langley House_a,Adults,Adult Services,Adult Community Team,Physical Support,RESIDENTIAL CARE INCOME
http://opendatacommunities.org/doc/london-borough-council/havering,London Borough of Havering,12/04/2019,1548.00,APR2019L511,Langley House_a,Adults,Adult Services,Adult Community Team,Physical Support,RESIDENTIAL PLACEMENTS - PRIVATE CONTRACTORS PAYMENT
http://opendatacommunities.org/doc/london-borough-council/havering,London Borough of Havering,12/04/2019,-969.75,APR2019L512,Langley House_a,Adults,Adult Services,Adult Community Team,Support with Memory & Cognition,RESIDENTIAL CARE INCOME
http://opendatacommunities.org/doc/london-borough-council/havering,London Borough of Havering,12/04/2019,1737.00,APR2019L513,Langley House_a,Adults,Adult Services,Adult Community Team,Support with Memory & Cognition,RESIDENTIAL PLACEMENTS - PRIVATE CONTRACTORS PAYMENT
http://opendatacommunities.org/doc/london-borough-council/havering,London Borough of Havering,12/04/2019,-427.05,APR2019L514,Langley House_a,Adults,Adult Services,Adult Community Team,Physical Support,RESIDENTIAL CARE INCOME
http://opendatacommunities.org/doc/london-borough-council/havering,London Borough of Havering,12/04/2019,1548.00,APR2019L515,Langley House_a,Adults,Adult Services,Adult Community Team,Physical Support,RESIDENTIAL PLACEMENTS - PRIVATE CONTRACTORS PAYMENT
http://opendatacommunities.org/doc/london-borough-council/havering,London Borough of Havering,12/04/2019,-409.05,APR2019L516,Langley House_a,Adults,Adult Services,Adult Community Team,Physical Support,RESIDENTIAL CARE INCOME
http://opendatacommunities.org/doc/london-borough-council/havering,London Borough of Havering,12/04/2019,1548.00,APR2019L517,Langley House_a,Adults,Adult Services,Adult Community Team,Physical Support,RESIDENTIAL PLACEMENTS - PRIVATE CONTRACTORS PAYMENT
http://opendatacommunities.org/doc/london-borough-council/havering,London Borough of Havering,12/04/2019,-427.05,APR2019L518,Langley House_a,Adults,Adult Services,Adult Community Team,Physical Support,RESIDENTIAL CARE INCOME
http://opendatacommunities.org/doc/london-borough-council/havering,London Borough of Havering,12/04/2019,1548.00,APR2019L519,Langley House_a,Adults,Adult Services,Adult Community Team,Physical Support,RESIDENTIAL PLACEMENTS - PRIVATE CONTRACTORS PAYMENT
http://opendatacommunities.org/doc/london-borough-council/havering,London Borough of Havering,12/04/2019,-427.05,APR2019L520,Langley House_a,Adults,Adult Services,Adult Community Team,Physical Support,RESIDENTIAL CARE INCOME
http://opendatacommunities.org/doc/london-borough-council/havering,London Borough of Havering,12/04/2019,1548.00,APR2019L521,Langley House_a,Adults,Adult Services,Adult Community Team,Physical Support,RESIDENTIAL PLACEMENTS - PRIVATE CONTRACTORS PAYMENT
http://opendatacommunities.org/doc/london-borough-council/havering,London Borough of Havering,12/04/2019,927.26,APR2019L522,Langley House_a,Adults,Adult Services,Adult Community Team,Physical Support,RESIDENTIAL PLACEMENTS - PRIVATE CONTRACTORS PAYMENT
http://opendatacommunities.org/doc/london-borough-council/havering,London Borough of Havering,12/04/2019,579.00,APR2019L523,Ebury Court_a,Adults,Adult Services,Adult Community Team,Support with Memory & Cognition,RESIDENTIAL PLACEMENTS - PRIVATE CONTRACTORS PAYMENT
http://opendatacommunities.org/doc/london-borough-council/havering,London Borough of Havering,12/04/2019,714.00,APR2019L524,Ebury Court_a,Adults,Adult Services,Adult Community Team,Physical Support,RESIDENTIAL PLACEMENTS - PRIVATE CONTRACTORS PAYMENT
http://opendatacommunities.org/doc/london-borough-council/havering,London Borough of Havering,12/04/2019,2900.00,APR2019L525,Ebury Court_a,Adults,Adult Services,Learning Disabilities,Learning Disability Support,RESIDENTIAL PLACEMENTS - PRIVATE CONTRACTORS PAYMENT
http://opendatacommunities.org/doc/london-borough-council/havering,London Borough of Havering,12/04/2019,2600.00,APR2019L526,Ebury Court_a,Adults,Adult Services,Adult Community Team,Physical Support,RESIDENTIAL PLACEMENTS - PRIVATE CONTRACTORS PAYMENT
http://opendatacommunities.org/doc/london-borough-council/havering,London Borough of Havering,12/04/2019,-695.40,APR2019L527,Ebury Court_a,Adults,Adult Services,Adult Community Team,Support with Memory & Cognition,RESIDENTIAL CARE INCOME
http://opendatacommunities.org/doc/london-borough-council/havering,London Borough of Havering,12/04/2019,1737.00,APR2019L528,Ebury Court_a,Adults,Adult Services,Adult Community Team,Support with Memory & Cognition,RESIDENTIAL PLACEMENTS - PRIVATE CONTRACTORS PAYMENT
http://opendatacommunities.org/doc/london-borough-council/havering,London Borough of Havering,12/04/2019,-534.99,APR2019L529,Ebury Court_a,Adults,Adult Services,Adult Community Team,Physical Support,RESIDENTIAL CARE INCOME
http://opendatacommunities.org/doc/london-borough-council/havering,London Borough of Havering,12/04/2019,2142.00,APR2019L530,Ebury Court_a,Adults,Adult Services,Adult Community Team,Physical Support,RESIDENTIAL PLACEMENTS - PRIVATE CONTRACTORS PAYMENT
http://opendatacommunities.org/doc/london-borough-council/havering,London Borough of Havering,12/04/2019,668.80,APR2019L555,The Cottage Residential Care Home_a,Adults,Adult Services,Learning Disabilities,Learning Disability Support,RESIDENTIAL PLACEMENTS - PRIVATE CONTRACTORS PAYMENT
http://opendatacommunities.org/doc/london-borough-council/havering,London Borough of Havering,12/04/2019,2006.40,APR2019L556,The Cottage Residential Care Home_a,Adults,Adult Services,Learning Disabilities,Learning Disability Support,RESIDENTIAL PLACEMENTS - PRIVATE CONTRACTORS PAYMENT
http://opendatacommunities.org/doc/london-borough-council/havering,London Borough of Havering,12/04/2019,528.00,APR2019L557,HC-One Oval Ltd - The Hornchurch Nursing Centre_a,Adults,Adult Services,Adult Community Team,Physical Support,NURSING HOMES - PRIVATE CONTRACTORS PAYMENT
http://opendatacommunities.org/doc/london-borough-council/havering,London Borough of Havering,12/04/2019,579.00,APR2019L558,HC-One Oval Ltd - The Hornchurch Nursing Centre_a,Adults,Adult Services,Adult Community Team,Support with Memory & Cognition,RESIDENTIAL PLACEMENTS - PRIVATE CONTRACTORS PAYMENT
http://opendatacommunities.org/doc/london-borough-council/havering,London Borough of Havering,12/04/2019,565.00,APR2019L559,HC-One Oval Ltd - The Hornchurch Nursing Centre_a,Adults,Adult Services,Adult Community Team,Support with Memory & Cognition,NURSING HOMES - PRIVATE CONTRACTORS PAYMENT
http://opendatacommunities.org/doc/london-borough-council/havering,London Borough of Havering,12/04/2019,528.00,APR2019L560,HC-One Oval Ltd - The Hornchurch Nursing Centre_a,Adults,Adult Services,Adult Community Team,Physical Support,NURSING HOMES - PRIVATE CONTRACTORS PAYMENT
http://opendatacommunities.org/doc/london-borough-council/havering,London Borough of Havering,12/04/2019,642.00,APR2019L561,HC-One Oval Ltd - The Hornchurch Nursing Centre_a,Adults,Adult Services,Adult Community Team,Support with Memory & Cognition,NURSING HOMES - PRIVATE CONTRACTORS PAYMENT
http://opendatacommunities.org/doc/london-borough-council/havering,London Borough of Havering,12/04/2019,516.00,APR2019L562,HC-One Oval Ltd - The Hornchurch Nursing Centre_a,Adults,Adult Services,Adult Community Team,Physical Support,RESIDENTIAL PLACEMENTS - PRIVATE CONTRACTORS PAYMENT
http://opendatacommunities.org/doc/london-borough-council/havering,London Borough of Havering,12/04/2019,565.00,APR2019L563,HC-One Oval Ltd - The Hornchurch Nursing Centre_a,Adults,Adult Services,Adult Community Team,Support with Memory & Cognition,NURSING HOMES - PRIVATE CONTRACTORS PAYMENT
http://opendatacommunities.org/doc/london-borough-council/havering,London Borough of Havering,12/04/2019,565.00,APR2019L564,HC-One Oval Ltd - The Hornchurch Nursing Centre_a,Adults,Adult Services,Adult Community Team,Support with Memory & Cognition,NURSING HOMES - PRIVATE CONTRACTORS PAYMENT
http://opendatacommunities.org/doc/london-borough-council/havering,London Borough of Havering,12/04/2019,565.00,APR2019L565,HC-One Oval Ltd - The Hornchurch Nursing Centre_a,Adults,Adult Services,Adult Community Team,Physical Support,NURSING HOMES - PRIVATE CONTRACTORS PAYMENT
http://opendatacommunities.org/doc/london-borough-council/havering,London Borough of Havering,12/04/2019,565.00,APR2019L566,HC-One Oval Ltd - The Hornchurch Nursing Centre_a,Adults,Adult Services,Adult Community Team,Support with Memory & Cognition,NURSING HOMES - PRIVATE CONTRACTORS PAYMENT
http://opendatacommunities.org/doc/london-borough-council/havering,London Borough of Havering,12/04/2019,565.00,APR2019L567,HC-One Oval Ltd - The Hornchurch Nursing Centre_a,Adults,Adult Services,Adult Community Team,Physical Support,NURSING HOMES - PRIVATE CONTRACTORS PAYMENT
http://opendatacommunities.org/doc/london-borough-council/havering,London Borough of Havering,12/04/2019,565.00,APR2019L568,HC-One Oval Ltd - The Hornchurch Nursing Centre_a,Adults,Adult Services,Adult Community Team,Support with Memory & Cognition,NURSING HOMES - PRIVATE CONTRACTORS PAYMENT
http://opendatacommunities.org/doc/london-borough-council/havering,London Borough of Havering,12/04/2019,528.00,APR2019L569,HC-One Oval Ltd - The Hornchurch Nursing Centre_a,Adults,Adult Services,Adult Community Team,Physical Support,NURSING HOMES - PRIVATE CONTRACTORS PAYMENT
http://opendatacommunities.org/doc/london-borough-council/havering,London Borough of Havering,12/04/2019,579.00,APR2019L570,HC-One Oval Ltd - The Hornchurch Nursing Centre_a,Adults,Adult Services,Adult Community Team,Support with Memory & Cognition,RESIDENTIAL PLACEMENTS - PRIVATE CONTRACTORS PAYMENT
http://opendatacommunities.org/doc/london-borough-council/havering,London Borough of Havering,12/04/2019,579.00,APR2019L571,HC-One Oval Ltd - The Hornchurch Nursing Centre_a,Adults,Adult Services,Adult Community Team,Support with Memory & Cognition,RESIDENTIAL PLACEMENTS - PRIVATE CONTRACTORS PAYMENT
http://opendatacommunities.org/doc/london-borough-council/havering,London Borough of Havering,12/04/2019,2742.96,APR2019L572,HC-One Oval Ltd - The Hornchurch Nursing Centre_a,Adults,Adult Services,Adult Community Team,Support with Memory & Cognition,NURSING HOMES - PRIVATE CONTRACTORS PAYMENT
http://opendatacommunities.org/doc/london-borough-council/havering,London Borough of Havering,12/04/2019,2112.00,APR2019L573,HC-One Oval Ltd - The Hornchurch Nursing Centre_a,Adults,Adult Services,Adult Community Team,Physical Support,NURSING HOMES - PRIVATE CONTRACTORS PAYMENT
http://opendatacommunities.org/doc/london-borough-council/havering,London Borough of Havering,12/04/2019,2260.00,APR2019L574,HC-One Oval Ltd - The Hornchurch Nursing Centre_a,Adults,Adult Services,Adult Community Team,Support with Memory & Cognition,NURSING HOMES - PRIVATE CONTRACTORS PAYMENT
http://opendatacommunities.org/doc/london-borough-council/havering,London Borough of Havering,12/04/2019,2260.00,APR2019L575,HC-One Oval Ltd - The Hornchurch Nursing Centre_a,Adults,Adult Services,Adult Community Team,Physical Support,NURSING HOMES - PRIVATE CONTRACTORS PAYMENT
http://opendatacommunities.org/doc/london-borough-council/havering,London Borough of Havering,12/04/2019,2112.00,APR2019L576,HC-One Oval Ltd - The Hornchurch Nursing Centre_a,Adults,Adult Services,Adult Community Team,Physical Support,NURSING HOMES - PRIVATE CONTRACTORS PAYMENT
http://opendatacommunities.org/doc/london-borough-council/havering,London Borough of Havering,12/04/2019,2112.00,APR2019L577,HC-One Oval Ltd - The Hornchurch Nursing Centre_a,Adults,Adult Services,Adult Community Team,Physical Support,NURSING HOMES - PRIVATE CONTRACTORS PAYMENT
http://opendatacommunities.org/doc/london-borough-council/havering,London Borough of Havering,12/04/2019,2260.00,APR2019L578,HC-One Oval Ltd - The Hornchurch Nursing Centre_a,Adults,Adult Services,Adult Community Team,Support with Memory & Cognition,NURSING HOMES - PRIVATE CONTRACTORS PAYMENT
http://opendatacommunities.org/doc/london-borough-council/havering,London Borough of Havering,12/04/2019,2260.00,APR2019L579,HC-One Oval Ltd - The Hornchurch Nursing Centre_a,Adults,Adult Services,Adult Community Team,Support with Memory & Cognition,NURSING HOMES - PRIVATE CONTRACTORS PAYMENT
http://opendatacommunities.org/doc/london-borough-council/havering,London Borough of Havering,12/04/2019,2112.00,APR2019L580,HC-One Oval Ltd - The Hornchurch Nursing Centre_a,Adults,Adult Services,Adult Community Team,Physical Support,NURSING HOMES - PRIVATE CONTRACTORS PAYMENT
http://opendatacommunities.org/doc/london-borough-council/havering,London Borough of Havering,12/04/2019,2112.00,APR2019L581,HC-One Oval Ltd - The Hornchurch Nursing Centre_a,Adults,Adult Services,Adult Community Team,Physical Support,NURSING HOMES - PRIVATE CONTRACTORS PAYMENT
http://opendatacommunities.org/doc/london-borough-council/havering,London Borough of Havering,12/04/2019,2112.00,APR2019L582,HC-One Oval Ltd - The Hornchurch Nursing Centre_a,Adults,Adult Services,Adult Community Team,Physical Support,NURSING HOMES - PRIVATE CONTRACTORS PAYMENT
http://opendatacommunities.org/doc/london-borough-council/havering,London Borough of Havering,12/04/2019,2112.00,APR2019L583,HC-One Oval Ltd - The Hornchurch Nursing Centre_a,Adults,Adult Services,Adult Community Team,Physical Support,NURSING HOMES - PRIVATE CONTRACTORS PAYMENT
http://opendatacommunities.org/doc/london-borough-council/havering,London Borough of Havering,12/04/2019,2260.00,APR2019L584,HC-One Oval Ltd - The Hornchurch Nursing Centre_a,Adults,Adult Services,Adult Community Team,Support with Memory & Cognition,NURSING HOMES - PRIVATE CONTRACTORS PAYMENT
http://opendatacommunities.org/doc/london-borough-council/havering,London Borough of Havering,12/04/2019,1640.00,APR2019L585,HC-One Oval Ltd - The Hornchurch Nursing Centre_a,Adults,Adult Services,Adult Community Team,Physical Support,NURSING HOMES - PRIVATE CONTRACTORS PAYMENT
http://opendatacommunities.org/doc/london-borough-council/havering,London Borough of Havering,12/04/2019,6048.00,APR2019L586,HC-One Oval Ltd - The Hornchurch Nursing Centre_a,Adults,Adult Services,Adult Community Team,Physical Support,NURSING HOMES - PRIVATE CONTRACTORS PAYMENT
http://opendatacommunities.org/doc/london-borough-council/havering,London Borough of Havering,12/04/2019,2112.00,APR2019L587,HC-One Oval Ltd - The Hornchurch Nursing Centre_a,Adults,Adult Services,Adult Community Team,Physical Support,NURSING HOMES - PRIVATE CONTRACTORS PAYMENT
http://opendatacommunities.org/doc/london-borough-council/havering,London Borough of Havering,12/04/2019,2112.00,APR2019L588,HC-One Oval Ltd - The Hornchurch Nursing Centre_a,Adults,Adult Services,Adult Community Team,Physical Support,NURSING HOMES - PRIVATE CONTRACTORS PAYMENT
http://opendatacommunities.org/doc/london-borough-council/havering,London Borough of Havering,12/04/2019,-2421.43,APR2019L589,HC-One Oval Ltd - The Hornchurch Nursing Centre_a,Adults,Adult Services,Adult Community Team,Support with Memory & Cognition,NURSING HOMES - PRIVATE CONTRACTORS PAYMENT
http://opendatacommunities.org/doc/london-borough-council/havering,London Borough of Havering,12/04/2019,1367.44,APR2019L590,HC-One Oval Ltd - The Hornchurch Nursing Centre_a,Adults,Adult Services,Adult Community Team,Support with Memory & Cognition,NURSING CARE INCOME
http://opendatacommunities.org/doc/london-borough-council/havering,London Borough of Havering,12/04/2019,8900.57,APR2019L591,HC-One Oval Ltd - The Hornchurch Nursing Centre_a,Adults,Adult Services,Adult Community Team,Physical Support,NURSING HOMES - PRIVATE CONTRACTORS PAYMENT
http://opendatacommunities.org/doc/london-borough-council/havering,London Borough of Havering,12/04/2019,6117.85,APR2019L592,HC-One Oval Ltd - The Hornchurch Nursing Centre_a,Adults,Adult Services,Adult Community Team,Physical Support,NURSING HOMES - PRIVATE CONTRACTORS PAYMENT
http://opendatacommunities.org/doc/london-borough-council/havering,London Borough of Havering,12/04/2019,-406.05,APR2019L593,HC-One Oval Ltd - The Hornchurch Nursing Centre_a,Adults,Adult Services,Adult Community Team,Physical Support,NURSING CARE INCOME
http://opendatacommunities.org/doc/london-borough-council/havering,London Borough of Havering,12/04/2019,1584.00,APR2019L594,HC-One Oval Ltd - The Hornchurch Nursing Centre_a,Adults,Adult Services,Adult Community Team,Physical Support,NURSING HOMES - PRIVATE CONTRACTORS PAYMENT
http://opendatacommunities.org/doc/london-borough-council/havering,London Borough of Havering,12/04/2019,-639.90,APR2019L595,HC-One Oval Ltd - The Hornchurch Nursing Centre_a,Adults,Adult Services,Adult Community Team,Support with Memory & Cognition,RESIDENTIAL CARE INCOME
http://opendatacommunities.org/doc/london-borough-council/havering,London Borough of Havering,12/04/2019,1737.00,APR2019L596,HC-One Oval Ltd - The Hornchurch Nursing Centre_a,Adults,Adult Services,Adult Community Team,Support with Memory & Cognition,RESIDENTIAL PLACEMENTS - PRIVATE CONTRACTORS PAYMENT
http://opendatacommunities.org/doc/london-borough-council/havering,London Borough of Havering,12/04/2019,-427.05,APR2019L597,HC-One Oval Ltd - The Hornchurch Nursing Centre_a,Adults,Adult Services,Adult Community Team,Support with Memory & Cognition,NURSING CARE INCOME
http://opendatacommunities.org/doc/london-borough-council/havering,London Borough of Havering,12/04/2019,1695.00,APR2019L598,HC-One Oval Ltd - The Hornchurch Nursing Centre_a,Adults,Adult Services,Adult Community Team,Support with Memory & Cognition,NURSING HOMES - PRIVATE CONTRACTORS PAYMENT
http://opendatacommunities.org/doc/london-borough-council/havering,London Borough of Havering,12/04/2019,-811.98,APR2019L599,HC-One Oval Ltd - The Hornchurch Nursing Centre_a,Adults,Adult Services,Adult Community Team,Physical Support,NURSING CARE INCOME
http://opendatacommunities.org/doc/london-borough-council/havering,London Borough of Havering,12/04/2019,1584.00,APR2019L600,HC-One Oval Ltd - The Hornchurch Nursing Centre_a,Adults,Adult Services,Adult Community Team,Physical Support,NURSING HOMES - PRIVATE CONTRACTORS PAYMENT
http://opendatacommunities.org/doc/london-borough-council/havering,London Borough of Havering,12/04/2019,-708.12,APR2019L601,HC-One Oval Ltd - The Hornchurch Nursing Centre_a,Adults,Adult Services,Adult Community Team,Support with Memory & Cognition,NURSING CARE INCOME
http://opendatacommunities.org/doc/london-borough-council/havering,London Borough of Havering,12/04/2019,1926.00,APR2019L602,HC-One Oval Ltd - The Hornchurch Nursing Centre_a,Adults,Adult Services,Adult Community Team,Support with Memory & Cognition,NURSING HOMES - PRIVATE CONTRACTORS PAYMENT
http://opendatacommunities.org/doc/london-borough-council/havering,London Borough of Havering,12/04/2019,-427.05,APR2019L603,HC-One Oval Ltd - The Hornchurch Nursing Centre_a,Adults,Adult Services,Adult Community Team,Physical Support,RESIDENTIAL CARE INCOME
http://opendatacommunities.org/doc/london-borough-council/havering,London Borough of Havering,12/04/2019,1548.00,APR2019L604,HC-One Oval Ltd - The Hornchurch Nursing Centre_a,Adults,Adult Services,Adult Community Team,Physical Support,RESIDENTIAL PLACEMENTS - PRIVATE CONTRACTORS PAYMENT
http://opendatacommunities.org/doc/london-borough-council/havering,London Borough of Havering,12/04/2019,-566.73,APR2019L605,HC-One Oval Ltd - The Hornchurch Nursing Centre_a,Adults,Adult Services,Adult Community Team,Support with Memory & Cognition,NURSING CARE INCOME
http://opendatacommunities.org/doc/london-borough-council/havering,London Borough of Havering,12/04/2019,1695.00,APR2019L606,HC-One Oval Ltd - The Hornchurch Nursing Centre_a,Adults,Adult Services,Adult Community Team,Support with Memory & Cognition,NURSING HOMES - PRIVATE CONTRACTORS PAYMENT
http://opendatacommunities.org/doc/london-borough-council/havering,London Borough of Havering,12/04/2019,-483.81,APR2019L607,HC-One Oval Ltd - The Hornchurch Nursing Centre_a,Adults,Adult Services,Adult Community Team,Support with Memory & Cognition,NURSING CARE INCOME
http://opendatacommunities.org/doc/london-borough-council/havering,London Borough of Havering,12/04/2019,1695.00,APR2019L608,HC-One Oval Ltd - The Hornchurch Nursing Centre_a,Adults,Adult Services,Adult Community Team,Support with Memory & Cognition,NURSING HOMES - PRIVATE CONTRACTORS PAYMENT
http://opendatacommunities.org/doc/london-borough-council/havering,London Borough of Havering,12/04/2019,-914.49,APR2019L609,HC-One Oval Ltd - The Hornchurch Nursing Centre_a,Adults,Adult Services,Adult Community Team,Physical Support,NURSING CARE INCOME
http://opendatacommunities.org/doc/london-borough-council/havering,London Borough of Havering,12/04/2019,1695.00,APR2019L610,HC-One Oval Ltd - The Hornchurch Nursing Centre_a,Adults,Adult Services,Adult Community Team,Physical Support,NURSING HOMES - PRIVATE CONTRACTORS PAYMENT
http://opendatacommunities.org/doc/london-borough-council/havering,London Borough of Havering,12/04/2019,-559.17,APR2019L611,HC-One Oval Ltd - The Hornchurch Nursing Centre_a,Adults,Adult Services,Adult Community Team,Support with Memory & Cognition,NURSING CARE INCOME
http://opendatacommunities.org/doc/london-borough-council/havering,London Borough of Havering,12/04/2019,1695.00,APR2019L612,HC-One Oval Ltd - The Hornchurch Nursing Centre_a,Adults,Adult Services,Adult Community Team,Support with Memory & Cognition,NURSING HOMES - PRIVATE CONTRACTORS PAYMENT
http://opendatacommunities.org/doc/london-borough-council/havering,London Borough of Havering,12/04/2019,-427.05,APR2019L613,HC-One Oval Ltd - The Hornchurch Nursing Centre_a,Adults,Adult Services,Adult Community Team,Physical Support,NURSING CARE INCOME
http://opendatacommunities.org/doc/london-borough-council/havering,London Borough of Havering,12/04/2019,1695.00,APR2019L614,HC-One Oval Ltd - The Hornchurch Nursing Centre_a,Adults,Adult Services,Adult Community Team,Physical Support,NURSING HOMES - PRIVATE CONTRACTORS PAYMENT
http://opendatacommunities.org/doc/london-borough-council/havering,London Borough of Havering,12/04/2019,-415.05,APR2019L615,HC-One Oval Ltd - The Hornchurch Nursing Centre_a,Adults,Adult Services,Adult Community Team,Support with Memory & Cognition,NURSING CARE INCOME
http://opendatacommunities.org/doc/london-borough-council/havering,London Borough of Havering,12/04/2019,1695.00,APR2019L616,HC-One Oval Ltd - The Hornchurch Nursing Centre_a,Adults,Adult Services,Adult Community Team,Support with Memory & Cognition,NURSING HOMES - PRIVATE CONTRACTORS PAYMENT
http://opendatacommunities.org/doc/london-borough-council/havering,London Borough of Havering,12/04/2019,-784.53,APR2019L617,HC-One Oval Ltd - The Hornchurch Nursing Centre_a,Adults,Adult Services,Adult Community Team,Physical Support,NURSING CARE INCOME
http://opendatacommunities.org/doc/london-borough-council/havering,London Borough of Havering,12/04/2019,1584.00,APR2019L618,HC-One Oval Ltd - The Hornchurch Nursing Centre_a,Adults,Adult Services,Adult Community Team,Physical Support,NURSING HOMES - PRIVATE CONTRACTORS PAYMENT
http://opendatacommunities.org/doc/london-borough-council/havering,London Borough of Havering,12/04/2019,-590.16,APR2019L619,HC-One Oval Ltd - The Hornchurch Nursing Centre_a,Adults,Adult Services,Adult Community Team,Support with Memory & Cognition,NURSING CARE INCOME
http://opendatacommunities.org/doc/london-borough-council/havering,London Borough of Havering,12/04/2019,1737.00,APR2019L620,HC-One Oval Ltd - The Hornchurch Nursing Centre_a,Adults,Adult Services,Adult Community Team,Support with Memory & Cognition,RESIDENTIAL PLACEMENTS - PRIVATE CONTRACTORS PAYMENT
http://opendatacommunities.org/doc/london-borough-council/havering,London Borough of Havering,12/04/2019,-412.05,APR2019L621,HC-One Oval Ltd - The Hornchurch Nursing Centre_a,Adults,Adult Services,Adult Community Team,Support with Memory & Cognition,RESIDENTIAL CARE INCOME
http://opendatacommunities.org/doc/london-borough-council/havering,London Borough of Havering,12/04/2019,1737.00,APR2019L622,HC-One Oval Ltd - The Hornchurch Nursing Centre_a,Adults,Adult Services,Adult Community Team,Support with Memory & Cognition,RESIDENTIAL PLACEMENTS - PRIVATE CONTRACTORS PAYMENT
http://opendatacommunities.org/doc/london-borough-council/havering,London Borough of Havering,12/04/2019,5657.14,APR2019L623,HC-One Oval Ltd - The Hornchurch Nursing Centre_a,Adults,Adult Services,Adult Community Team,Physical Support,NURSING HOMES - PRIVATE CONTRACTORS PAYMENT
http://opendatacommunities.org/doc/london-borough-council/havering,London Borough of Havering,12/04/2019,-5657.14,APR2019L624,HC-One Oval Ltd - The Hornchurch Nursing Centre_a,Adults,Adult Services,Adult Community Team,Physical Support,NURSING HOMES - PRIVATE CONTRACTORS PAYMENT
http://opendatacommunities.org/doc/london-borough-council/havering,London Borough of Havering,12/04/2019,578.97,APR2019L625,HC-One Oval Ltd - The Hornchurch Nursing Centre_a,Adults,Adult Services,Adult Community Team,Support with Memory & Cognition,RESPITE CARE - PRIVATE CONTRACTORS PAYMENT
http://opendatacommunities.org/doc/london-borough-council/havering,London Borough of Havering,12/04/2019,470.13,APR2019L626,Brandon House_a,Adults,Adult Services,Mental Health - Non Section 75,Mental Health Support,RESIDENTIAL PLACEMENTS - PRIVATE CONTRACTORS PAYMENT
http://opendatacommunities.org/doc/london-borough-council/havering,London Borough of Havering,12/04/2019,468.04,APR2019L627,Brandon House_a,Adults,Adult Services,Mental Health - Non Section 75,Mental Health Support,RESIDENTIAL PLACEMENTS - PRIVATE CONTRACTORS PAYMENT
http://opendatacommunities.org/doc/london-borough-council/havering,London Borough of Havering,12/04/2019,720.00,APR2019L628,Brandon House_a,Adults,Adult Services,Mental Health - Non Section 75,Mental Health Support,RESIDENTIAL PLACEMENTS - PRIVATE CONTRACTORS PAYMENT
http://opendatacommunities.org/doc/london-borough-council/havering,London Borough of Havering,12/04/2019,-432.39,APR2019L629,Brandon House_a,Adults,Adult Services,Mental Health - Non Section 75,Mental Health Support,RESIDENTIAL CARE INCOME
http://opendatacommunities.org/doc/london-borough-council/havering,London Borough of Havering,12/04/2019,1410.39,APR2019L630,Brandon House_a,Adults,Adult Services,Mental Health - Non Section 75,Mental Health Support,RESIDENTIAL PLACEMENTS - PRIVATE CONTRACTORS PAYMENT
http://opendatacommunities.org/doc/london-borough-council/havering,London Borough of Havering,12/04/2019,1404.12,APR2019L631,Brandon House_a,Adults,Adult Services,Mental Health - Non Section 75,Mental Health Support,RESIDENTIAL PLACEMENTS - PRIVATE CONTRACTORS PAYMENT
http://opendatacommunities.org/doc/london-borough-council/havering,London Borough of Havering,12/04/2019,471.51,APR2019L637,Larchwood Care Homes (South) Ltd - Brookes House_a,Adults,Adult Services,Adult Community Team,Physical Support,RESIDENTIAL PLACEMENTS - PRIVATE CONTRACTORS PAYMENT
http://opendatacommunities.org/doc/london-borough-council/havering,London Borough of Havering,12/04/2019,-456.93,APR2019L638,Larchwood Care Homes (South) Ltd - Brookes House_a,Adults,Adult Services,Adult Community Team,Physical Support,RESIDENTIAL CARE INCOME
http://opendatacommunities.org/doc/london-borough-council/havering,London Borough of Havering,12/04/2019,1414.53,APR2019L639,Larchwood Care Homes (South) Ltd - Brookes House_a,Adults,Adult Services,Adult Community Team,Physical Support,RESIDENTIAL PLACEMENTS - PRIVATE CONTRACTORS PAYMENT
http://opendatacommunities.org/doc/london-borough-council/havering,London Borough of Havering,12/04/2019,565.00,APR2019L640,Highfield Care Homes Ltd t/a Romford Grange Care Home_a,Adults,Adult Services,Learning Disabilities,Sensory Support,NURSING HOMES - PRIVATE CONTRACTORS PAYMENT
http://opendatacommunities.org/doc/london-borough-council/havering,London Borough of Havering,12/04/2019,528.00,APR2019L641,Highfield Care Homes Ltd t/a Romford Grange Care Home_a,Adults,Adult Services,Adult Community Team,Physical Support,NURSING HOMES - PRIVATE CONTRACTORS PAYMENT
http://opendatacommunities.org/doc/london-borough-council/havering,London Borough of Havering,12/04/2019,565.00,APR2019L642,Highfield Care Homes Ltd t/a Romford Grange Care Home_a,Adults,Adult Services,Adult Community Team,Support with Memory & Cognition,NURSING HOMES - PRIVATE CONTRACTORS PAYMENT
http://opendatacommunities.org/doc/london-borough-council/havering,London Borough of Havering,12/04/2019,565.00,APR2019L643,Highfield Care Homes Ltd t/a Romford Grange Care Home_a,Adults,Adult Services,Adult Community Team,Support with Memory & Cognition,NURSING HOMES - PRIVATE CONTRACTORS PAYMENT
http://opendatacommunities.org/doc/london-borough-council/havering,London Borough of Havering,12/04/2019,565.00,APR2019L644,Highfield Care Homes Ltd t/a Romford Grange Care Home_a,Adults,Adult Services,Adult Community Team,Support with Memory & Cognition,NURSING HOMES - PRIVATE CONTRACTORS PAYMENT
http://opendatacommunities.org/doc/london-borough-council/havering,London Borough of Havering,12/04/2019,579.00,APR2019L645,Highfield Care Homes Ltd t/a Romford Grange Care Home_a,Adults,Adult Services,Adult Community Team,Support with Memory & Cognition,RESIDENTIAL PLACEMENTS - PRIVATE CONTRACTORS PAYMENT
http://opendatacommunities.org/doc/london-borough-council/havering,London Borough of Havering,12/04/2019,2100.00,APR2019L646,Highfield Care Homes Ltd t/a Romford Grange Care Home_a,Adults,Adult Services,Learning Disabilities,Learning Disability Support,NURSING HOMES - PRIVATE CONTRACTORS PAYMENT
http://opendatacommunities.org/doc/london-borough-council/havering,London Borough of Havering,12/04/2019,2316.00,APR2019L647,Highfield Care Homes Ltd t/a Romford Grange Care Home_a,Adults,Adult Services,Adult Community Team,Support with Memory & Cognition,RESIDENTIAL PLACEMENTS - PRIVATE CONTRACTORS PAYMENT
http://opendatacommunities.org/doc/london-borough-council/havering,London Borough of Havering,12/04/2019,2112.00,APR2019L648,Highfield Care Homes Ltd t/a Romford Grange Care Home_a,Adults,Adult Services,Adult Community Team,Physical Support,NURSING HOMES - PRIVATE CONTRACTORS PAYMENT
http://opendatacommunities.org/doc/london-borough-council/havering,London Borough of Havering,12/04/2019,2112.00,APR2019L649,Highfield Care Homes Ltd t/a Romford Grange Care Home_a,Adults,Adult Services,Adult Community Team,Physical Support,NURSING HOMES - PRIVATE CONTRACTORS PAYMENT
http://opendatacommunities.org/doc/london-borough-council/havering,London Borough of Havering,12/04/2019,2112.00,APR2019L650,Highfield Care Homes Ltd t/a Romford Grange Care Home_a,Adults,Adult Services,Adult Community Team,Physical Support,NURSING HOMES - PRIVATE CONTRACTORS PAYMENT
http://opendatacommunities.org/doc/london-borough-council/havering,London Borough of Havering,12/04/2019,2260.00,APR2019L651,Highfield Care Homes Ltd t/a Romford Grange Care Home_a,Adults,Adult Services,Adult Community Team,Support with Memory & Cognition,NURSING HOMES - PRIVATE CONTRACTORS PAYMENT
http://opendatacommunities.org/doc/london-borough-council/havering,London Borough of Havering,12/04/2019,2112.00,APR2019L652,Highfield Care Homes Ltd t/a Romford Grange Care Home_a,Adults,Adult Services,Adult Community Team,Physical Support,NURSING HOMES - PRIVATE CONTRACTORS PAYMENT
http://opendatacommunities.org/doc/london-borough-council/havering,London Borough of Havering,12/04/2019,2260.00,APR2019L653,Highfield Care Homes Ltd t/a Romford Grange Care Home_a,Adults,Adult Services,Adult Community Team,Support with Memory & Cognition,NURSING HOMES - PRIVATE CONTRACTORS PAYMENT
http://opendatacommunities.org/doc/london-borough-council/havering,London Borough of Havering,12/04/2019,2112.00,APR2019L654,Highfield Care Homes Ltd t/a Romford Grange Care Home_a,Adults,Adult Services,Adult Community Team,Physical Support,NURSING HOMES - PRIVATE CONTRACTORS PAYMENT
http://opendatacommunities.org/doc/london-borough-council/havering,London Borough of Havering,12/04/2019,-439.65,APR2019L655,Highfield Care Homes Ltd t/a Romford Grange Care Home_a,Adults,Adult Services,Learning Disabilities,Sensory Support,NURSING CARE INCOME
http://opendatacommunities.org/doc/london-borough-council/havering,London Borough of Havering,12/04/2019,1695.00,APR2019L656,Highfield Care Homes Ltd t/a Romford Grange Care Home_a,Adults,Adult Services,Learning Disabilities,Sensory Support,NURSING HOMES - PRIVATE CONTRACTORS PAYMENT
http://opendatacommunities.org/doc/london-borough-council/havering,London Borough of Havering,12/04/2019,-427.05,APR2019L657,Highfield Care Homes Ltd t/a Romford Grange Care Home_a,Adults,Adult Services,Adult Community Team,Physical Support,NURSING CARE INCOME
http://opendatacommunities.org/doc/london-borough-council/havering,London Borough of Havering,12/04/2019,1584.00,APR2019L658,Highfield Care Homes Ltd t/a Romford Grange Care Home_a,Adults,Adult Services,Adult Community Team,Physical Support,NURSING HOMES - PRIVATE CONTRACTORS PAYMENT
http://opendatacommunities.org/doc/london-borough-council/havering,London Borough of Havering,12/04/2019,-748.77,APR2019L659,Highfield Care Homes Ltd t/a Romford Grange Care Home_a,Adults,Adult Services,Adult Community Team,Support with Memory & Cognition,NURSING CARE INCOME
http://opendatacommunities.org/doc/london-borough-council/havering,London Borough of Havering,12/04/2019,1695.00,APR2019L660,Highfield Care Homes Ltd t/a Romford Grange Care Home_a,Adults,Adult Services,Adult Community Team,Support with Memory & Cognition,NURSING HOMES - PRIVATE CONTRACTORS PAYMENT
http://opendatacommunities.org/doc/london-borough-council/havering,London Borough of Havering,12/04/2019,-427.05,APR2019L661,Highfield Care Homes Ltd t/a Romford Grange Care Home_a,Adults,Adult Services,Adult Community Team,Support with Memory & Cognition,NURSING CARE INCOME
http://opendatacommunities.org/doc/london-borough-council/havering,London Borough of Havering,12/04/2019,1695.00,APR2019L662,Highfield Care Homes Ltd t/a Romford Grange Care Home_a,Adults,Adult Services,Adult Community Team,Support with Memory & Cognition,NURSING HOMES - PRIVATE CONTRACTORS PAYMENT
http://opendatacommunities.org/doc/london-borough-council/havering,London Borough of Havering,12/04/2019,-625.65,APR2019L663,Highfield Care Homes Ltd t/a Romford Grange Care Home_a,Adults,Adult Services,Adult Community Team,Support with Memory & Cognition,NURSING CARE INCOME
http://opendatacommunities.org/doc/london-borough-council/havering,London Borough of Havering,12/04/2019,1695.00,APR2019L664,Highfield Care Homes Ltd t/a Romford Grange Care Home_a,Adults,Adult Services,Adult Community Team,Support with Memory & Cognition,NURSING HOMES - PRIVATE CONTRACTORS PAYMENT
http://opendatacommunities.org/doc/london-borough-council/havering,London Borough of Havering,12/04/2019,-427.05,APR2019L665,Highfield Care Homes Ltd t/a Romford Grange Care Home_a,Adults,Adult Services,Adult Community Team,Support with Memory & Cognition,RESIDENTIAL CARE INCOME
http://opendatacommunities.org/doc/london-borough-council/havering,London Borough of Havering,12/04/2019,1737.00,APR2019L666,Highfield Care Homes Ltd t/a Romford Grange Care Home_a,Adults,Adult Services,Adult Community Team,Support with Memory & Cognition,RESIDENTIAL PLACEMENTS - PRIVATE CONTRACTORS PAYMENT
http://opendatacommunities.org/doc/london-borough-council/havering,London Borough of Havering,12/04/2019,-1856.43,APR2019L667,Highfield Care Homes Ltd t/a Romford Grange Care Home_a,Adults,Adult Services,Adult Community Team,Support with Memory & Cognition,NURSING HOMES - PRIVATE CONTRACTORS PAYMENT
http://opendatacommunities.org/doc/london-borough-council/havering,London Borough of Havering,12/04/2019,472.26,APR2019L668,Highfield Care Homes Ltd t/a Romford Grange Care Home_a,Adults,Adult Services,Adult Community Team,Support with Memory & Cognition,NURSING CARE INCOME
http://opendatacommunities.org/doc/london-borough-council/havering,London Borough of Havering,12/04/2019,4323.60,APR2019L683,Ashdene House Ltd_a,Adults,Adult Services,Learning Disabilities,Learning Disability Support,RESIDENTIAL PLACEMENTS - PRIVATE CONTRACTORS PAYMENT
http://opendatacommunities.org/doc/london-borough-council/havering,London Borough of Havering,05/04/2019,660.00,APR2019L684,Care-Away Ltd T/A Care Support_a,Adults,Adult Services,Strategy and Commissioning,Adult Community Commissioning,PRIVATE CONTRACTORS PAYMENT - OTHER
http://opendatacommunities.org/doc/london-borough-council/havering,London Borough of Havering,03/04/2019,630.00,APR2019L685,Care-Away Ltd T/A Care Support_a,Adults,Adult Services,Strategy and Commissioning,Adult Community Commissioning,PRIVATE CONTRACTORS PAYMENT - OTHER
http://opendatacommunities.org/doc/london-borough-council/havering,London Borough of Havering,03/04/2019,630.00,APR2019L686,Care-Away Ltd T/A Care Support_a,Adults,Adult Services,Strategy and Commissioning,Adult Community Commissioning,PRIVATE CONTRACTORS PAYMENT - OTHER
http://opendatacommunities.org/doc/london-borough-council/havering,London Borough of Havering,03/04/2019,1680.00,APR2019L687,Care-Away Ltd T/A Care Support_a,Adults,Adult Services,Strategy and Commissioning,Adult Community Commissioning,PRIVATE CONTRACTORS PAYMENT - OTHER
http://opendatacommunities.org/doc/london-borough-council/havering,London Borough of Havering,03/04/2019,840.00,APR2019L688,Care-Away Ltd T/A Care Support_a,Adults,Adult Services,Strategy and Commissioning,Adult Community Commissioning,PRIVATE CONTRACTORS PAYMENT - OTHER
http://opendatacommunities.org/doc/london-borough-council/havering,London Borough of Havering,03/04/2019,420.00,APR2019L689,Care-Away Ltd T/A Care Support_a,Adults,Adult Services,Strategy and Commissioning,Adult Community Commissioning,PRIVATE CONTRACTORS PAYMENT - OTHER
http://opendatacommunities.org/doc/london-borough-council/havering,London Borough of Havering,03/04/2019,630.00,APR2019L690,Care-Away Ltd T/A Care Support_a,Adults,Adult Services,Strategy and Commissioning,Adult Community Commissioning,PRIVATE CONTRACTORS PAYMENT - OTHER
http://opendatacommunities.org/doc/london-borough-council/havering,London Borough of Havering,03/04/2019,630.00,APR2019L691,Care-Away Ltd T/A Care Support_a,Adults,Adult Services,Strategy and Commissioning,Adult Community Commissioning,PRIVATE CONTRACTORS PAYMENT - OTHER
http://opendatacommunities.org/doc/london-borough-council/havering,London Borough of Havering,03/04/2019,1680.00,APR2019L692,Care-Away Ltd T/A Care Support_a,Adults,Adult Services,Strategy and Commissioning,Adult Community Commissioning,PRIVATE CONTRACTORS PAYMENT - OTHER
http://opendatacommunities.org/doc/london-borough-council/havering,London Borough of Havering,03/04/2019,840.00,APR2019L693,Care-Away Ltd T/A Care Support_a,Adults,Adult Services,Strategy and Commissioning,Adult Community Commissioning,PRIVATE CONTRACTORS PAYMENT - OTHER
http://opendatacommunities.org/doc/london-borough-council/havering,London Borough of Havering,03/04/2019,667.50,APR2019L694,Care-Away Ltd T/A Care Support_a,Adults,Adult Services,Strategy and Commissioning,Adult Community Commissioning,PRIVATE CONTRACTORS PAYMENT - OTHER
http://opendatacommunities.org/doc/london-borough-council/havering,London Borough of Havering,03/04/2019,420.00,APR2019L695,Care-Away Ltd T/A Care Support_a,Adults,Adult Services,Strategy and Commissioning,Adult Community Commissioning,PRIVATE CONTRACTORS PAYMENT - OTHER
http://opendatacommunities.org/doc/london-borough-council/havering,London Borough of Havering,03/04/2019,840.00,APR2019L696,Care-Away Ltd T/A Care Support_a,Adults,Adult Services,Strategy and Commissioning,Adult Community Commissioning,PRIVATE CONTRACTORS PAYMENT - OTHER
http://opendatacommunities.org/doc/london-borough-council/havering,London Borough of Havering,03/04/2019,1440.00,APR2019L697,Care-Away Ltd T/A Care Support_a,Adults,Adult Services,Strategy and Commissioning,Adult Community Commissioning,PRIVATE CONTRACTORS PAYMENT - OTHER
http://opendatacommunities.org/doc/london-borough-council/havering,London Borough of Havering,03/04/2019,630.00,APR2019L698,Care-Away Ltd T/A Care Support_a,Adults,Adult Services,Strategy and Commissioning,Adult Community Commissioning,PRIVATE CONTRACTORS PAYMENT - OTHER
http://opendatacommunities.org/doc/london-borough-council/havering,London Borough of Havering,03/04/2019,750.00,APR2019L699,Care-Away Ltd T/A Care Support_a,Adults,Adult Services,Strategy and Commissioning,Adult Community Commissioning,PRIVATE CONTRACTORS PAYMENT - OTHER
http://opendatacommunities.org/doc/london-borough-council/havering,London Borough of Havering,03/04/2019,1740.00,APR2019L700,Care-Away Ltd T/A Care Support_a,Adults,Adult Services,Strategy and Commissioning,Adult Community Commissioning,PRIVATE CONTRACTORS PAYMENT - OTHER
http://opendatacommunities.org/doc/london-borough-council/havering,London Borough of Havering,03/04/2019,630.00,APR2019L701,Care-Away Ltd T/A Care Support_a,Adults,Adult Services,Strategy and Commissioning,Adult Community Commissioning,PRIVATE CONTRACTORS PAYMENT - OTHER
http://opendatacommunities.org/doc/london-borough-council/havering,London Borough of Havering,03/04/2019,630.00,APR2019L702,Care-Away Ltd T/A Care Support_a,Adults,Adult Services,Strategy and Commissioning,Adult Community Commissioning,PRIVATE CONTRACTORS PAYMENT - OTHER
http://opendatacommunities.org/doc/london-borough-council/havering,London Borough of Havering,03/04/2019,615.00,APR2019L703,Care-Away Ltd T/A Care Support_a,Adults,Adult Services,Strategy and Commissioning,Adult Community Commissioning,PRIVATE CONTRACTORS PAYMENT - OTHER
http://opendatacommunities.org/doc/london-borough-council/havering,London Borough of Havering,03/04/2019,525.00,APR2019L704,Care-Away Ltd T/A Care Support_a,Adults,Adult Services,Strategy and Commissioning,Adult Community Commissioning,PRIVATE CONTRACTORS PAYMENT - OTHER
http://opendatacommunities.org/doc/london-borough-council/havering,London Borough of Havering,03/04/2019,525.00,APR2019L705,Care-Away Ltd T/A Care Support_a,Adults,Adult Services,Strategy and Commissioning,Adult Community Commissioning,PRIVATE CONTRACTORS PAYMENT - OTHER
http://opendatacommunities.org/doc/london-borough-council/havering,London Borough of Havering,03/04/2019,420.00,APR2019L706,Care-Away Ltd T/A Care Support_a,Adults,Adult Services,Strategy and Commissioning,Adult Community Commissioning,PRIVATE CONTRACTORS PAYMENT - OTHER
http://opendatacommunities.org/doc/london-borough-council/havering,London Borough of Havering,03/04/2019,510.00,APR2019L707,Care-Away Ltd T/A Care Support_a,Adults,Adult Services,Strategy and Commissioning,Adult Community Commissioning,PRIVATE CONTRACTORS PAYMENT - OTHER
http://opendatacommunities.org/doc/london-borough-council/havering,London Borough of Havering,03/04/2019,525.00,APR2019L708,Care-Away Ltd T/A Care Support_a,Adults,Adult Services,Strategy and Commissioning,Adult Community Commissioning,PRIVATE CONTRACTORS PAYMENT - OTHER
http://opendatacommunities.org/doc/london-borough-council/havering,London Borough of Havering,03/04/2019,1530.00,APR2019L709,Care-Away Ltd T/A Care Support_a,Adults,Adult Services,Strategy and Commissioning,Adult Community Commissioning,PRIVATE CONTRACTORS PAYMENT - OTHER
http://opendatacommunities.org/doc/london-borough-council/havering,London Borough of Havering,03/04/2019,1530.00,APR2019L710,Care-Away Ltd T/A Care Support_a,Adults,Adult Services,Strategy and Commissioning,Adult Community Commissioning,PRIVATE CONTRACTORS PAYMENT - OTHER
http://opendatacommunities.org/doc/london-borough-council/havering,London Borough of Havering,03/04/2019,540.00,APR2019L711,Care-Away Ltd T/A Care Support_a,Adults,Adult Services,Strategy and Commissioning,Adult Community Commissioning,PRIVATE CONTRACTORS PAYMENT - OTHER
http://opendatacommunities.org/doc/london-borough-council/havering,London Borough of Havering,03/04/2019,1680.00,APR2019L712,Care-Away Ltd T/A Care Support_a,Adults,Adult Services,Strategy and Commissioning,Adult Community Commissioning,PRIVATE CONTRACTORS PAYMENT - OTHER
http://opendatacommunities.org/doc/london-borough-council/havering,London Borough of Havering,03/04/2019,630.00,APR2019L713,Care-Away Ltd T/A Care Support_a,Adults,Adult Services,Strategy and Commissioning,Adult Community Commissioning,PRIVATE CONTRACTORS PAYMENT - OTHER
http://opendatacommunities.org/doc/london-borough-council/havering,London Borough of Havering,03/04/2019,630.00,APR2019L714,Care-Away Ltd T/A Care Support_a,Adults,Adult Services,Strategy and Commissioning,Adult Community Commissioning,PRIVATE CONTRACTORS PAYMENT - OTHER
http://opendatacommunities.org/doc/london-borough-council/havering,London Borough of Havering,03/04/2019,690.00,APR2019L715,Care-Away Ltd T/A Care Support_a,Adults,Adult Services,Strategy and Commissioning,Adult Community Commissioning,PRIVATE CONTRACTORS PAYMENT - OTHER
http://opendatacommunities.org/doc/london-borough-council/havering,London Borough of Havering,03/04/2019,450.00,APR2019L716,Care-Away Ltd T/A Care Support_a,Adults,Adult Services,Strategy and Commissioning,Adult Community Commissioning,PRIVATE CONTRACTORS PAYMENT - OTHER
http://opendatacommunities.org/doc/london-borough-council/havering,London Borough of Havering,03/04/2019,1680.00,APR2019L717,Care-Away Ltd T/A Care Support_a,Adults,Adult Services,Strategy and Commissioning,Adult Community Commissioning,PRIVATE CONTRACTORS PAYMENT - OTHER
http://opendatacommunities.org/doc/london-borough-council/havering,London Borough of Havering,03/04/2019,1950.00,APR2019L718,Care-Away Ltd T/A Care Support_a,Adults,Adult Services,Strategy and Commissioning,Adult Community Commissioning,PRIVATE CONTRACTORS PAYMENT - OTHER
http://opendatacommunities.org/doc/london-borough-council/havering,London Borough of Havering,03/04/2019,525.00,APR2019L719,Care-Away Ltd T/A Care Support_a,Adults,Adult Services,Strategy and Commissioning,Adult Community Commissioning,PRIVATE CONTRACTORS PAYMENT - OTHER
http://opendatacommunities.org/doc/london-borough-council/havering,London Borough of Havering,03/04/2019,840.00,APR2019L720,Care-Away Ltd T/A Care Support_a,Adults,Adult Services,Strategy and Commissioning,Adult Community Commissioning,PRIVATE CONTRACTORS PAYMENT - OTHER
http://opendatacommunities.org/doc/london-borough-council/havering,London Borough of Havering,05/04/2019,521.25,APR2019L721,Care-Away Ltd T/A Care Support_a,Adults,Adult Services,Strategy and Commissioning,Adult Community Commissioning,PRIVATE CONTRACTORS PAYMENT - OTHER
http://opendatacommunities.org/doc/london-borough-council/havering,London Borough of Havering,05/04/2019,551.25,APR2019L722,Care-Away Ltd T/A Care Support_a,Adults,Adult Services,Strategy and Commissioning,Adult Community Commissioning,PRIVATE CONTRACTORS PAYMENT - OTHER
http://opendatacommunities.org/doc/london-borough-council/havering,London Borough of Havering,05/04/2019,420.00,APR2019L723,Care-Away Ltd T/A Care Support_a,Adults,Adult Services,Strategy and Commissioning,Adult Community Commissioning,PRIVATE CONTRACTORS PAYMENT - OTHER
http://opendatacommunities.org/doc/london-borough-council/havering,London Borough of Havering,05/04/2019,960.10,APR2019L724,Care-Away Ltd T/A Care Support_a,Adults,Adult Services,Strategy and Commissioning,Adult Community Commissioning,PRIVATE CONTRACTORS PAYMENT - OTHER
http://opendatacommunities.org/doc/london-borough-council/havering,London Borough of Havering,05/04/2019,476.25,APR2019L725,Care-Away Ltd T/A Care Support_a,Adults,Adult Services,Strategy and Commissioning,Adult Community Commissioning,PRIVATE CONTRACTORS PAYMENT - OTHER
http://opendatacommunities.org/doc/london-borough-council/havering,London Borough of Havering,05/04/2019,630.00,APR2019L726,Care-Away Ltd T/A Care Support_a,Adults,Adult Services,Strategy and Commissioning,Adult Community Commissioning,PRIVATE CONTRACTORS PAYMENT - OTHER
http://opendatacommunities.org/doc/london-borough-council/havering,London Borough of Havering,05/04/2019,772.50,APR2019L727,Care-Away Ltd T/A Care Support_a,Adults,Adult Services,Strategy and Commissioning,Adult Community Commissioning,PRIVATE CONTRACTORS PAYMENT - OTHER
http://opendatacommunities.org/doc/london-borough-council/havering,London Borough of Havering,05/04/2019,941.25,APR2019L728,Care-Away Ltd T/A Care Support_a,Adults,Adult Services,Strategy and Commissioning,Adult Community Commissioning,PRIVATE CONTRACTORS PAYMENT - OTHER
http://opendatacommunities.org/doc/london-borough-council/havering,London Borough of Havering,05/04/2019,787.50,APR2019L729,Care-Away Ltd T/A Care Support_a,Adults,Adult Services,Strategy and Commissioning,Adult Community Commissioning,PRIVATE CONTRACTORS PAYMENT - OTHER
http://opendatacommunities.org/doc/london-borough-council/havering,London Borough of Havering,05/04/2019,472.50,APR2019L730,Care-Away Ltd T/A Care Support_a,Adults,Adult Services,Strategy and Commissioning,Adult Community Commissioning,PRIVATE CONTRACTORS PAYMENT - OTHER
http://opendatacommunities.org/doc/london-borough-council/havering,London Borough of Havering,05/04/2019,1665.00,APR2019L731,Care-Away Ltd T/A Care Support_a,Adults,Adult Services,Strategy and Commissioning,Adult Community Commissioning,PRIVATE CONTRACTORS PAYMENT - OTHER
http://opendatacommunities.org/doc/london-borough-council/havering,London Borough of Havering,05/04/2019,401.25,APR2019L732,Care-Away Ltd T/A Care Support_a,Adults,Adult Services,Strategy and Commissioning,Adult Community Commissioning,PRIVATE CONTRACTORS PAYMENT - OTHER
http://opendatacommunities.org/doc/london-borough-council/havering,London Borough of Havering,05/04/2019,1777.50,APR2019L733,Care-Away Ltd T/A Care Support_a,Adults,Adult Services,Strategy and Commissioning,Adult Community Commissioning,PRIVATE CONTRACTORS PAYMENT - OTHER
http://opendatacommunities.org/doc/london-borough-council/havering,London Borough of Havering,05/04/2019,1342.40,APR2019L734,Care-Away Ltd T/A Care Support_a,Adults,Adult Services,Strategy and Commissioning,Adult Community Commissioning,PRIVATE CONTRACTORS PAYMENT - OTHER
http://opendatacommunities.org/doc/london-borough-council/havering,London Borough of Havering,05/04/2019,941.25,APR2019L735,Care-Away Ltd T/A Care Support_a,Adults,Adult Services,Strategy and Commissioning,Adult Community Commissioning,PRIVATE CONTRACTORS PAYMENT - OTHER
http://opendatacommunities.org/doc/london-borough-council/havering,London Borough of Havering,05/04/2019,453.06,APR2019L736,Care-Away Ltd T/A Care Support_a,Adults,Adult Services,Strategy and Commissioning,Adult Community Commissioning,PRIVATE CONTRACTORS PAYMENT - OTHER
http://opendatacommunities.org/doc/london-borough-council/havering,London Borough of Havering,05/04/2019,1023.75,APR2019L737,Care-Away Ltd T/A Care Support_a,Adults,Adult Services,Strategy and Commissioning,Adult Community Commissioning,PRIVATE CONTRACTORS PAYMENT - OTHER
http://opendatacommunities.org/doc/london-borough-council/havering,London Borough of Havering,05/04/2019,1256.25,APR2019L738,Care-Away Ltd T/A Care Support_a,Adults,Adult Services,Strategy and Commissioning,Adult Community Commissioning,PRIVATE CONTRACTORS PAYMENT - OTHER
http://opendatacommunities.org/doc/london-borough-council/havering,London Borough of Havering,05/04/2019,1792.50,APR2019L739,Care-Away Ltd T/A Care Support_a,Adults,Adult Services,Strategy and Commissioning,Adult Community Commissioning,PRIVATE CONTRACTORS PAYMENT - OTHER
http://opendatacommunities.org/doc/london-borough-council/havering,London Borough of Havering,05/04/2019,487.50,APR2019L740,Care-Away Ltd T/A Care Support_a,Adults,Adult Services,Strategy and Commissioning,Adult Community Commissioning,PRIVATE CONTRACTORS PAYMENT - OTHER
http://opendatacommunities.org/doc/london-borough-council/havering,London Borough of Havering,05/04/2019,1365.00,APR2019L741,Care-Away Ltd T/A Care Support_a,Adults,Adult Services,Strategy and Commissioning,Adult Community Commissioning,PRIVATE CONTRACTORS PAYMENT - OTHER
http://opendatacommunities.org/doc/london-borough-council/havering,London Borough of Havering,05/04/2019,1890.00,APR2019L742,Care-Away Ltd T/A Care Support_a,Adults,Adult Services,Strategy and Commissioning,Adult Community Commissioning,PRIVATE CONTRACTORS PAYMENT - OTHER
http://opendatacommunities.org/doc/london-borough-council/havering,London Borough of Havering,05/04/2019,1777.50,APR2019L743,Care-Away Ltd T/A Care Support_a,Adults,Adult Services,Strategy and Commissioning,Adult Community Commissioning,PRIVATE CONTRACTORS PAYMENT - OTHER
http://opendatacommunities.org/doc/london-borough-council/havering,London Borough of Havering,05/04/2019,660.00,APR2019L744,Care-Away Ltd T/A Care Support_a,Adults,Adult Services,Strategy and Commissioning,Adult Community Commissioning,PRIVATE CONTRACTORS PAYMENT - OTHER
http://opendatacommunities.org/doc/london-borough-council/havering,London Borough of Havering,05/04/2019,1170.00,APR2019L745,Care-Away Ltd T/A Care Support_a,Adults,Adult Services,Strategy and Commissioning,Adult Community Commissioning,PRIVATE CONTRACTORS PAYMENT - OTHER
http://opendatacommunities.org/doc/london-borough-council/havering,London Borough of Havering,05/04/2019,2921.25,APR2019L746,Care-Away Ltd T/A Care Support_a,Adults,Adult Services,Strategy and Commissioning,Adult Community Commissioning,PRIVATE CONTRACTORS PAYMENT - OTHER
http://opendatacommunities.org/doc/london-borough-council/havering,London Borough of Havering,05/04/2019,2253.75,APR2019L747,Care-Away Ltd T/A Care Support_a,Adults,Adult Services,Strategy and Commissioning,Adult Community Commissioning,PRIVATE CONTRACTORS PAYMENT - OTHER
http://opendatacommunities.org/doc/london-borough-council/havering,London Borough of Havering,05/04/2019,851.25,APR2019L748,Care-Away Ltd T/A Care Support_a,Adults,Adult Services,Strategy and Commissioning,Adult Community Commissioning,PRIVATE CONTRACTORS PAYMENT - OTHER
http://opendatacommunities.org/doc/london-borough-council/havering,London Borough of Havering,05/04/2019,405.00,APR2019L749,Care-Away Ltd T/A Care Support_a,Adults,Adult Services,Strategy and Commissioning,Adult Community Commissioning,PRIVATE CONTRACTORS PAYMENT - OTHER
http://opendatacommunities.org/doc/london-borough-council/havering,London Borough of Havering,05/04/2019,2467.50,APR2019L750,Care-Away Ltd T/A Care Support_a,Adults,Adult Services,Strategy and Commissioning,Adult Community Commissioning,PRIVATE CONTRACTORS PAYMENT - OTHER
http://opendatacommunities.org/doc/london-borough-council/havering,London Borough of Havering,05/04/2019,412.50,APR2019L751,Care-Away Ltd T/A Care Support_a,Adults,Adult Services,Strategy and Commissioning,Adult Community Commissioning,PRIVATE CONTRACTORS PAYMENT - OTHER
http://opendatacommunities.org/doc/london-borough-council/havering,London Borough of Havering,10/04/2019,438.75,APR2019L752,Care-Away Ltd T/A Care Support_a,Adults,Adult Services,Strategy and Commissioning,Adult Community Commissioning,PRIVATE CONTRACTORS PAYMENT - OTHER
http://opendatacommunities.org/doc/london-borough-council/havering,London Borough of Havering,01/04/2019,3314.42,APR2019L763,Havering Mind_a,Adults,Adult Services,Strategy and Commissioning,Mental Health Commissioning,PAYMENTS TO VOLUNTARY SECTOR
http://opendatacommunities.org/doc/london-borough-council/havering,London Borough of Havering,01/04/2019,3332.58,APR2019L764,Havering Mind_a,Adults,Adult Services,Strategy and Commissioning,Mental Health Commissioning,PAYMENTS TO VOLUNTARY SECTOR
http://opendatacommunities.org/doc/london-borough-council/havering,London Borough of Havering,26/04/2019,3314.42,APR2019L765,Havering Mind_a,Adults,Adult Services,Strategy and Commissioning,Mental Health Commissioning,PAYMENTS TO VOLUNTARY SECTOR
http://opendatacommunities.org/doc/london-borough-council/havering,London Borough of Havering,26/04/2019,3332.58,APR2019L766,Havering Mind_a,Adults,Adult Services,Strategy and Commissioning,Mental Health Commissioning,PAYMENTS TO VOLUNTARY SECTOR
http://opendatacommunities.org/doc/london-borough-council/havering,London Borough of Havering,12/04/2019,-1107.32,APR2019L767,Beechcourt Care Centre - Bondcare_a,Adults,Adult Services,Adult Community Team,Physical Support,NURSING CARE INCOME
http://opendatacommunities.org/doc/london-borough-council/havering,London Borough of Havering,12/04/2019,2338.29,APR2019L768,Beechcourt Care Centre - Bondcare_a,Adults,Adult Services,Adult Community Team,Physical Support,NURSING HOMES - PRIVATE CONTRACTORS PAYMENT
http://opendatacommunities.org/doc/london-borough-council/havering,London Borough of Havering,12/04/2019,565.00,APR2019L769,Beechcourt Care Centre - Bondcare_a,Adults,Adult Services,Adult Community Team,Support with Memory & Cognition,NURSING HOMES - PRIVATE CONTRACTORS PAYMENT
http://opendatacommunities.org/doc/london-borough-council/havering,London Borough of Havering,12/04/2019,528.00,APR2019L770,Beechcourt Care Centre - Bondcare_a,Adults,Adult Services,Adult Community Team,Physical Support,NURSING HOMES - PRIVATE CONTRACTORS PAYMENT
http://opendatacommunities.org/doc/london-borough-council/havering,London Borough of Havering,12/04/2019,528.00,APR2019L771,Beechcourt Care Centre - Bondcare_a,Adults,Adult Services,Adult Community Team,Physical Support,NURSING HOMES - PRIVATE CONTRACTORS PAYMENT
http://opendatacommunities.org/doc/london-borough-council/havering,London Borough of Havering,12/04/2019,528.00,APR2019L772,Beechcourt Care Centre - Bondcare_a,Adults,Adult Services,Adult Community Team,Physical Support,NURSING HOMES - PRIVATE CONTRACTORS PAYMENT
http://opendatacommunities.org/doc/london-borough-council/havering,London Borough of Havering,12/04/2019,565.00,APR2019L773,Beechcourt Care Centre - Bondcare_a,Adults,Adult Services,Adult Community Team,Support with Memory & Cognition,NURSING HOMES - PRIVATE CONTRACTORS PAYMENT
http://opendatacommunities.org/doc/london-borough-council/havering,London Borough of Havering,12/04/2019,565.00,APR2019L774,Beechcourt Care Centre - Bondcare_a,Adults,Adult Services,Adult Community Team,Support with Memory & Cognition,NURSING HOMES - PRIVATE CONTRACTORS PAYMENT
http://opendatacommunities.org/doc/london-borough-council/havering,London Borough of Havering,12/04/2019,528.00,APR2019L775,Beechcourt Care Centre - Bondcare_a,Adults,Adult Services,Adult Community Team,Physical Support,NURSING HOMES - PRIVATE CONTRACTORS PAYMENT
http://opendatacommunities.org/doc/london-borough-council/havering,London Borough of Havering,12/04/2019,565.00,APR2019L776,Beechcourt Care Centre - Bondcare_a,Adults,Adult Services,Adult Community Team,Support with Memory & Cognition,NURSING HOMES - PRIVATE CONTRACTORS PAYMENT
http://opendatacommunities.org/doc/london-borough-council/havering,London Borough of Havering,12/04/2019,565.00,APR2019L777,Beechcourt Care Centre - Bondcare_a,Adults,Adult Services,Adult Community Team,Support with Memory & Cognition,NURSING HOMES - PRIVATE CONTRACTORS PAYMENT
http://opendatacommunities.org/doc/london-borough-council/havering,London Borough of Havering,12/04/2019,565.00,APR2019L778,Beechcourt Care Centre - Bondcare_a,Adults,Adult Services,Adult Community Team,Support with Memory & Cognition,NURSING HOMES - PRIVATE CONTRACTORS PAYMENT
http://opendatacommunities.org/doc/london-borough-council/havering,London Borough of Havering,12/04/2019,565.00,APR2019L779,Beechcourt Care Centre - Bondcare_a,Adults,Adult Services,Adult Community Team,Support with Memory & Cognition,NURSING HOMES - PRIVATE CONTRACTORS PAYMENT
http://opendatacommunities.org/doc/london-borough-council/havering,London Borough of Havering,12/04/2019,2650.04,APR2019L780,Beechcourt Care Centre - Bondcare_a,Adults,Adult Services,Adult Community Team,Physical Support,NURSING HOMES - PRIVATE CONTRACTORS PAYMENT
http://opendatacommunities.org/doc/london-borough-council/havering,London Borough of Havering,12/04/2019,2833.60,APR2019L781,Beechcourt Care Centre - Bondcare_a,Adults,Adult Services,Adult Community Team,Physical Support,RESIDENTIAL PLACEMENTS - PRIVATE CONTRACTORS PAYMENT
http://opendatacommunities.org/doc/london-borough-council/havering,London Borough of Havering,12/04/2019,2580.00,APR2019L782,Beechcourt Care Centre - Bondcare_a,Adults,Adult Services,Adult Community Team,Physical Support,NURSING HOMES - PRIVATE CONTRACTORS PAYMENT
http://opendatacommunities.org/doc/london-borough-council/havering,London Borough of Havering,12/04/2019,2112.00,APR2019L783,Beechcourt Care Centre - Bondcare_a,Adults,Adult Services,Adult Community Team,Physical Support,NURSING HOMES - PRIVATE CONTRACTORS PAYMENT
http://opendatacommunities.org/doc/london-borough-council/havering,London Borough of Havering,12/04/2019,2260.00,APR2019L784,Beechcourt Care Centre - Bondcare_a,Adults,Adult Services,Adult Community Team,Support with Memory & Cognition,NURSING HOMES - PRIVATE CONTRACTORS PAYMENT
http://opendatacommunities.org/doc/london-borough-council/havering,London Borough of Havering,12/04/2019,2260.00,APR2019L785,Beechcourt Care Centre - Bondcare_a,Adults,Adult Services,Adult Community Team,Physical Support,NURSING HOMES - PRIVATE CONTRACTORS PAYMENT
http://opendatacommunities.org/doc/london-borough-council/havering,London Borough of Havering,12/04/2019,2260.00,APR2019L786,Beechcourt Care Centre - Bondcare_a,Adults,Adult Services,Adult Community Team,Support with Memory & Cognition,NURSING HOMES - PRIVATE CONTRACTORS PAYMENT
http://opendatacommunities.org/doc/london-borough-council/havering,London Borough of Havering,12/04/2019,2260.00,APR2019L787,Beechcourt Care Centre - Bondcare_a,Adults,Adult Services,Adult Community Team,Support with Memory & Cognition,NURSING HOMES - PRIVATE CONTRACTORS PAYMENT
http://opendatacommunities.org/doc/london-borough-council/havering,London Borough of Havering,12/04/2019,2112.00,APR2019L788,Beechcourt Care Centre - Bondcare_a,Adults,Adult Services,Adult Community Team,Physical Support,NURSING HOMES - PRIVATE CONTRACTORS PAYMENT
http://opendatacommunities.org/doc/london-borough-council/havering,London Borough of Havering,12/04/2019,2260.00,APR2019L789,Beechcourt Care Centre - Bondcare_a,Adults,Adult Services,Adult Community Team,Support with Memory & Cognition,NURSING HOMES - PRIVATE CONTRACTORS PAYMENT
http://opendatacommunities.org/doc/london-borough-council/havering,London Borough of Havering,12/04/2019,2260.00,APR2019L790,Beechcourt Care Centre - Bondcare_a,Adults,Adult Services,Adult Community Team,Support with Memory & Cognition,NURSING HOMES - PRIVATE CONTRACTORS PAYMENT
http://opendatacommunities.org/doc/london-borough-council/havering,London Borough of Havering,12/04/2019,2112.00,APR2019L791,Beechcourt Care Centre - Bondcare_a,Adults,Adult Services,Learning Disabilities,Sensory Support,NURSING HOMES - PRIVATE CONTRACTORS PAYMENT
http://opendatacommunities.org/doc/london-borough-council/havering,London Borough of Havering,12/04/2019,2112.00,APR2019L792,Beechcourt Care Centre - Bondcare_a,Adults,Adult Services,Adult Community Team,Physical Support,NURSING HOMES - PRIVATE CONTRACTORS PAYMENT
http://opendatacommunities.org/doc/london-borough-council/havering,London Borough of Havering,12/04/2019,2260.00,APR2019L793,Beechcourt Care Centre - Bondcare_a,Adults,Adult Services,Adult Community Team,Support with Memory & Cognition,NURSING HOMES - PRIVATE CONTRACTORS PAYMENT
http://opendatacommunities.org/doc/london-borough-council/havering,London Borough of Havering,12/04/2019,2260.00,APR2019L794,Beechcourt Care Centre - Bondcare_a,Adults,Adult Services,Adult Community Team,Support with Memory & Cognition,NURSING HOMES - PRIVATE CONTRACTORS PAYMENT
http://opendatacommunities.org/doc/london-borough-council/havering,London Borough of Havering,12/04/2019,-422.37,APR2019L795,Beechcourt Care Centre - Bondcare_a,Adults,Adult Services,Adult Community Team,Support with Memory & Cognition,NURSING CARE INCOME
http://opendatacommunities.org/doc/london-borough-council/havering,London Borough of Havering,12/04/2019,1695.00,APR2019L796,Beechcourt Care Centre - Bondcare_a,Adults,Adult Services,Adult Community Team,Support with Memory & Cognition,NURSING HOMES - PRIVATE CONTRACTORS PAYMENT
http://opendatacommunities.org/doc/london-borough-council/havering,London Borough of Havering,12/04/2019,-530.91,APR2019L797,Beechcourt Care Centre - Bondcare_a,Adults,Adult Services,Adult Community Team,Physical Support,NURSING CARE INCOME
http://opendatacommunities.org/doc/london-borough-council/havering,London Borough of Havering,12/04/2019,1584.00,APR2019L798,Beechcourt Care Centre - Bondcare_a,Adults,Adult Services,Adult Community Team,Physical Support,NURSING HOMES - PRIVATE CONTRACTORS PAYMENT
http://opendatacommunities.org/doc/london-borough-council/havering,London Borough of Havering,12/04/2019,-755.22,APR2019L799,Beechcourt Care Centre - Bondcare_a,Adults,Adult Services,Adult Community Team,Physical Support,NURSING CARE INCOME
http://opendatacommunities.org/doc/london-borough-council/havering,London Borough of Havering,12/04/2019,1584.00,APR2019L800,Beechcourt Care Centre - Bondcare_a,Adults,Adult Services,Adult Community Team,Physical Support,NURSING HOMES - PRIVATE CONTRACTORS PAYMENT
http://opendatacommunities.org/doc/london-borough-council/havering,London Borough of Havering,12/04/2019,-771.18,APR2019L801,Beechcourt Care Centre - Bondcare_a,Adults,Adult Services,Adult Community Team,Physical Support,NURSING CARE INCOME
http://opendatacommunities.org/doc/london-borough-council/havering,London Borough of Havering,12/04/2019,1584.00,APR2019L802,Beechcourt Care Centre - Bondcare_a,Adults,Adult Services,Adult Community Team,Physical Support,NURSING HOMES - PRIVATE CONTRACTORS PAYMENT
http://opendatacommunities.org/doc/london-borough-council/havering,London Borough of Havering,12/04/2019,-574.47,APR2019L803,Beechcourt Care Centre - Bondcare_a,Adults,Adult Services,Adult Community Team,Support with Memory & Cognition,NURSING CARE INCOME
http://opendatacommunities.org/doc/london-borough-council/havering,London Borough of Havering,12/04/2019,1695.00,APR2019L804,Beechcourt Care Centre - Bondcare_a,Adults,Adult Services,Adult Community Team,Support with Memory & Cognition,NURSING HOMES - PRIVATE CONTRACTORS PAYMENT
http://opendatacommunities.org/doc/london-borough-council/havering,London Borough of Havering,12/04/2019,-427.05,APR2019L805,Beechcourt Care Centre - Bondcare_a,Adults,Adult Services,Adult Community Team,Support with Memory & Cognition,NURSING CARE INCOME
http://opendatacommunities.org/doc/london-borough-council/havering,London Borough of Havering,12/04/2019,1695.00,APR2019L806,Beechcourt Care Centre - Bondcare_a,Adults,Adult Services,Adult Community Team,Support with Memory & Cognition,NURSING HOMES - PRIVATE CONTRACTORS PAYMENT
http://opendatacommunities.org/doc/london-borough-council/havering,London Borough of Havering,12/04/2019,-669.21,APR2019L807,Beechcourt Care Centre - Bondcare_a,Adults,Adult Services,Adult Community Team,Physical Support,NURSING CARE INCOME
http://opendatacommunities.org/doc/london-borough-council/havering,London Borough of Havering,12/04/2019,1584.00,APR2019L808,Beechcourt Care Centre - Bondcare_a,Adults,Adult Services,Adult Community Team,Physical Support,NURSING HOMES - PRIVATE CONTRACTORS PAYMENT
http://opendatacommunities.org/doc/london-borough-council/havering,London Borough of Havering,12/04/2019,-623.04,APR2019L809,Beechcourt Care Centre - Bondcare_a,Adults,Adult Services,Adult Community Team,Support with Memory & Cognition,NURSING CARE INCOME
http://opendatacommunities.org/doc/london-borough-council/havering,London Borough of Havering,12/04/2019,1695.00,APR2019L810,Beechcourt Care Centre - Bondcare_a,Adults,Adult Services,Adult Community Team,Support with Memory & Cognition,NURSING HOMES - PRIVATE CONTRACTORS PAYMENT
http://opendatacommunities.org/doc/london-borough-council/havering,London Borough of Havering,12/04/2019,-680.07,APR2019L811,Beechcourt Care Centre - Bondcare_a,Adults,Adult Services,Adult Community Team,Support with Memory & Cognition,NURSING CARE INCOME
http://opendatacommunities.org/doc/london-borough-council/havering,London Borough of Havering,12/04/2019,1695.00,APR2019L812,Beechcourt Care Centre - Bondcare_a,Adults,Adult Services,Adult Community Team,Support with Memory & Cognition,NURSING HOMES - PRIVATE CONTRACTORS PAYMENT
http://opendatacommunities.org/doc/london-borough-council/havering,London Borough of Havering,12/04/2019,-427.05,APR2019L813,Beechcourt Care Centre - Bondcare_a,Adults,Adult Services,Adult Community Team,Support with Memory & Cognition,NURSING CARE INCOME
http://opendatacommunities.org/doc/london-borough-council/havering,London Borough of Havering,12/04/2019,1695.00,APR2019L814,Beechcourt Care Centre - Bondcare_a,Adults,Adult Services,Adult Community Team,Support with Memory & Cognition,NURSING HOMES - PRIVATE CONTRACTORS PAYMENT
http://opendatacommunities.org/doc/london-borough-council/havering,London Borough of Havering,12/04/2019,1695.00,APR2019L815,Beechcourt Care Centre - Bondcare_a,Adults,Adult Services,Adult Community Team,Support with Memory & Cognition,NURSING HOMES - PRIVATE CONTRACTORS PAYMENT
http://opendatacommunities.org/doc/london-borough-council/havering,London Borough of Havering,12/04/2019,965.69,APR2019L816,Hilton House_a,Adults,Adult Services,Learning Disabilities,Learning Disability Support,RESIDENTIAL PLACEMENTS - PRIVATE CONTRACTORS PAYMENT
http://opendatacommunities.org/doc/london-borough-council/havering,London Borough of Havering,12/04/2019,2897.07,APR2019L817,Hilton House_a,Adults,Adult Services,Learning Disabilities,Learning Disability Support,RESIDENTIAL PLACEMENTS - PRIVATE CONTRACTORS PAYMENT
http://opendatacommunities.org/doc/london-borough-council/havering,London Borough of Havering,12/04/2019,579.00,APR2019L818,Nightingale Residential Care Home Ltd_a,Adults,Adult Services,Adult Community Team,Support with Memory & Cognition,RESIDENTIAL PLACEMENTS - PRIVATE CONTRACTORS PAYMENT
http://opendatacommunities.org/doc/london-borough-council/havering,London Borough of Havering,12/04/2019,579.00,APR2019L819,Nightingale Residential Care Home Ltd_a,Adults,Adult Services,Adult Community Team,Support with Memory & Cognition,RESIDENTIAL PLACEMENTS - PRIVATE CONTRACTORS PAYMENT
http://opendatacommunities.org/doc/london-borough-council/havering,London Borough of Havering,12/04/2019,579.00,APR2019L820,Nightingale Residential Care Home Ltd_a,Adults,Adult Services,Adult Community Team,Support with Memory & Cognition,RESIDENTIAL PLACEMENTS - PRIVATE CONTRACTORS PAYMENT
http://opendatacommunities.org/doc/london-borough-council/havering,London Borough of Havering,12/04/2019,579.00,APR2019L821,Nightingale Residential Care Home Ltd_a,Adults,Adult Services,Adult Community Team,Support with Memory & Cognition,RESIDENTIAL PLACEMENTS - PRIVATE CONTRACTORS PAYMENT
http://opendatacommunities.org/doc/london-borough-council/havering,London Borough of Havering,12/04/2019,579.00,APR2019L822,Nightingale Residential Care Home Ltd_a,Adults,Adult Services,Adult Community Team,Support with Memory & Cognition,RESIDENTIAL PLACEMENTS - PRIVATE CONTRACTORS PAYMENT
http://opendatacommunities.org/doc/london-borough-council/havering,London Borough of Havering,12/04/2019,579.00,APR2019L823,Nightingale Residential Care Home Ltd_a,Adults,Adult Services,Adult Community Team,Support with Memory & Cognition,RESIDENTIAL PLACEMENTS - PRIVATE CONTRACTORS PAYMENT
http://opendatacommunities.org/doc/london-borough-council/havering,London Borough of Havering,12/04/2019,579.00,APR2019L824,Nightingale Residential Care Home Ltd_a,Adults,Adult Services,Adult Community Team,Support with Memory & Cognition,RESIDENTIAL PLACEMENTS - PRIVATE CONTRACTORS PAYMENT
http://opendatacommunities.org/doc/london-borough-council/havering,London Borough of Havering,12/04/2019,2316.00,APR2019L825,Nightingale Residential Care Home Ltd_a,Adults,Adult Services,Adult Community Team,Support with Memory & Cognition,RESIDENTIAL PLACEMENTS - PRIVATE CONTRACTORS PAYMENT
http://opendatacommunities.org/doc/london-borough-council/havering,London Borough of Havering,12/04/2019,2316.00,APR2019L826,Nightingale Residential Care Home Ltd_a,Adults,Adult Services,Adult Community Team,Support with Memory & Cognition,RESIDENTIAL PLACEMENTS - PRIVATE CONTRACTORS PAYMENT
http://opendatacommunities.org/doc/london-borough-council/havering,London Borough of Havering,12/04/2019,2316.00,APR2019L827,Nightingale Residential Care Home Ltd_a,Adults,Adult Services,Adult Community Team,Support with Memory & Cognition,RESIDENTIAL PLACEMENTS - PRIVATE CONTRACTORS PAYMENT
http://opendatacommunities.org/doc/london-borough-council/havering,London Borough of Havering,12/04/2019,2316.00,APR2019L828,Nightingale Residential Care Home Ltd_a,Adults,Adult Services,Adult Community Team,Support with Memory & Cognition,RESIDENTIAL PLACEMENTS - PRIVATE CONTRACTORS PAYMENT
http://opendatacommunities.org/doc/london-borough-council/havering,London Borough of Havering,12/04/2019,2316.00,APR2019L829,Nightingale Residential Care Home Ltd_a,Adults,Adult Services,Adult Community Team,Support with Memory & Cognition,RESIDENTIAL PLACEMENTS - PRIVATE CONTRACTORS PAYMENT
http://opendatacommunities.org/doc/london-borough-council/havering,London Borough of Havering,12/04/2019,2316.00,APR2019L830,Nightingale Residential Care Home Ltd_a,Adults,Adult Services,Adult Community Team,Support with Memory & Cognition,RESIDENTIAL PLACEMENTS - PRIVATE CONTRACTORS PAYMENT
http://opendatacommunities.org/doc/london-borough-council/havering,London Borough of Havering,12/04/2019,3400.00,APR2019L831,Nightingale Residential Care Home Ltd_a,Adults,Adult Services,Adult Community Team,Support with Memory & Cognition,RESIDENTIAL PLACEMENTS - PRIVATE CONTRACTORS PAYMENT
http://opendatacommunities.org/doc/london-borough-council/havering,London Borough of Havering,12/04/2019,2316.00,APR2019L832,Nightingale Residential Care Home Ltd_a,Adults,Adult Services,Adult Community Team,Support with Memory & Cognition,RESIDENTIAL PLACEMENTS - PRIVATE CONTRACTORS PAYMENT
http://opendatacommunities.org/doc/london-borough-council/havering,London Borough of Havering,12/04/2019,2316.00,APR2019L833,Nightingale Residential Care Home Ltd_a,Adults,Adult Services,Adult Community Team,Support with Memory & Cognition,RESIDENTIAL PLACEMENTS - PRIVATE CONTRACTORS PAYMENT
http://opendatacommunities.org/doc/london-borough-council/havering,London Borough of Havering,12/04/2019,579.04,APR2019L834,Nightingale Residential Care Home Ltd_a,Adults,Adult Services,Adult Community Team,Support with Memory & Cognition,RESPITE CARE - PRIVATE CONTRACTORS PAYMENT
http://opendatacommunities.org/doc/london-borough-council/havering,London Borough of Havering,12/04/2019,-427.05,APR2019L835,Nightingale Residential Care Home Ltd_a,Adults,Adult Services,Adult Community Team,Support with Memory & Cognition,RESIDENTIAL CARE INCOME
http://opendatacommunities.org/doc/london-borough-council/havering,London Borough of Havering,12/04/2019,1737.00,APR2019L836,Nightingale Residential Care Home Ltd_a,Adults,Adult Services,Adult Community Team,Support with Memory & Cognition,RESIDENTIAL PLACEMENTS - PRIVATE CONTRACTORS PAYMENT
http://opendatacommunities.org/doc/london-borough-council/havering,London Borough of Havering,12/04/2019,-427.05,APR2019L837,Nightingale Residential Care Home Ltd_a,Adults,Adult Services,Adult Community Team,Support with Memory & Cognition,RESIDENTIAL CARE INCOME
http://opendatacommunities.org/doc/london-borough-council/havering,London Borough of Havering,12/04/2019,1737.00,APR2019L838,Nightingale Residential Care Home Ltd_a,Adults,Adult Services,Adult Community Team,Support with Memory & Cognition,RESIDENTIAL PLACEMENTS - PRIVATE CONTRACTORS PAYMENT
http://opendatacommunities.org/doc/london-borough-council/havering,London Borough of Havering,12/04/2019,-499.05,APR2019L839,Nightingale Residential Care Home Ltd_a,Adults,Adult Services,Adult Community Team,Support with Memory & Cognition,RESIDENTIAL CARE INCOME
http://opendatacommunities.org/doc/london-borough-council/havering,London Borough of Havering,12/04/2019,1737.00,APR2019L840,Nightingale Residential Care Home Ltd_a,Adults,Adult Services,Adult Community Team,Support with Memory & Cognition,RESIDENTIAL PLACEMENTS - PRIVATE CONTRACTORS PAYMENT
http://opendatacommunities.org/doc/london-borough-council/havering,London Borough of Havering,12/04/2019,-526.92,APR2019L841,Nightingale Residential Care Home Ltd_a,Adults,Adult Services,Adult Community Team,Support with Memory & Cognition,RESIDENTIAL CARE INCOME
http://opendatacommunities.org/doc/london-borough-council/havering,London Borough of Havering,12/04/2019,1737.00,APR2019L842,Nightingale Residential Care Home Ltd_a,Adults,Adult Services,Adult Community Team,Support with Memory & Cognition,RESIDENTIAL PLACEMENTS - PRIVATE CONTRACTORS PAYMENT
http://opendatacommunities.org/doc/london-borough-council/havering,London Borough of Havering,12/04/2019,-427.05,APR2019L843,Nightingale Residential Care Home Ltd_a,Adults,Adult Services,Adult Community Team,Support with Memory & Cognition,RESIDENTIAL CARE INCOME
http://opendatacommunities.org/doc/london-borough-council/havering,London Borough of Havering,12/04/2019,1737.00,APR2019L844,Nightingale Residential Care Home Ltd_a,Adults,Adult Services,Adult Community Team,Support with Memory & Cognition,RESIDENTIAL PLACEMENTS - PRIVATE CONTRACTORS PAYMENT
http://opendatacommunities.org/doc/london-borough-council/havering,London Borough of Havering,12/04/2019,-670.41,APR2019L845,Nightingale Residential Care Home Ltd_a,Adults,Adult Services,Adult Community Team,Support with Memory & Cognition,RESIDENTIAL CARE INCOME
http://opendatacommunities.org/doc/london-borough-council/havering,London Borough of Havering,12/04/2019,1737.00,APR2019L846,Nightingale Residential Care Home Ltd_a,Adults,Adult Services,Adult Community Team,Support with Memory & Cognition,RESIDENTIAL PLACEMENTS - PRIVATE CONTRACTORS PAYMENT
http://opendatacommunities.org/doc/london-borough-council/havering,London Borough of Havering,12/04/2019,1737.00,APR2019L847,Nightingale Residential Care Home Ltd_a,Adults,Adult Services,Adult Community Team,Support with Memory & Cognition,RESIDENTIAL PLACEMENTS - PRIVATE CONTRACTORS PAYMENT
http://opendatacommunities.org/doc/london-borough-council/havering,London Borough of Havering,12/04/2019,-530.04,APR2019L848,Nightingale Residential Care Home Ltd_a,Adults,Adult Services,Adult Community Team,Support with Memory & Cognition,RESIDENTIAL CARE INCOME
http://opendatacommunities.org/doc/london-borough-council/havering,London Borough of Havering,12/04/2019,1406.14,APR2019L849,Nightingale Residential Care Home Ltd_a,Adults,Adult Services,Adult Community Team,Support with Memory & Cognition,RESIDENTIAL PLACEMENTS - PRIVATE CONTRACTORS PAYMENT
http://opendatacommunities.org/doc/london-borough-council/havering,London Borough of Havering,12/04/2019,-909.86,APR2019L850,Nightingale Residential Care Home Ltd_a,Adults,Adult Services,Adult Community Team,Support with Memory & Cognition,RESIDENTIAL PLACEMENTS - PRIVATE CONTRACTORS PAYMENT
http://opendatacommunities.org/doc/london-borough-council/havering,London Borough of Havering,12/04/2019,568.00,APR2019L851,Dudbrook Hall Residential Home_a,Adults,Adult Services,Adult Community Team,Support with Memory & Cognition,RESIDENTIAL PLACEMENTS - PRIVATE CONTRACTORS PAYMENT
http://opendatacommunities.org/doc/london-borough-council/havering,London Borough of Havering,12/04/2019,1112.14,APR2019L852,Dudbrook Hall Residential Home_a,Adults,Adult Services,Adult Community Team,Support with Memory & Cognition,RESIDENTIAL PLACEMENTS - PRIVATE CONTRACTORS PAYMENT
http://opendatacommunities.org/doc/london-borough-council/havering,London Borough of Havering,12/04/2019,2980.00,APR2019L853,Dudbrook Hall Residential Home_a,Adults,Adult Services,Adult Community Team,Physical Support,RESIDENTIAL PLACEMENTS - PRIVATE CONTRACTORS PAYMENT
http://opendatacommunities.org/doc/london-borough-council/havering,London Borough of Havering,12/04/2019,-582.72,APR2019L854,Dudbrook Hall Residential Home_a,Adults,Adult Services,Adult Community Team,Support with Memory & Cognition,RESIDENTIAL CARE INCOME
http://opendatacommunities.org/doc/london-borough-council/havering,London Borough of Havering,12/04/2019,1704.00,APR2019L855,Dudbrook Hall Residential Home_a,Adults,Adult Services,Adult Community Team,Support with Memory & Cognition,RESIDENTIAL PLACEMENTS - PRIVATE CONTRACTORS PAYMENT
http://opendatacommunities.org/doc/london-borough-council/havering,London Borough of Havering,12/04/2019,528.00,APR2019L856,Havering Care Homes Ltd t/a Abbscross Nursing Home_a,Adults,Adult Services,Adult Community Team,Physical Support,NURSING HOMES - PRIVATE CONTRACTORS PAYMENT
http://opendatacommunities.org/doc/london-borough-council/havering,London Borough of Havering,12/04/2019,565.00,APR2019L857,Havering Care Homes Ltd t/a Abbscross Nursing Home_a,Adults,Adult Services,Adult Community Team,Support with Memory & Cognition,NURSING HOMES - PRIVATE CONTRACTORS PAYMENT
http://opendatacommunities.org/doc/london-borough-council/havering,London Borough of Havering,12/04/2019,565.00,APR2019L858,Havering Care Homes Ltd t/a Abbscross Nursing Home_a,Adults,Adult Services,Adult Community Team,Physical Support,NURSING HOMES - PRIVATE CONTRACTORS PAYMENT
http://opendatacommunities.org/doc/london-borough-council/havering,London Borough of Havering,12/04/2019,2260.00,APR2019L859,Havering Care Homes Ltd t/a Abbscross Nursing Home_a,Adults,Adult Services,Adult Community Team,Support with Memory & Cognition,NURSING HOMES - PRIVATE CONTRACTORS PAYMENT
http://opendatacommunities.org/doc/london-borough-council/havering,London Borough of Havering,12/04/2019,2260.00,APR2019L860,Havering Care Homes Ltd t/a Abbscross Nursing Home_a,Adults,Adult Services,Adult Community Team,Support with Memory & Cognition,NURSING HOMES - PRIVATE CONTRACTORS PAYMENT
http://opendatacommunities.org/doc/london-borough-council/havering,London Borough of Havering,12/04/2019,2260.00,APR2019L861,Havering Care Homes Ltd t/a Abbscross Nursing Home_a,Adults,Adult Services,Adult Community Team,Support with Memory & Cognition,NURSING HOMES - PRIVATE CONTRACTORS PAYMENT
http://opendatacommunities.org/doc/london-borough-council/havering,London Borough of Havering,12/04/2019,2260.00,APR2019L862,Havering Care Homes Ltd t/a Abbscross Nursing Home_a,Adults,Adult Services,Adult Community Team,Physical Support,NURSING HOMES - PRIVATE CONTRACTORS PAYMENT
http://opendatacommunities.org/doc/london-borough-council/havering,London Borough of Havering,12/04/2019,-417.12,APR2019L863,Havering Care Homes Ltd t/a Abbscross Nursing Home_a,Adults,Adult Services,Adult Community Team,Physical Support,NURSING CARE INCOME
http://opendatacommunities.org/doc/london-borough-council/havering,London Borough of Havering,12/04/2019,1584.00,APR2019L864,Havering Care Homes Ltd t/a Abbscross Nursing Home_a,Adults,Adult Services,Adult Community Team,Physical Support,NURSING HOMES - PRIVATE CONTRACTORS PAYMENT
http://opendatacommunities.org/doc/london-borough-council/havering,London Borough of Havering,12/04/2019,-511.80,APR2019L865,Havering Care Homes Ltd t/a Abbscross Nursing Home_a,Adults,Adult Services,Adult Community Team,Support with Memory & Cognition,NURSING CARE INCOME
http://opendatacommunities.org/doc/london-borough-council/havering,London Borough of Havering,12/04/2019,1695.00,APR2019L866,Havering Care Homes Ltd t/a Abbscross Nursing Home_a,Adults,Adult Services,Adult Community Team,Support with Memory & Cognition,NURSING HOMES - PRIVATE CONTRACTORS PAYMENT
http://opendatacommunities.org/doc/london-borough-council/havering,London Borough of Havering,12/04/2019,-708.27,APR2019L867,Havering Care Homes Ltd t/a Abbscross Nursing Home_a,Adults,Adult Services,Adult Community Team,Physical Support,NURSING CARE INCOME
http://opendatacommunities.org/doc/london-borough-council/havering,London Borough of Havering,12/04/2019,1695.00,APR2019L868,Havering Care Homes Ltd t/a Abbscross Nursing Home_a,Adults,Adult Services,Adult Community Team,Physical Support,NURSING HOMES - PRIVATE CONTRACTORS PAYMENT
http://opendatacommunities.org/doc/london-borough-council/havering,London Borough of Havering,12/04/2019,-2744.29,APR2019L869,Havering Care Homes Ltd t/a Abbscross Nursing Home_a,Adults,Adult Services,Adult Community Team,Support with Memory & Cognition,NURSING HOMES - PRIVATE CONTRACTORS PAYMENT
http://opendatacommunities.org/doc/london-borough-council/havering,London Borough of Havering,12/04/2019,484.29,APR2019L870,Havering Care Homes Ltd t/a Abbscross Nursing Home_a,Adults,Adult Services,Adult Community Team,Support with Memory & Cognition,NURSING HOMES - PRIVATE CONTRACTORS PAYMENT
http://opendatacommunities.org/doc/london-borough-council/havering,London Borough of Havering,09/04/2019,2916.67,APR2019L871,Tapestry_a.,Adults,Adult Services,Strategy and Commissioning,Mental Health Commissioning,PAYMENTS TO VOLUNTARY SECTOR
http://opendatacommunities.org/doc/london-borough-council/havering,London Borough of Havering,12/04/2019,565.00,APR2019L872,One Tree Estates Ltd t/a Ashbrook Nursing Home_a,Adults,Adult Services,Adult Community Team,Support with Memory & Cognition,NURSING HOMES - PRIVATE CONTRACTORS PAYMENT
http://opendatacommunities.org/doc/london-borough-council/havering,London Borough of Havering,12/04/2019,528.00,APR2019L873,One Tree Estates Ltd t/a Ashbrook Nursing Home_a,Adults,Adult Services,Adult Community Team,Physical Support,NURSING HOMES - PRIVATE CONTRACTORS PAYMENT
http://opendatacommunities.org/doc/london-borough-council/havering,London Borough of Havering,12/04/2019,2316.00,APR2019L874,One Tree Estates Ltd t/a Ashbrook Nursing Home_a,Adults,Adult Services,Adult Community Team,Support with Memory & Cognition,RESIDENTIAL PLACEMENTS - PRIVATE CONTRACTORS PAYMENT
http://opendatacommunities.org/doc/london-borough-council/havering,London Borough of Havering,12/04/2019,2260.00,APR2019L875,One Tree Estates Ltd t/a Ashbrook Nursing Home_a,Adults,Adult Services,Adult Community Team,Support with Memory & Cognition,NURSING HOMES - PRIVATE CONTRACTORS PAYMENT
http://opendatacommunities.org/doc/london-borough-council/havering,London Borough of Havering,12/04/2019,2260.00,APR2019L876,One Tree Estates Ltd t/a Ashbrook Nursing Home_a,Adults,Adult Services,Adult Community Team,Support with Memory & Cognition,NURSING HOMES - PRIVATE CONTRACTORS PAYMENT
http://opendatacommunities.org/doc/london-borough-council/havering,London Borough of Havering,12/04/2019,2260.00,APR2019L877,One Tree Estates Ltd t/a Ashbrook Nursing Home_a,Adults,Adult Services,Adult Community Team,Support with Memory & Cognition,NURSING HOMES - PRIVATE CONTRACTORS PAYMENT
http://opendatacommunities.org/doc/london-borough-council/havering,London Borough of Havering,12/04/2019,2767.36,APR2019L878,One Tree Estates Ltd t/a Ashbrook Nursing Home_a,Adults,Adult Services,Adult Community Team,Physical Support,NURSING HOMES - PRIVATE CONTRACTORS PAYMENT
http://opendatacommunities.org/doc/london-borough-council/havering,London Borough of Havering,12/04/2019,2112.00,APR2019L879,One Tree Estates Ltd t/a Ashbrook Nursing Home_a,Adults,Adult Services,Adult Community Team,Physical Support,NURSING HOMES - PRIVATE CONTRACTORS PAYMENT
http://opendatacommunities.org/doc/london-borough-council/havering,London Borough of Havering,12/04/2019,-427.05,APR2019L880,One Tree Estates Ltd t/a Ashbrook Nursing Home_a,Adults,Adult Services,Adult Community Team,Support with Memory & Cognition,NURSING CARE INCOME
http://opendatacommunities.org/doc/london-borough-council/havering,London Borough of Havering,12/04/2019,1695.00,APR2019L881,One Tree Estates Ltd t/a Ashbrook Nursing Home_a,Adults,Adult Services,Adult Community Team,Support with Memory & Cognition,NURSING HOMES - PRIVATE CONTRACTORS PAYMENT
http://opendatacommunities.org/doc/london-borough-council/havering,London Borough of Havering,12/04/2019,-427.05,APR2019L882,One Tree Estates Ltd t/a Ashbrook Nursing Home_a,Adults,Adult Services,Adult Community Team,Physical Support,NURSING CARE INCOME
http://opendatacommunities.org/doc/london-borough-council/havering,London Borough of Havering,12/04/2019,1584.00,APR2019L883,One Tree Estates Ltd t/a Ashbrook Nursing Home_a,Adults,Adult Services,Adult Community Team,Physical Support,NURSING HOMES - PRIVATE CONTRACTORS PAYMENT
http://opendatacommunities.org/doc/london-borough-council/havering,London Borough of Havering,12/04/2019,3620.57,APR2019L884,One Tree Estates Ltd t/a Ashbrook Nursing Home_a,Adults,Adult Services,Adult Community Team,Physical Support,NURSING HOMES - PRIVATE CONTRACTORS PAYMENT
http://opendatacommunities.org/doc/london-borough-council/havering,London Borough of Havering,12/04/2019,-946.97,APR2019L885,One Tree Estates Ltd t/a Ashbrook Nursing Home_a,Adults,Adult Services,Adult Community Team,Physical Support,NURSING CARE INCOME
http://opendatacommunities.org/doc/london-borough-council/havering,London Borough of Havering,12/04/2019,3620.57,APR2019L886,One Tree Estates Ltd t/a Ashbrook Nursing Home_a,Adults,Adult Services,Adult Community Team,Physical Support,NURSING HOMES - PRIVATE CONTRACTORS PAYMENT
http://opendatacommunities.org/doc/london-borough-council/havering,London Borough of Havering,12/04/2019,-3620.57,APR2019L887,One Tree Estates Ltd t/a Ashbrook Nursing Home_a,Adults,Adult Services,Adult Community Team,Physical Support,NURSING HOMES - PRIVATE CONTRACTORS PAYMENT
http://opendatacommunities.org/doc/london-borough-council/havering,London Borough of Havering,12/04/2019,1487.04,APR2019L888,One Tree Estates Ltd t/a Ashbrook Nursing Home_a,Adults,Adult Services,Adult Community Team,Physical Support,NURSING CARE INCOME
http://opendatacommunities.org/doc/london-borough-council/havering,London Borough of Havering,12/04/2019,-769.41,APR2019L889,One Tree Estates Ltd t/a Ashbrook Nursing Home_a,Adults,Adult Services,Adult Community Team,Support with Memory & Cognition,NURSING CARE INCOME
http://opendatacommunities.org/doc/london-borough-council/havering,London Borough of Havering,12/04/2019,3147.86,APR2019L890,One Tree Estates Ltd t/a Ashbrook Nursing Home_a,Adults,Adult Services,Adult Community Team,Support with Memory & Cognition,NURSING HOMES - PRIVATE CONTRACTORS PAYMENT
http://opendatacommunities.org/doc/london-borough-council/havering,London Borough of Havering,12/04/2019,579.00,APR2019L893,Little Gaynes_a,Adults,Adult Services,Adult Community Team,Support with Memory & Cognition,RESIDENTIAL PLACEMENTS - PRIVATE CONTRACTORS PAYMENT
http://opendatacommunities.org/doc/london-borough-council/havering,London Borough of Havering,12/04/2019,790.00,APR2019L894,Little Gaynes_a,Adults,Adult Services,Adult Community Team,Support with Memory & Cognition,RESIDENTIAL PLACEMENTS - PRIVATE CONTRACTORS PAYMENT
http://opendatacommunities.org/doc/london-borough-council/havering,London Borough of Havering,12/04/2019,579.00,APR2019L895,Little Gaynes_a,Adults,Adult Services,Adult Community Team,Support with Memory & Cognition,RESIDENTIAL PLACEMENTS - PRIVATE CONTRACTORS PAYMENT
http://opendatacommunities.org/doc/london-borough-council/havering,London Borough of Havering,12/04/2019,-427.05,APR2019L896,Little Gaynes_a,Adults,Adult Services,Adult Community Team,Support with Memory & Cognition,RESIDENTIAL CARE INCOME
http://opendatacommunities.org/doc/london-borough-council/havering,London Borough of Havering,12/04/2019,1737.00,APR2019L897,Little Gaynes_a,Adults,Adult Services,Adult Community Team,Support with Memory & Cognition,RESIDENTIAL PLACEMENTS - PRIVATE CONTRACTORS PAYMENT
http://opendatacommunities.org/doc/london-borough-council/havering,London Borough of Havering,12/04/2019,-1014.27,APR2019L898,Little Gaynes_a,Adults,Adult Services,Adult Community Team,Support with Memory & Cognition,RESIDENTIAL CARE INCOME
http://opendatacommunities.org/doc/london-borough-council/havering,London Borough of Havering,12/04/2019,2370.00,APR2019L899,Little Gaynes_a,Adults,Adult Services,Adult Community Team,Support with Memory & Cognition,RESIDENTIAL PLACEMENTS - PRIVATE CONTRACTORS PAYMENT
http://opendatacommunities.org/doc/london-borough-council/havering,London Borough of Havering,12/04/2019,-830.79,APR2019L900,Little Gaynes_a,Adults,Adult Services,Adult Community Team,Support with Memory & Cognition,RESIDENTIAL CARE INCOME
http://opendatacommunities.org/doc/london-borough-council/havering,London Borough of Havering,12/04/2019,1737.00,APR2019L901,Little Gaynes_a,Adults,Adult Services,Adult Community Team,Support with Memory & Cognition,RESIDENTIAL PLACEMENTS - PRIVATE CONTRACTORS PAYMENT
http://opendatacommunities.org/doc/london-borough-council/havering,London Borough of Havering,05/04/2019,2871.08,APR2019L902,Essex County Council_a,Adults,Adult Services,Adult Community Team,Support with Memory & Cognition,RESIDENTIAL PLACEMENTS - PRIVATE CONTRACTORS PAYMENT
http://opendatacommunities.org/doc/london-borough-council/havering,London Borough of Havering,05/04/2019,2732.20,APR2019L903,Essex County Council_a,Adults,Adult Services,Adult Community Team,Support with Memory & Cognition,RESIDENTIAL PLACEMENTS - PRIVATE CONTRACTORS PAYMENT
http://opendatacommunities.org/doc/london-borough-council/havering,London Borough of Havering,05/04/2019,2361.96,APR2019L905,Essex County Council_a,Adults,Adult Services,Learning Disabilities,Learning Disability Support,DAYCARE - PRIVATE CONTRACTORS PAYMENT
http://opendatacommunities.org/doc/london-borough-council/havering,London Borough of Havering,12/04/2019,516.00,APR2019L906,Masumin Ltd t/s Abbeleigh House_a,Adults,Adult Services,Adult Community Team,Physical Support,RESIDENTIAL PLACEMENTS - PRIVATE CONTRACTORS PAYMENT
http://opendatacommunities.org/doc/london-borough-council/havering,London Borough of Havering,12/04/2019,579.00,APR2019L907,Masumin Ltd t/s Abbeleigh House_a,Adults,Adult Services,Learning Disabilities,Learning Disability Support,RESIDENTIAL PLACEMENTS - PRIVATE CONTRACTORS PAYMENT
http://opendatacommunities.org/doc/london-borough-council/havering,London Borough of Havering,12/04/2019,516.00,APR2019L908,Masumin Ltd t/s Abbeleigh House_a,Adults,Adult Services,Adult Community Team,Physical Support,RESIDENTIAL PLACEMENTS - PRIVATE CONTRACTORS PAYMENT
http://opendatacommunities.org/doc/london-borough-council/havering,London Borough of Havering,12/04/2019,579.00,APR2019L909,Masumin Ltd t/s Abbeleigh House_a,Adults,Adult Services,Adult Community Team,Support with Memory & Cognition,RESIDENTIAL PLACEMENTS - PRIVATE CONTRACTORS PAYMENT
http://opendatacommunities.org/doc/london-borough-council/havering,London Borough of Havering,12/04/2019,579.00,APR2019L910,Masumin Ltd t/s Abbeleigh House_a,Adults,Adult Services,Adult Community Team,Physical Support,RESIDENTIAL PLACEMENTS - PRIVATE CONTRACTORS PAYMENT
http://opendatacommunities.org/doc/london-borough-council/havering,London Borough of Havering,12/04/2019,579.00,APR2019L911,Masumin Ltd t/s Abbeleigh House_a,Adults,Adult Services,Adult Community Team,Support with Memory & Cognition,RESIDENTIAL PLACEMENTS - PRIVATE CONTRACTORS PAYMENT
http://opendatacommunities.org/doc/london-borough-council/havering,London Borough of Havering,12/04/2019,579.00,APR2019L912,Masumin Ltd t/s Abbeleigh House_a,Adults,Adult Services,Adult Community Team,Support with Memory & Cognition,RESIDENTIAL PLACEMENTS - PRIVATE CONTRACTORS PAYMENT
http://opendatacommunities.org/doc/london-borough-council/havering,London Borough of Havering,12/04/2019,2316.00,APR2019L913,Masumin Ltd t/s Abbeleigh House_a,Adults,Adult Services,Adult Community Team,Physical Support,RESIDENTIAL PLACEMENTS - PRIVATE CONTRACTORS PAYMENT
http://opendatacommunities.org/doc/london-borough-council/havering,London Borough of Havering,12/04/2019,2316.00,APR2019L914,Masumin Ltd t/s Abbeleigh House_a,Adults,Adult Services,Adult Community Team,Support with Memory & Cognition,RESIDENTIAL PLACEMENTS - PRIVATE CONTRACTORS PAYMENT
http://opendatacommunities.org/doc/london-borough-council/havering,London Borough of Havering,12/04/2019,2316.00,APR2019L915,Masumin Ltd t/s Abbeleigh House_a,Adults,Adult Services,Adult Community Team,Support with Memory & Cognition,RESIDENTIAL PLACEMENTS - PRIVATE CONTRACTORS PAYMENT
http://opendatacommunities.org/doc/london-borough-council/havering,London Borough of Havering,12/04/2019,2316.00,APR2019L916,Masumin Ltd t/s Abbeleigh House_a,Adults,Adult Services,Adult Community Team,Support with Memory & Cognition,RESIDENTIAL PLACEMENTS - PRIVATE CONTRACTORS PAYMENT
http://opendatacommunities.org/doc/london-borough-council/havering,London Borough of Havering,12/04/2019,2316.00,APR2019L917,Masumin Ltd t/s Abbeleigh House_a,Adults,Adult Services,Adult Community Team,Support with Memory & Cognition,RESIDENTIAL PLACEMENTS - PRIVATE CONTRACTORS PAYMENT
http://opendatacommunities.org/doc/london-borough-council/havering,London Borough of Havering,12/04/2019,-427.05,APR2019L918,Masumin Ltd t/s Abbeleigh House_a,Adults,Adult Services,Adult Community Team,Physical Support,RESIDENTIAL CARE INCOME
http://opendatacommunities.org/doc/london-borough-council/havering,London Borough of Havering,12/04/2019,1548.00,APR2019L919,Masumin Ltd t/s Abbeleigh House_a,Adults,Adult Services,Adult Community Team,Physical Support,RESIDENTIAL PLACEMENTS - PRIVATE CONTRACTORS PAYMENT
http://opendatacommunities.org/doc/london-borough-council/havering,London Borough of Havering,12/04/2019,-427.05,APR2019L920,Masumin Ltd t/s Abbeleigh House_a,Adults,Adult Services,Learning Disabilities,Learning Disability Support,RESIDENTIAL CARE INCOME
http://opendatacommunities.org/doc/london-borough-council/havering,London Borough of Havering,12/04/2019,1737.00,APR2019L921,Masumin Ltd t/s Abbeleigh House_a,Adults,Adult Services,Learning Disabilities,Learning Disability Support,RESIDENTIAL PLACEMENTS - PRIVATE CONTRACTORS PAYMENT
http://opendatacommunities.org/doc/london-borough-council/havering,London Borough of Havering,12/04/2019,-786.36,APR2019L922,Masumin Ltd t/s Abbeleigh House_a,Adults,Adult Services,Adult Community Team,Physical Support,RESIDENTIAL CARE INCOME
http://opendatacommunities.org/doc/london-borough-council/havering,London Borough of Havering,12/04/2019,1548.00,APR2019L923,Masumin Ltd t/s Abbeleigh House_a,Adults,Adult Services,Adult Community Team,Physical Support,RESIDENTIAL PLACEMENTS - PRIVATE CONTRACTORS PAYMENT
http://opendatacommunities.org/doc/london-borough-council/havering,London Borough of Havering,12/04/2019,-427.05,APR2019L924,Masumin Ltd t/s Abbeleigh House_a,Adults,Adult Services,Adult Community Team,Support with Memory & Cognition,RESIDENTIAL CARE INCOME
http://opendatacommunities.org/doc/london-borough-council/havering,London Borough of Havering,12/04/2019,1737.00,APR2019L925,Masumin Ltd t/s Abbeleigh House_a,Adults,Adult Services,Adult Community Team,Support with Memory & Cognition,RESIDENTIAL PLACEMENTS - PRIVATE CONTRACTORS PAYMENT
http://opendatacommunities.org/doc/london-borough-council/havering,London Borough of Havering,12/04/2019,-663.18,APR2019L926,Masumin Ltd t/s Abbeleigh House_a,Adults,Adult Services,Adult Community Team,Physical Support,RESIDENTIAL CARE INCOME
http://opendatacommunities.org/doc/london-borough-council/havering,London Borough of Havering,12/04/2019,1737.00,APR2019L927,Masumin Ltd t/s Abbeleigh House_a,Adults,Adult Services,Adult Community Team,Physical Support,RESIDENTIAL PLACEMENTS - PRIVATE CONTRACTORS PAYMENT
http://opendatacommunities.org/doc/london-borough-council/havering,London Borough of Havering,12/04/2019,-436.14,APR2019L928,Masumin Ltd t/s Abbeleigh House_a,Adults,Adult Services,Adult Community Team,Support with Memory & Cognition,RESIDENTIAL CARE INCOME
http://opendatacommunities.org/doc/london-borough-council/havering,London Borough of Havering,12/04/2019,1737.00,APR2019L929,Masumin Ltd t/s Abbeleigh House_a,Adults,Adult Services,Adult Community Team,Support with Memory & Cognition,RESIDENTIAL PLACEMENTS - PRIVATE CONTRACTORS PAYMENT
http://opendatacommunities.org/doc/london-borough-council/havering,London Borough of Havering,12/04/2019,-660.48,APR2019L930,Masumin Ltd t/s Abbeleigh House_a,Adults,Adult Services,Adult Community Team,Support with Memory & Cognition,RESIDENTIAL CARE INCOME
http://opendatacommunities.org/doc/london-borough-council/havering,London Borough of Havering,12/04/2019,1737.00,APR2019L931,Masumin Ltd t/s Abbeleigh House_a,Adults,Adult Services,Adult Community Team,Support with Memory & Cognition,RESIDENTIAL PLACEMENTS - PRIVATE CONTRACTORS PAYMENT
http://opendatacommunities.org/doc/london-borough-council/havering,London Borough of Havering,12/04/2019,1157.94,APR2019L932,Masumin Ltd t/s Abbeleigh House_a,Adults,Adult Services,Adult Community Team,Support with Memory & Cognition,RESPITE CARE - PRIVATE CONTRACTORS PAYMENT
http://opendatacommunities.org/doc/london-borough-council/havering,London Borough of Havering,12/04/2019,565.00,APR2019L933,Moreland House_a,Adults,Adult Services,Adult Community Team,Support with Memory & Cognition,NURSING HOMES - PRIVATE CONTRACTORS PAYMENT
http://opendatacommunities.org/doc/london-borough-council/havering,London Borough of Havering,12/04/2019,579.00,APR2019L934,Moreland House_a,Adults,Adult Services,Adult Community Team,Support with Memory & Cognition,RESIDENTIAL PLACEMENTS - PRIVATE CONTRACTORS PAYMENT
http://opendatacommunities.org/doc/london-borough-council/havering,London Borough of Havering,12/04/2019,565.00,APR2019L935,Moreland House_a,Adults,Adult Services,Adult Community Team,Support with Memory & Cognition,NURSING HOMES - PRIVATE CONTRACTORS PAYMENT
http://opendatacommunities.org/doc/london-borough-council/havering,London Borough of Havering,12/04/2019,528.00,APR2019L936,Moreland House_a,Adults,Adult Services,Adult Community Team,Physical Support,NURSING HOMES - PRIVATE CONTRACTORS PAYMENT
http://opendatacommunities.org/doc/london-borough-council/havering,London Borough of Havering,12/04/2019,565.00,APR2019L937,Moreland House_a,Adults,Adult Services,Adult Community Team,Support with Memory & Cognition,NURSING HOMES - PRIVATE CONTRACTORS PAYMENT
http://opendatacommunities.org/doc/london-borough-council/havering,London Borough of Havering,12/04/2019,2299.80,APR2019L938,Moreland House_a,Adults,Adult Services,Adult Community Team,Support with Memory & Cognition,NURSING HOMES - PRIVATE CONTRACTORS PAYMENT
http://opendatacommunities.org/doc/london-borough-council/havering,London Borough of Havering,12/04/2019,3280.00,APR2019L939,Moreland House_a,Adults,Adult Services,Adult Community Team,Physical Support,NURSING HOMES - PRIVATE CONTRACTORS PAYMENT
http://opendatacommunities.org/doc/london-borough-council/havering,London Borough of Havering,12/04/2019,2316.00,APR2019L940,Moreland House_a,Adults,Adult Services,Adult Community Team,Support with Memory & Cognition,RESIDENTIAL PLACEMENTS - PRIVATE CONTRACTORS PAYMENT
http://opendatacommunities.org/doc/london-borough-council/havering,London Borough of Havering,12/04/2019,-427.05,APR2019L941,Moreland House_a,Adults,Adult Services,Adult Community Team,Support with Memory & Cognition,NURSING CARE INCOME
http://opendatacommunities.org/doc/london-borough-council/havering,London Borough of Havering,12/04/2019,1695.00,APR2019L942,Moreland House_a,Adults,Adult Services,Adult Community Team,Support with Memory & Cognition,NURSING HOMES - PRIVATE CONTRACTORS PAYMENT
http://opendatacommunities.org/doc/london-borough-council/havering,London Borough of Havering,12/04/2019,-539.07,APR2019L943,Moreland House_a,Adults,Adult Services,Adult Community Team,Support with Memory & Cognition,RESIDENTIAL CARE INCOME
http://opendatacommunities.org/doc/london-borough-council/havering,London Borough of Havering,12/04/2019,1737.00,APR2019L944,Moreland House_a,Adults,Adult Services,Adult Community Team,Support with Memory & Cognition,RESIDENTIAL PLACEMENTS - PRIVATE CONTRACTORS PAYMENT
http://opendatacommunities.org/doc/london-borough-council/havering,London Borough of Havering,12/04/2019,-412.05,APR2019L945,Moreland House_a,Adults,Adult Services,Adult Community Team,Support with Memory & Cognition,NURSING CARE INCOME
http://opendatacommunities.org/doc/london-borough-council/havering,London Borough of Havering,12/04/2019,1695.00,APR2019L946,Moreland House_a,Adults,Adult Services,Adult Community Team,Support with Memory & Cognition,NURSING HOMES - PRIVATE CONTRACTORS PAYMENT
http://opendatacommunities.org/doc/london-borough-council/havering,London Borough of Havering,12/04/2019,-484.35,APR2019L947,Moreland House_a,Adults,Adult Services,Adult Community Team,Physical Support,NURSING CARE INCOME
http://opendatacommunities.org/doc/london-borough-council/havering,London Borough of Havering,12/04/2019,1584.00,APR2019L948,Moreland House_a,Adults,Adult Services,Adult Community Team,Physical Support,NURSING HOMES - PRIVATE CONTRACTORS PAYMENT
http://opendatacommunities.org/doc/london-borough-council/havering,London Borough of Havering,12/04/2019,-427.05,APR2019L949,Moreland House_a,Adults,Adult Services,Adult Community Team,Support with Memory & Cognition,NURSING CARE INCOME
http://opendatacommunities.org/doc/london-borough-council/havering,London Borough of Havering,12/04/2019,1695.00,APR2019L950,Moreland House_a,Adults,Adult Services,Adult Community Team,Support with Memory & Cognition,NURSING HOMES - PRIVATE CONTRACTORS PAYMENT
http://opendatacommunities.org/doc/london-borough-council/havering,London Borough of Havering,12/04/2019,-2466.07,APR2019L951,Moreland House_a,Adults,Adult Services,Adult Community Team,Support with Memory & Cognition,NURSING CARE INCOME
http://opendatacommunities.org/doc/london-borough-council/havering,London Borough of Havering,12/04/2019,10089.29,APR2019L952,Moreland House_a,Adults,Adult Services,Adult Community Team,Support with Memory & Cognition,NURSING HOMES - PRIVATE CONTRACTORS PAYMENT
http://opendatacommunities.org/doc/london-borough-council/havering,London Borough of Havering,12/04/2019,579.00,APR2019L955,Genesis Residential Homes Ltd - Dothan House_a,Adults,Adult Services,Adult Community Team,Support with Memory & Cognition,RESIDENTIAL PLACEMENTS - PRIVATE CONTRACTORS PAYMENT
http://opendatacommunities.org/doc/london-borough-council/havering,London Borough of Havering,12/04/2019,516.00,APR2019L956,Genesis Residential Homes Ltd - Dothan House_a,Adults,Adult Services,Adult Community Team,Physical Support,RESIDENTIAL PLACEMENTS - PRIVATE CONTRACTORS PAYMENT
http://opendatacommunities.org/doc/london-borough-council/havering,London Borough of Havering,12/04/2019,579.00,APR2019L957,Genesis Residential Homes Ltd - Dothan House_a,Adults,Adult Services,Adult Community Team,Support with Memory & Cognition,RESIDENTIAL PLACEMENTS - PRIVATE CONTRACTORS PAYMENT
http://opendatacommunities.org/doc/london-borough-council/havering,London Borough of Havering,12/04/2019,579.00,APR2019L958,Genesis Residential Homes Ltd - Dothan House_a,Adults,Adult Services,Adult Community Team,Support with Memory & Cognition,RESIDENTIAL PLACEMENTS - PRIVATE CONTRACTORS PAYMENT
http://opendatacommunities.org/doc/london-borough-council/havering,London Borough of Havering,12/04/2019,2316.00,APR2019L959,Genesis Residential Homes Ltd - Dothan House_a,Adults,Adult Services,Adult Community Team,Support with Memory & Cognition,RESIDENTIAL PLACEMENTS - PRIVATE CONTRACTORS PAYMENT
http://opendatacommunities.org/doc/london-borough-council/havering,London Borough of Havering,12/04/2019,2316.00,APR2019L960,Genesis Residential Homes Ltd - Dothan House_a,Adults,Adult Services,Adult Community Team,Support with Memory & Cognition,RESIDENTIAL PLACEMENTS - PRIVATE CONTRACTORS PAYMENT
http://opendatacommunities.org/doc/london-borough-council/havering,London Borough of Havering,12/04/2019,2316.00,APR2019L961,Genesis Residential Homes Ltd - Dothan House_a,Adults,Adult Services,Adult Community Team,Support with Memory & Cognition,RESIDENTIAL PLACEMENTS - PRIVATE CONTRACTORS PAYMENT
http://opendatacommunities.org/doc/london-borough-council/havering,London Borough of Havering,12/04/2019,2316.00,APR2019L962,Genesis Residential Homes Ltd - Dothan House_a,Adults,Adult Services,Adult Community Team,Support with Memory & Cognition,RESIDENTIAL PLACEMENTS - PRIVATE CONTRACTORS PAYMENT
http://opendatacommunities.org/doc/london-borough-council/havering,London Borough of Havering,12/04/2019,2064.00,APR2019L963,Genesis Residential Homes Ltd - Dothan House_a,Adults,Adult Services,Adult Community Team,Physical Support,RESIDENTIAL PLACEMENTS - PRIVATE CONTRACTORS PAYMENT
http://opendatacommunities.org/doc/london-borough-council/havering,London Borough of Havering,12/04/2019,2064.00,APR2019L964,Genesis Residential Homes Ltd - Dothan House_a,Adults,Adult Services,Adult Community Team,Physical Support,RESIDENTIAL PLACEMENTS - PRIVATE CONTRACTORS PAYMENT
http://opendatacommunities.org/doc/london-borough-council/havering,London Borough of Havering,12/04/2019,-584.94,APR2019L965,Genesis Residential Homes Ltd - Dothan House_a,Adults,Adult Services,Adult Community Team,Support with Memory & Cognition,RESIDENTIAL CARE INCOME
http://opendatacommunities.org/doc/london-borough-council/havering,London Borough of Havering,12/04/2019,1737.00,APR2019L966,Genesis Residential Homes Ltd - Dothan House_a,Adults,Adult Services,Adult Community Team,Support with Memory & Cognition,RESIDENTIAL PLACEMENTS - PRIVATE CONTRACTORS PAYMENT
http://opendatacommunities.org/doc/london-borough-council/havering,London Borough of Havering,12/04/2019,-467.07,APR2019L967,Genesis Residential Homes Ltd - Dothan House_a,Adults,Adult Services,Adult Community Team,Physical Support,RESIDENTIAL CARE INCOME
http://opendatacommunities.org/doc/london-borough-council/havering,London Borough of Havering,12/04/2019,1548.00,APR2019L968,Genesis Residential Homes Ltd - Dothan House_a,Adults,Adult Services,Adult Community Team,Physical Support,RESIDENTIAL PLACEMENTS - PRIVATE CONTRACTORS PAYMENT
http://opendatacommunities.org/doc/london-borough-council/havering,London Borough of Havering,12/04/2019,-752.31,APR2019L969,Genesis Residential Homes Ltd - Dothan House_a,Adults,Adult Services,Adult Community Team,Support with Memory & Cognition,RESIDENTIAL CARE INCOME
http://opendatacommunities.org/doc/london-borough-council/havering,London Borough of Havering,12/04/2019,1737.00,APR2019L970,Genesis Residential Homes Ltd - Dothan House_a,Adults,Adult Services,Adult Community Team,Support with Memory & Cognition,RESIDENTIAL PLACEMENTS - PRIVATE CONTRACTORS PAYMENT
http://opendatacommunities.org/doc/london-borough-council/havering,London Borough of Havering,12/04/2019,-403.05,APR2019L971,Genesis Residential Homes Ltd - Dothan House_a,Adults,Adult Services,Adult Community Team,Physical Support,RESIDENTIAL CARE INCOME
http://opendatacommunities.org/doc/london-borough-council/havering,London Borough of Havering,12/04/2019,1737.00,APR2019L972,Genesis Residential Homes Ltd - Dothan House_a,Adults,Adult Services,Adult Community Team,Support with Memory & Cognition,RESIDENTIAL PLACEMENTS - PRIVATE CONTRACTORS PAYMENT
http://opendatacommunities.org/doc/london-borough-council/havering,London Borough of Havering,12/04/2019,-797.98,APR2019L973,Genesis Residential Homes Ltd - Dothan House_a,Adults,Adult Services,Adult Community Team,Physical Support,RESIDENTIAL CARE INCOME
http://opendatacommunities.org/doc/london-borough-council/havering,London Borough of Havering,12/04/2019,2727.43,APR2019L974,Genesis Residential Homes Ltd - Dothan House_a,Adults,Adult Services,Adult Community Team,Physical Support,RESIDENTIAL PLACEMENTS - PRIVATE CONTRACTORS PAYMENT
http://opendatacommunities.org/doc/london-borough-council/havering,London Borough of Havering,12/04/2019,-594.74,APR2019L975,Genesis Residential Homes Ltd - Dothan House_a,Adults,Adult Services,Adult Community Team,Physical Support,RESIDENTIAL CARE INCOME
http://opendatacommunities.org/doc/london-borough-council/havering,London Borough of Havering,12/04/2019,2646.86,APR2019L976,Genesis Residential Homes Ltd - Dothan House_a,Adults,Adult Services,Adult Community Team,Support with Memory & Cognition,RESIDENTIAL PLACEMENTS - PRIVATE CONTRACTORS PAYMENT
http://opendatacommunities.org/doc/london-borough-council/havering,London Borough of Havering,12/04/2019,-1183.71,APR2019L977,Genesis Residential Homes Ltd - Dothan House_a,Adults,Adult Services,Adult Community Team,Support with Memory & Cognition,RESIDENTIAL CARE INCOME
http://opendatacommunities.org/doc/london-borough-council/havering,London Borough of Havering,12/04/2019,4962.86,APR2019L978,Genesis Residential Homes Ltd - Dothan House_a,Adults,Adult Services,Adult Community Team,Support with Memory & Cognition,RESIDENTIAL PLACEMENTS - PRIVATE CONTRACTORS PAYMENT
http://opendatacommunities.org/doc/london-borough-council/havering,London Borough of Havering,12/04/2019,4400.00,APR2019L979,**Redacted Personal Data**,Adults,Adult Services,Learning Disabilities,Learning Disability Support,RESIDENTIAL PLACEMENTS - PRIVATE CONTRACTORS PAYMENT
http://opendatacommunities.org/doc/london-borough-council/havering,London Borough of Havering,12/04/2019,1885.71,APR2019L980,**Redacted Personal Data**,Adults,Adult Services,Learning Disabilities,Learning Disability Support,RESIDENTIAL PLACEMENTS - PRIVATE CONTRACTORS PAYMENT
http://opendatacommunities.org/doc/london-borough-council/havering,London Borough of Havering,12/04/2019,-1297.23,APR2019L981,**Redacted Personal Data**,Adults,Adult Services,Learning Disabilities,Learning Disability Support,RESIDENTIAL PLACEMENTS - PRIVATE CONTRACTORS PAYMENT
http://opendatacommunities.org/doc/london-borough-council/havering,London Borough of Havering,12/04/2019,579.00,APR2019L982,Ashbourne Homes Ltd - Ladyville Lodge_a,Adults,Adult Services,Adult Community Team,Support with Memory & Cognition,RESIDENTIAL PLACEMENTS - PRIVATE CONTRACTORS PAYMENT
http://opendatacommunities.org/doc/london-borough-council/havering,London Borough of Havering,12/04/2019,528.00,APR2019L983,Ashbourne Homes Ltd - Ladyville Lodge_a,Adults,Adult Services,Adult Community Team,Physical Support,NURSING HOMES - PRIVATE CONTRACTORS PAYMENT
http://opendatacommunities.org/doc/london-borough-council/havering,London Borough of Havering,12/04/2019,579.00,APR2019L984,Ashbourne Homes Ltd - Ladyville Lodge_a,Adults,Adult Services,Adult Community Team,Support with Memory & Cognition,RESIDENTIAL PLACEMENTS - PRIVATE CONTRACTORS PAYMENT
http://opendatacommunities.org/doc/london-borough-council/havering,London Borough of Havering,12/04/2019,579.00,APR2019L985,Ashbourne Homes Ltd - Ladyville Lodge_a,Adults,Adult Services,Adult Community Team,Support with Memory & Cognition,RESIDENTIAL PLACEMENTS - PRIVATE CONTRACTORS PAYMENT
http://opendatacommunities.org/doc/london-borough-council/havering,London Borough of Havering,12/04/2019,2316.00,APR2019L986,Ashbourne Homes Ltd - Ladyville Lodge_a,Adults,Adult Services,Adult Community Team,Support with Memory & Cognition,RESIDENTIAL PLACEMENTS - PRIVATE CONTRACTORS PAYMENT
http://opendatacommunities.org/doc/london-borough-council/havering,London Borough of Havering,12/04/2019,2064.00,APR2019L987,Ashbourne Homes Ltd - Ladyville Lodge_a,Adults,Adult Services,Adult Community Team,Physical Support,RESIDENTIAL PLACEMENTS - PRIVATE CONTRACTORS PAYMENT
http://opendatacommunities.org/doc/london-borough-council/havering,London Borough of Havering,12/04/2019,2112.00,APR2019L988,Ashbourne Homes Ltd - Ladyville Lodge_a,Adults,Adult Services,Adult Community Team,Physical Support,NURSING HOMES - PRIVATE CONTRACTORS PAYMENT
http://opendatacommunities.org/doc/london-borough-council/havering,London Borough of Havering,12/04/2019,2112.00,APR2019L989,Ashbourne Homes Ltd - Ladyville Lodge_a,Adults,Adult Services,Adult Community Team,Physical Support,NURSING HOMES - PRIVATE CONTRACTORS PAYMENT
http://opendatacommunities.org/doc/london-borough-council/havering,London Borough of Havering,12/04/2019,-430.77,APR2019L990,Ashbourne Homes Ltd - Ladyville Lodge_a,Adults,Adult Services,Adult Community Team,Physical Support,NURSING CARE INCOME
http://opendatacommunities.org/doc/london-borough-council/havering,London Borough of Havering,12/04/2019,1584.00,APR2019L991,Ashbourne Homes Ltd - Ladyville Lodge_a,Adults,Adult Services,Adult Community Team,Physical Support,NURSING HOMES - PRIVATE CONTRACTORS PAYMENT
http://opendatacommunities.org/doc/london-borough-council/havering,London Borough of Havering,12/04/2019,-481.92,APR2019L992,Ashbourne Homes Ltd - Ladyville Lodge_a,Adults,Adult Services,Adult Community Team,Support with Memory & Cognition,RESIDENTIAL CARE INCOME
http://opendatacommunities.org/doc/london-borough-council/havering,London Borough of Havering,12/04/2019,1737.00,APR2019L993,Ashbourne Homes Ltd - Ladyville Lodge_a,Adults,Adult Services,Adult Community Team,Support with Memory & Cognition,RESIDENTIAL PLACEMENTS - PRIVATE CONTRACTORS PAYMENT
http://opendatacommunities.org/doc/london-borough-council/havering,London Borough of Havering,12/04/2019,-1043.31,APR2019L994,Ashbourne Homes Ltd - Ladyville Lodge_a,Adults,Adult Services,Adult Community Team,Support with Memory & Cognition,RESIDENTIAL CARE INCOME
http://opendatacommunities.org/doc/london-borough-council/havering,London Borough of Havering,12/04/2019,1737.00,APR2019L995,Ashbourne Homes Ltd - Ladyville Lodge_a,Adults,Adult Services,Adult Community Team,Support with Memory & Cognition,RESIDENTIAL PLACEMENTS - PRIVATE CONTRACTORS PAYMENT
http://opendatacommunities.org/doc/london-borough-council/havering,London Borough of Havering,12/04/2019,1077.05,APR2019L996,**Redacted Personal Data**,Adults,Adult Services,Learning Disabilities,Learning Disability Support,RESIDENTIAL PLACEMENTS - PRIVATE CONTRACTORS PAYMENT
http://opendatacommunities.org/doc/london-borough-council/havering,London Borough of Havering,12/04/2019,3231.15,APR2019L997,**Redacted Personal Data**,Adults,Adult Services,Learning Disabilities,Learning Disability Support,RESIDENTIAL PLACEMENTS - PRIVATE CONTRACTORS PAYMENT
http://opendatacommunities.org/doc/london-borough-council/havering,London Borough of Havering,12/04/2019,497.00,APR2019L998,Crowstone Care Home Ltd - The Grange_a,Adults,Adult Services,Mental Health - Non Section 75,Mental Health Support,RESIDENTIAL PLACEMENTS - PRIVATE CONTRACTORS PAYMENT
http://opendatacommunities.org/doc/london-borough-council/havering,London Borough of Havering,12/04/2019,-427.05,APR2019L999,Crowstone Care Home Ltd - The Grange_a,Adults,Adult Services,Mental Health - Non Section 75,Mental Health Support,RESIDENTIAL CARE INCOME
http://opendatacommunities.org/doc/london-borough-council/havering,London Borough of Havering,12/04/2019,1491.00,APR2019L1000,Crowstone Care Home Ltd - The Grange_a,Adults,Adult Services,Mental Health - Non Section 75,Mental Health Support,RESIDENTIAL PLACEMENTS - PRIVATE CONTRACTORS PAYMENT
http://opendatacommunities.org/doc/london-borough-council/havering,London Borough of Havering,12/04/2019,579.00,APR2019L1006,Emerson Court_a,Adults,Adult Services,Adult Community Team,Support with Memory & Cognition,RESIDENTIAL PLACEMENTS - PRIVATE CONTRACTORS PAYMENT
http://opendatacommunities.org/doc/london-borough-council/havering,London Borough of Havering,12/04/2019,-409.05,APR2019L1007,Emerson Court_a,Adults,Adult Services,Adult Community Team,Support with Memory & Cognition,RESIDENTIAL CARE INCOME
http://opendatacommunities.org/doc/london-borough-council/havering,London Borough of Havering,12/04/2019,1737.00,APR2019L1008,Emerson Court_a,Adults,Adult Services,Adult Community Team,Support with Memory & Cognition,RESIDENTIAL PLACEMENTS - PRIVATE CONTRACTORS PAYMENT
http://opendatacommunities.org/doc/london-borough-council/havering,London Borough of Havering,12/04/2019,1304.33,APR2019L1009,Voyage Ltd - 89 Mawney Road_a,Adults,Adult Services,Learning Disabilities,Learning Disability Support,RESIDENTIAL PLACEMENTS - PRIVATE CONTRACTORS PAYMENT
http://opendatacommunities.org/doc/london-borough-council/havering,London Borough of Havering,12/04/2019,1304.33,APR2019L1010,Voyage Ltd - 89 Mawney Road_a,Adults,Adult Services,Learning Disabilities,Learning Disability Support,RESIDENTIAL PLACEMENTS - PRIVATE CONTRACTORS PAYMENT
http://opendatacommunities.org/doc/london-borough-council/havering,London Borough of Havering,12/04/2019,1304.33,APR2019L1011,Voyage Ltd - 89 Mawney Road_a,Adults,Adult Services,Learning Disabilities,Learning Disability Support,RESIDENTIAL PLACEMENTS - PRIVATE CONTRACTORS PAYMENT
http://opendatacommunities.org/doc/london-borough-council/havering,London Borough of Havering,12/04/2019,1304.33,APR2019L1012,Voyage Ltd - 89 Mawney Road_a,Adults,Adult Services,Learning Disabilities,Learning Disability Support,RESIDENTIAL PLACEMENTS - PRIVATE CONTRACTORS PAYMENT
http://opendatacommunities.org/doc/london-borough-council/havering,London Borough of Havering,12/04/2019,5454.04,APR2019L1013,Voyage Ltd - 89 Mawney Road_a,Adults,Adult Services,Learning Disabilities,Learning Disability Support,RESIDENTIAL PLACEMENTS - PRIVATE CONTRACTORS PAYMENT
http://opendatacommunities.org/doc/london-borough-council/havering,London Borough of Havering,12/04/2019,5217.32,APR2019L1014,Voyage Ltd - 89 Mawney Road_a,Adults,Adult Services,Learning Disabilities,Learning Disability Support,RESIDENTIAL PLACEMENTS - PRIVATE CONTRACTORS PAYMENT
http://opendatacommunities.org/doc/london-borough-council/havering,London Borough of Havering,12/04/2019,3912.99,APR2019L1015,Voyage Ltd - 89 Mawney Road_a,Adults,Adult Services,Learning Disabilities,Learning Disability Support,RESIDENTIAL PLACEMENTS - PRIVATE CONTRACTORS PAYMENT
http://opendatacommunities.org/doc/london-borough-council/havering,London Borough of Havering,12/04/2019,-427.05,APR2019L1016,Voyage Ltd - 89 Mawney Road_a,Adults,Adult Services,Learning Disabilities,Learning Disability Support,RESIDENTIAL CARE INCOME
http://opendatacommunities.org/doc/london-borough-council/havering,London Borough of Havering,12/04/2019,3912.99,APR2019L1017,Voyage Ltd - 89 Mawney Road_a,Adults,Adult Services,Learning Disabilities,Learning Disability Support,RESIDENTIAL PLACEMENTS - PRIVATE CONTRACTORS PAYMENT
http://opendatacommunities.org/doc/london-borough-council/havering,London Borough of Havering,12/04/2019,-427.05,APR2019L1018,Voyage Ltd - 89 Mawney Road_a,Adults,Adult Services,Learning Disabilities,Learning Disability Support,RESIDENTIAL CARE INCOME
http://opendatacommunities.org/doc/london-borough-council/havering,London Borough of Havering,12/04/2019,3912.99,APR2019L1019,Voyage Ltd - 89 Mawney Road_a,Adults,Adult Services,Learning Disabilities,Learning Disability Support,RESIDENTIAL PLACEMENTS - PRIVATE CONTRACTORS PAYMENT
http://opendatacommunities.org/doc/london-borough-council/havering,London Borough of Havering,12/04/2019,3912.99,APR2019L1020,Voyage Ltd - 89 Mawney Road_a,Adults,Adult Services,Learning Disabilities,Learning Disability Support,RESIDENTIAL PLACEMENTS - PRIVATE CONTRACTORS PAYMENT
http://opendatacommunities.org/doc/london-borough-council/havering,London Borough of Havering,05/04/2019,552.17,APR2019L1021,Homestead Care Service_a,Adults,Adult Services,Adult Community Team,Physical Support,HOME CARE - PRIVATE CONTRACTORS PAYMENT
http://opendatacommunities.org/doc/london-borough-council/havering,London Borough of Havering,05/04/2019,464.45,APR2019L1022,Homestead Care Service_a,Adults,Adult Services,Adult Community Team,Physical Support,HOME CARE - PRIVATE CONTRACTORS PAYMENT
http://opendatacommunities.org/doc/london-borough-council/havering,London Borough of Havering,05/04/2019,408.62,APR2019L1023,Homestead Care Service_a,Adults,Adult Services,Adult Community Team,Physical Support,HOME CARE - PRIVATE CONTRACTORS PAYMENT
http://opendatacommunities.org/doc/london-borough-council/havering,London Borough of Havering,05/04/2019,418.21,APR2019L1024,Homestead Care Service_a,Adults,Adult Services,Adult Community Team,Physical Support,HOME CARE - PRIVATE CONTRACTORS PAYMENT
http://opendatacommunities.org/doc/london-borough-council/havering,London Borough of Havering,05/04/2019,494.06,APR2019L1025,Homestead Care Service_a,Adults,Adult Services,Adult Community Team,Physical Support,HOME CARE - PRIVATE CONTRACTORS PAYMENT
http://opendatacommunities.org/doc/london-borough-council/havering,London Borough of Havering,05/04/2019,414.82,APR2019L1026,Homestead Care Service_a,Adults,Adult Services,Adult Community Team,Physical Support,HOME CARE - PRIVATE CONTRACTORS PAYMENT
http://opendatacommunities.org/doc/london-borough-council/havering,London Borough of Havering,05/04/2019,412.67,APR2019L1027,Homestead Care Service_a,Adults,Adult Services,Adult Community Team,Physical Support,HOME CARE - PRIVATE CONTRACTORS PAYMENT
http://opendatacommunities.org/doc/london-borough-council/havering,London Borough of Havering,05/04/2019,425.54,APR2019L1028,Homestead Care Service_a,Adults,Adult Services,Adult Community Team,Physical Support,HOME CARE - PRIVATE CONTRACTORS PAYMENT
http://opendatacommunities.org/doc/london-borough-council/havering,London Borough of Havering,05/04/2019,515.21,APR2019L1029,Homestead Care Service_a,Adults,Adult Services,Adult Community Team,Physical Support,HOME CARE - PRIVATE CONTRACTORS PAYMENT
http://opendatacommunities.org/doc/london-borough-council/havering,London Borough of Havering,05/04/2019,468.40,APR2019L1030,Homestead Care Service_a,Adults,Adult Services,Adult Community Team,Physical Support,HOME CARE - PRIVATE CONTRACTORS PAYMENT
http://opendatacommunities.org/doc/london-borough-council/havering,London Borough of Havering,05/04/2019,459.94,APR2019L1031,Homestead Care Service_a,Adults,Adult Services,Adult Community Team,Physical Support,HOME CARE - PRIVATE CONTRACTORS PAYMENT
http://opendatacommunities.org/doc/london-borough-council/havering,London Borough of Havering,05/04/2019,401.29,APR2019L1032,Homestead Care Service_a,Adults,Adult Services,Adult Community Team,Physical Support,HOME CARE - PRIVATE CONTRACTORS PAYMENT
http://opendatacommunities.org/doc/london-borough-council/havering,London Borough of Havering,05/04/2019,501.40,APR2019L1033,Homestead Care Service_a,Adults,Adult Services,Adult Community Team,Physical Support,HOME CARE - PRIVATE CONTRACTORS PAYMENT
http://opendatacommunities.org/doc/london-borough-council/havering,London Borough of Havering,05/04/2019,517.47,APR2019L1034,Homestead Care Service_a,Adults,Adult Services,Adult Community Team,Physical Support,HOME CARE - PRIVATE CONTRACTORS PAYMENT
http://opendatacommunities.org/doc/london-borough-council/havering,London Borough of Havering,05/04/2019,504.78,APR2019L1035,Homestead Care Service_a,Adults,Adult Services,Adult Community Team,Physical Support,HOME CARE - PRIVATE CONTRACTORS PAYMENT
http://opendatacommunities.org/doc/london-borough-council/havering,London Borough of Havering,05/04/2019,591.45,APR2019L1036,Homestead Care Service_a,Adults,Adult Services,Adult Community Team,Physical Support,HOME CARE - PRIVATE CONTRACTORS PAYMENT
http://opendatacommunities.org/doc/london-borough-council/havering,London Borough of Havering,05/04/2019,650.57,APR2019L1037,Homestead Care Service_a,Adults,Adult Services,Adult Community Team,Physical Support,HOME CARE - PRIVATE CONTRACTORS PAYMENT
http://opendatacommunities.org/doc/london-borough-council/havering,London Borough of Havering,05/04/2019,421.04,APR2019L1038,Homestead Care Service_a,Adults,Adult Services,Adult Community Team,Physical Support,HOME CARE - PRIVATE CONTRACTORS PAYMENT
http://opendatacommunities.org/doc/london-borough-council/havering,London Borough of Havering,05/04/2019,421.31,APR2019L1039,Homestead Care Service_a,Adults,Adult Services,Adult Community Team,Physical Support,HOME CARE - PRIVATE CONTRACTORS PAYMENT
http://opendatacommunities.org/doc/london-borough-council/havering,London Borough of Havering,05/04/2019,452.33,APR2019L1040,Homestead Care Service_a,Adults,Adult Services,Adult Community Team,Physical Support,HOME CARE - PRIVATE CONTRACTORS PAYMENT
http://opendatacommunities.org/doc/london-borough-council/havering,London Borough of Havering,05/04/2019,410.59,APR2019L1041,Homestead Care Service_a,Adults,Adult Services,Adult Community Team,Physical Support,HOME CARE - PRIVATE CONTRACTORS PAYMENT
http://opendatacommunities.org/doc/london-borough-council/havering,London Borough of Havering,05/04/2019,427.51,APR2019L1042,Homestead Care Service_a,Adults,Adult Services,Adult Community Team,Physical Support,HOME CARE - PRIVATE CONTRACTORS PAYMENT
http://opendatacommunities.org/doc/london-borough-council/havering,London Borough of Havering,05/04/2019,569.33,APR2019L1043,Homestead Care Service_a,Adults,Adult Services,Adult Community Team,Physical Support,HOME CARE - PRIVATE CONTRACTORS PAYMENT
http://opendatacommunities.org/doc/london-borough-council/havering,London Borough of Havering,05/04/2019,537.80,APR2019L1044,Homestead Care Service_a,Adults,Adult Services,Adult Community Team,Physical Support,HOME CARE - PRIVATE CONTRACTORS PAYMENT
http://opendatacommunities.org/doc/london-borough-council/havering,London Borough of Havering,05/04/2019,744.22,APR2019L1045,Homestead Care Service_a,Adults,Adult Services,Adult Community Team,Physical Support,HOME CARE - PRIVATE CONTRACTORS PAYMENT
http://opendatacommunities.org/doc/london-borough-council/havering,London Borough of Havering,05/04/2019,623.21,APR2019L1046,Homestead Care Service_a,Adults,Adult Services,Adult Community Team,Physical Support,HOME CARE - PRIVATE CONTRACTORS PAYMENT
http://opendatacommunities.org/doc/london-borough-council/havering,London Borough of Havering,05/04/2019,902.92,APR2019L1047,Homestead Care Service_a,Adults,Adult Services,Adult Community Team,Physical Support,HOME CARE - PRIVATE CONTRACTORS PAYMENT
http://opendatacommunities.org/doc/london-borough-council/havering,London Borough of Havering,05/04/2019,1183.27,APR2019L1048,Homestead Care Service_a,Adults,Adult Services,Adult Community Team,Physical Support,HOME CARE - PRIVATE CONTRACTORS PAYMENT
http://opendatacommunities.org/doc/london-borough-council/havering,London Borough of Havering,05/04/2019,613.61,APR2019L1049,Homestead Care Service_a,Adults,Adult Services,Adult Community Team,Physical Support,HOME CARE - PRIVATE CONTRACTORS PAYMENT
http://opendatacommunities.org/doc/london-borough-council/havering,London Borough of Havering,05/04/2019,1245.31,APR2019L1050,Homestead Care Service_a,Adults,Adult Services,Adult Community Team,Physical Support,HOME CARE - PRIVATE CONTRACTORS PAYMENT
http://opendatacommunities.org/doc/london-borough-council/havering,London Borough of Havering,05/04/2019,422.76,APR2019L1051,Homestead Care Service_a,Adults,Adult Services,Adult Community Team,Physical Support,HOME CARE - PRIVATE CONTRACTORS PAYMENT
http://opendatacommunities.org/doc/london-borough-council/havering,London Borough of Havering,05/04/2019,493.04,APR2019L1052,Homestead Care Service_a,Adults,Adult Services,Adult Community Team,Physical Support,HOME CARE - PRIVATE CONTRACTORS PAYMENT
http://opendatacommunities.org/doc/london-borough-council/havering,London Borough of Havering,05/04/2019,1224.75,APR2019L1053,Homestead Care Service_a,Adults,Adult Services,Adult Community Team,Physical Support,HOME CARE - PRIVATE CONTRACTORS PAYMENT
http://opendatacommunities.org/doc/london-borough-council/havering,London Borough of Havering,05/04/2019,1360.72,APR2019L1054,Homestead Care Service_a,Adults,Adult Services,Adult Community Team,Physical Support,HOME CARE - PRIVATE CONTRACTORS PAYMENT
http://opendatacommunities.org/doc/london-borough-council/havering,London Borough of Havering,05/04/2019,1275.36,APR2019L1055,Homestead Care Service_a,Adults,Adult Services,Adult Community Team,Physical Support,HOME CARE - PRIVATE CONTRACTORS PAYMENT
http://opendatacommunities.org/doc/london-borough-council/havering,London Borough of Havering,05/04/2019,625.45,APR2019L1056,Homestead Care Service_a,Adults,Adult Services,Adult Community Team,Physical Support,HOME CARE - PRIVATE CONTRACTORS PAYMENT
http://opendatacommunities.org/doc/london-borough-council/havering,London Borough of Havering,05/04/2019,1255.97,APR2019L1057,Homestead Care Service_a,Adults,Adult Services,Adult Community Team,Physical Support,HOME CARE - PRIVATE CONTRACTORS PAYMENT
http://opendatacommunities.org/doc/london-borough-council/havering,London Borough of Havering,05/04/2019,483.34,APR2019L1058,Homestead Care Service_a,Adults,Adult Services,Adult Community Team,Physical Support,HOME CARE - PRIVATE CONTRACTORS PAYMENT
http://opendatacommunities.org/doc/london-borough-council/havering,London Borough of Havering,05/04/2019,1411.15,APR2019L1059,Homestead Care Service_a,Adults,Adult Services,Adult Community Team,Physical Support,HOME CARE - PRIVATE CONTRACTORS PAYMENT
http://opendatacommunities.org/doc/london-borough-council/havering,London Borough of Havering,05/04/2019,498.32,APR2019L1060,Homestead Care Service_a,Adults,Adult Services,Adult Community Team,Physical Support,HOME CARE - PRIVATE CONTRACTORS PAYMENT
http://opendatacommunities.org/doc/london-borough-council/havering,London Borough of Havering,05/04/2019,997.47,APR2019L1061,Homestead Care Service_a,Adults,Adult Services,Adult Community Team,Physical Support,HOME CARE - PRIVATE CONTRACTORS PAYMENT
http://opendatacommunities.org/doc/london-borough-council/havering,London Borough of Havering,05/04/2019,678.23,APR2019L1062,Homestead Care Service_a,Adults,Adult Services,Adult Community Team,Physical Support,HOME CARE - PRIVATE CONTRACTORS PAYMENT
http://opendatacommunities.org/doc/london-borough-council/havering,London Borough of Havering,05/04/2019,1296.30,APR2019L1063,Homestead Care Service_a,Adults,Adult Services,Learning Disabilities,Learning Disability Support,HOME CARE - PRIVATE CONTRACTORS PAYMENT
http://opendatacommunities.org/doc/london-borough-council/havering,London Borough of Havering,05/04/2019,1524.49,APR2019L1064,Homestead Care Service_a,Adults,Adult Services,Adult Community Team,Physical Support,HOME CARE - PRIVATE CONTRACTORS PAYMENT
http://opendatacommunities.org/doc/london-borough-council/havering,London Borough of Havering,05/04/2019,440.50,APR2019L1065,Homestead Care Service_a,Adults,Adult Services,Adult Community Team,Physical Support,HOME CARE - PRIVATE CONTRACTORS PAYMENT
http://opendatacommunities.org/doc/london-borough-council/havering,London Borough of Havering,05/04/2019,444.43,APR2019L1066,Homestead Care Service_a,Adults,Adult Services,Learning Disabilities,Learning Disability Support,HOME CARE - PRIVATE CONTRACTORS PAYMENT
http://opendatacommunities.org/doc/london-borough-council/havering,London Borough of Havering,05/04/2019,628.41,APR2019L1067,Homestead Care Service_a,Adults,Adult Services,Adult Community Team,Physical Support,HOME CARE - PRIVATE CONTRACTORS PAYMENT
http://opendatacommunities.org/doc/london-borough-council/havering,London Borough of Havering,05/04/2019,1060.22,APR2019L1068,Homestead Care Service_a,Adults,Adult Services,Adult Community Team,Physical Support,HOME CARE - PRIVATE CONTRACTORS PAYMENT
http://opendatacommunities.org/doc/london-borough-council/havering,London Borough of Havering,05/04/2019,589.14,APR2019L1069,Homestead Care Service_a,Adults,Adult Services,Adult Community Team,Physical Support,HOME CARE - PRIVATE CONTRACTORS PAYMENT
http://opendatacommunities.org/doc/london-borough-council/havering,London Borough of Havering,05/04/2019,1398.04,APR2019L1070,Homestead Care Service_a,Adults,Adult Services,Adult Community Team,Physical Support,HOME CARE - PRIVATE CONTRACTORS PAYMENT
http://opendatacommunities.org/doc/london-borough-council/havering,London Borough of Havering,05/04/2019,1131.56,APR2019L1071,Homestead Care Service_a,Adults,Adult Services,Adult Community Team,Physical Support,HOME CARE - PRIVATE CONTRACTORS PAYMENT
http://opendatacommunities.org/doc/london-borough-council/havering,London Borough of Havering,05/04/2019,878.49,APR2019L1072,Homestead Care Service_a,Adults,Adult Services,Adult Community Team,Physical Support,HOME CARE - PRIVATE CONTRACTORS PAYMENT
http://opendatacommunities.org/doc/london-borough-council/havering,London Borough of Havering,05/04/2019,469.27,APR2019L1073,Homestead Care Service_a,Adults,Adult Services,Adult Community Team,Physical Support,HOME CARE - PRIVATE CONTRACTORS PAYMENT
http://opendatacommunities.org/doc/london-borough-council/havering,London Borough of Havering,05/04/2019,518.62,APR2019L1074,Homestead Care Service_a,Adults,Adult Services,Adult Community Team,Physical Support,HOME CARE - PRIVATE CONTRACTORS PAYMENT
http://opendatacommunities.org/doc/london-borough-council/havering,London Borough of Havering,05/04/2019,1170.83,APR2019L1075,Homestead Care Service_a,Adults,Adult Services,Adult Community Team,Physical Support,HOME CARE - PRIVATE CONTRACTORS PAYMENT
http://opendatacommunities.org/doc/london-borough-council/havering,London Borough of Havering,05/04/2019,1091.91,APR2019L1076,Homestead Care Service_a,Adults,Adult Services,Adult Community Team,Physical Support,HOME CARE - PRIVATE CONTRACTORS PAYMENT
http://opendatacommunities.org/doc/london-borough-council/havering,London Borough of Havering,05/04/2019,1545.90,APR2019L1077,Homestead Care Service_a,Adults,Adult Services,Adult Community Team,Physical Support,HOME CARE - PRIVATE CONTRACTORS PAYMENT
http://opendatacommunities.org/doc/london-borough-council/havering,London Borough of Havering,05/04/2019,428.90,APR2019L1078,Homestead Care Service_a,Adults,Adult Services,Adult Community Team,Physical Support,HOME CARE - PRIVATE CONTRACTORS PAYMENT
http://opendatacommunities.org/doc/london-borough-council/havering,London Borough of Havering,05/04/2019,660.46,APR2019L1079,Homestead Care Service_a,Adults,Adult Services,Adult Community Team,Physical Support,HOME CARE - PRIVATE CONTRACTORS PAYMENT
http://opendatacommunities.org/doc/london-borough-council/havering,London Borough of Havering,05/04/2019,405.81,APR2019L1080,Homestead Care Service_a,Adults,Adult Services,Adult Community Team,Physical Support,HOME CARE - PRIVATE CONTRACTORS PAYMENT
http://opendatacommunities.org/doc/london-borough-council/havering,London Borough of Havering,05/04/2019,677.09,APR2019L1081,Homestead Care Service_a,Adults,Adult Services,Adult Community Team,Physical Support,HOME CARE - PRIVATE CONTRACTORS PAYMENT
http://opendatacommunities.org/doc/london-borough-council/havering,London Borough of Havering,05/04/2019,401.27,APR2019L1082,Homestead Care Service_a,Adults,Adult Services,Adult Community Team,Physical Support,HOME CARE - PRIVATE CONTRACTORS PAYMENT
http://opendatacommunities.org/doc/london-borough-council/havering,London Borough of Havering,05/04/2019,579.87,APR2019L1083,Homestead Care Service_a,Adults,Adult Services,Adult Community Team,Physical Support,HOME CARE - PRIVATE CONTRACTORS PAYMENT
http://opendatacommunities.org/doc/london-borough-council/havering,London Borough of Havering,05/04/2019,1176.32,APR2019L1084,Homestead Care Service_a,Adults,Adult Services,Adult Community Team,Physical Support,HOME CARE - PRIVATE CONTRACTORS PAYMENT
http://opendatacommunities.org/doc/london-borough-council/havering,London Borough of Havering,05/04/2019,576.77,APR2019L1085,Homestead Care Service_a,Adults,Adult Services,Adult Community Team,Physical Support,HOME CARE - PRIVATE CONTRACTORS PAYMENT
http://opendatacommunities.org/doc/london-borough-council/havering,London Borough of Havering,05/04/2019,576.84,APR2019L1086,Homestead Care Service_a,Adults,Adult Services,Adult Community Team,Physical Support,HOME CARE - PRIVATE CONTRACTORS PAYMENT
http://opendatacommunities.org/doc/london-borough-council/havering,London Borough of Havering,05/04/2019,777.20,APR2019L1087,Homestead Care Service_a,Adults,Adult Services,Adult Community Team,Physical Support,HOME CARE - PRIVATE CONTRACTORS PAYMENT
http://opendatacommunities.org/doc/london-borough-council/havering,London Borough of Havering,05/04/2019,620.37,APR2019L1088,Homestead Care Service_a,Adults,Adult Services,Adult Community Team,Physical Support,HOME CARE - PRIVATE CONTRACTORS PAYMENT
http://opendatacommunities.org/doc/london-borough-council/havering,London Borough of Havering,05/04/2019,429.52,APR2019L1089,Homestead Care Service_a,Adults,Adult Services,Adult Community Team,Physical Support,HOME CARE - PRIVATE CONTRACTORS PAYMENT
http://opendatacommunities.org/doc/london-borough-council/havering,London Borough of Havering,05/04/2019,703.29,APR2019L1090,Homestead Care Service_a,Adults,Adult Services,Adult Community Team,Physical Support,HOME CARE - PRIVATE CONTRACTORS PAYMENT
http://opendatacommunities.org/doc/london-borough-council/havering,London Borough of Havering,05/04/2019,1139.64,APR2019L1091,Homestead Care Service_a,Adults,Adult Services,Adult Community Team,Physical Support,HOME CARE - PRIVATE CONTRACTORS PAYMENT
http://opendatacommunities.org/doc/london-borough-council/havering,London Borough of Havering,05/04/2019,1434.58,APR2019L1092,Homestead Care Service_a,Adults,Adult Services,Adult Community Team,Physical Support,HOME CARE - PRIVATE CONTRACTORS PAYMENT
http://opendatacommunities.org/doc/london-borough-council/havering,London Borough of Havering,05/04/2019,448.11,APR2019L1093,Homestead Care Service_a,Adults,Adult Services,Adult Community Team,Physical Support,HOME CARE - PRIVATE CONTRACTORS PAYMENT
http://opendatacommunities.org/doc/london-borough-council/havering,London Borough of Havering,05/04/2019,504.25,APR2019L1094,Homestead Care Service_a,Adults,Adult Services,Adult Community Team,Physical Support,HOME CARE - PRIVATE CONTRACTORS PAYMENT
http://opendatacommunities.org/doc/london-borough-council/havering,London Borough of Havering,05/04/2019,1390.29,APR2019L1095,Homestead Care Service_a,Adults,Adult Services,Adult Community Team,Physical Support,HOME CARE - PRIVATE CONTRACTORS PAYMENT
http://opendatacommunities.org/doc/london-borough-council/havering,London Borough of Havering,05/04/2019,1381.61,APR2019L1096,Homestead Care Service_a,Adults,Adult Services,Adult Community Team,Physical Support,HOME CARE - PRIVATE CONTRACTORS PAYMENT
http://opendatacommunities.org/doc/london-borough-council/havering,London Borough of Havering,05/04/2019,1153.72,APR2019L1097,Homestead Care Service_a,Adults,Adult Services,Adult Community Team,Physical Support,HOME CARE - PRIVATE CONTRACTORS PAYMENT
http://opendatacommunities.org/doc/london-borough-council/havering,London Borough of Havering,05/04/2019,1284.58,APR2019L1098,Homestead Care Service_a,Adults,Adult Services,Adult Community Team,Physical Support,HOME CARE - PRIVATE CONTRACTORS PAYMENT
http://opendatacommunities.org/doc/london-borough-council/havering,London Borough of Havering,05/04/2019,741.12,APR2019L1099,Homestead Care Service_a,Adults,Adult Services,Adult Community Team,Physical Support,HOME CARE - PRIVATE CONTRACTORS PAYMENT
http://opendatacommunities.org/doc/london-borough-council/havering,London Borough of Havering,05/04/2019,633.64,APR2019L1100,Homestead Care Service_a,Adults,Adult Services,Adult Community Team,Physical Support,HOME CARE - PRIVATE CONTRACTORS PAYMENT
http://opendatacommunities.org/doc/london-borough-council/havering,London Borough of Havering,05/04/2019,485.90,APR2019L1101,Homestead Care Service_a,Adults,Adult Services,Adult Community Team,Physical Support,HOME CARE - PRIVATE CONTRACTORS PAYMENT
http://opendatacommunities.org/doc/london-borough-council/havering,London Borough of Havering,05/04/2019,1059.29,APR2019L1102,Homestead Care Service_a,Adults,Adult Services,Adult Community Team,Physical Support,HOME CARE - PRIVATE CONTRACTORS PAYMENT
http://opendatacommunities.org/doc/london-borough-council/havering,London Borough of Havering,05/04/2019,667.76,APR2019L1103,Homestead Care Service_a,Adults,Adult Services,Adult Community Team,Physical Support,HOME CARE - PRIVATE CONTRACTORS PAYMENT
http://opendatacommunities.org/doc/london-borough-council/havering,London Borough of Havering,05/04/2019,1078.58,APR2019L1104,Homestead Care Service_a,Adults,Adult Services,Adult Community Team,Physical Support,HOME CARE - PRIVATE CONTRACTORS PAYMENT
http://opendatacommunities.org/doc/london-borough-council/havering,London Borough of Havering,05/04/2019,456.05,APR2019L1105,Homestead Care Service_a,Adults,Adult Services,Adult Community Team,Physical Support,HOME CARE - PRIVATE CONTRACTORS PAYMENT
http://opendatacommunities.org/doc/london-borough-council/havering,London Borough of Havering,05/04/2019,577.80,APR2019L1106,Homestead Care Service_a,Adults,Adult Services,Adult Community Team,Physical Support,HOME CARE - PRIVATE CONTRACTORS PAYMENT
http://opendatacommunities.org/doc/london-borough-council/havering,London Borough of Havering,05/04/2019,1302.99,APR2019L1107,Homestead Care Service_a,Adults,Adult Services,Adult Community Team,Physical Support,HOME CARE - PRIVATE CONTRACTORS PAYMENT
http://opendatacommunities.org/doc/london-borough-council/havering,London Borough of Havering,05/04/2019,602.62,APR2019L1108,Homestead Care Service_a,Adults,Adult Services,Adult Community Team,Physical Support,HOME CARE - PRIVATE CONTRACTORS PAYMENT
http://opendatacommunities.org/doc/london-borough-council/havering,London Borough of Havering,05/04/2019,597.78,APR2019L1109,Homestead Care Service_a,Adults,Adult Services,Adult Community Team,Physical Support,HOME CARE - PRIVATE CONTRACTORS PAYMENT
http://opendatacommunities.org/doc/london-borough-council/havering,London Borough of Havering,05/04/2019,539.71,APR2019L1110,Homestead Care Service_a,Adults,Adult Services,Adult Community Team,Physical Support,HOME CARE - PRIVATE CONTRACTORS PAYMENT
http://opendatacommunities.org/doc/london-borough-council/havering,London Borough of Havering,05/04/2019,454.90,APR2019L1111,Homestead Care Service_a,Adults,Adult Services,Adult Community Team,Physical Support,HOME CARE - PRIVATE CONTRACTORS PAYMENT
http://opendatacommunities.org/doc/london-borough-council/havering,London Borough of Havering,05/04/2019,1213.39,APR2019L1112,Homestead Care Service_a,Adults,Adult Services,Adult Community Team,Physical Support,HOME CARE - PRIVATE CONTRACTORS PAYMENT
http://opendatacommunities.org/doc/london-borough-council/havering,London Borough of Havering,05/04/2019,618.93,APR2019L1113,Homestead Care Service_a,Adults,Adult Services,Adult Community Team,Physical Support,HOME CARE - PRIVATE CONTRACTORS PAYMENT
http://opendatacommunities.org/doc/london-borough-council/havering,London Borough of Havering,05/04/2019,486.14,APR2019L1114,Homestead Care Service_a,Adults,Adult Services,Adult Community Team,Physical Support,HOME CARE - PRIVATE CONTRACTORS PAYMENT
http://opendatacommunities.org/doc/london-borough-council/havering,London Borough of Havering,05/04/2019,642.06,APR2019L1115,Homestead Care Service_a,Adults,Adult Services,Adult Community Team,Physical Support,HOME CARE - PRIVATE CONTRACTORS PAYMENT
http://opendatacommunities.org/doc/london-borough-council/havering,London Borough of Havering,05/04/2019,512.73,APR2019L1116,Homestead Care Service_a,Adults,Adult Services,Adult Community Team,Physical Support,HOME CARE - PRIVATE CONTRACTORS PAYMENT
http://opendatacommunities.org/doc/london-borough-council/havering,London Borough of Havering,05/04/2019,598.91,APR2019L1117,Homestead Care Service_a,Adults,Adult Services,Adult Community Team,Physical Support,HOME CARE - PRIVATE CONTRACTORS PAYMENT
http://opendatacommunities.org/doc/london-borough-council/havering,London Borough of Havering,05/04/2019,597.58,APR2019L1118,Homestead Care Service_a,Adults,Adult Services,Adult Community Team,Physical Support,HOME CARE - PRIVATE CONTRACTORS PAYMENT
http://opendatacommunities.org/doc/london-borough-council/havering,London Borough of Havering,05/04/2019,489.84,APR2019L1119,Homestead Care Service_a,Adults,Adult Services,Adult Community Team,Physical Support,HOME CARE - PRIVATE CONTRACTORS PAYMENT
http://opendatacommunities.org/doc/london-borough-council/havering,London Borough of Havering,05/04/2019,1772.91,APR2019L1120,Homestead Care Service_a,Adults,Adult Services,Adult Community Team,Physical Support,HOME CARE - PRIVATE CONTRACTORS PAYMENT
http://opendatacommunities.org/doc/london-borough-council/havering,London Borough of Havering,05/04/2019,832.21,APR2019L1121,Homestead Care Service_a,Adults,Adult Services,Adult Community Team,Physical Support,HOME CARE - PRIVATE CONTRACTORS PAYMENT
http://opendatacommunities.org/doc/london-borough-council/havering,London Borough of Havering,05/04/2019,1888.06,APR2019L1122,Homestead Care Service_a,Adults,Adult Services,Adult Community Team,Physical Support,HOME CARE - PRIVATE CONTRACTORS PAYMENT
http://opendatacommunities.org/doc/london-borough-council/havering,London Borough of Havering,05/04/2019,959.23,APR2019L1123,Homestead Care Service_a,Adults,Adult Services,Adult Community Team,Physical Support,HOME CARE - PRIVATE CONTRACTORS PAYMENT
http://opendatacommunities.org/doc/london-borough-council/havering,London Borough of Havering,12/04/2019,737.50,APR2019L1124,Moorlands Rehabilitation (Staffordshire) Ltd_a,Adults,Adult Services,Mental Health - Non Section 75,Mental Health Support,NURSING HOMES - PRIVATE CONTRACTORS PAYMENT
http://opendatacommunities.org/doc/london-borough-council/havering,London Borough of Havering,12/04/2019,2212.50,APR2019L1125,Moorlands Rehabilitation (Staffordshire) Ltd_a,Adults,Adult Services,Mental Health - Non Section 75,Mental Health Support,NURSING HOMES - PRIVATE CONTRACTORS PAYMENT
http://opendatacommunities.org/doc/london-borough-council/havering,London Borough of Havering,12/04/2019,786.00,APR2019L1126,**Redacted Personal Data**,Adults,Adult Services,Adult Community Team,Support with Memory & Cognition,RESIDENTIAL PLACEMENTS - PRIVATE CONTRACTORS PAYMENT
http://opendatacommunities.org/doc/london-borough-council/havering,London Borough of Havering,12/04/2019,795.00,APR2019L1127,**Redacted Personal Data**,Adults,Adult Services,Adult Community Team,Support with Memory & Cognition,RESIDENTIAL PLACEMENTS - PRIVATE CONTRACTORS PAYMENT
http://opendatacommunities.org/doc/london-borough-council/havering,London Borough of Havering,12/04/2019,2316.00,APR2019L1128,**Redacted Personal Data**,Adults,Adult Services,Adult Community Team,Support with Memory & Cognition,RESIDENTIAL PLACEMENTS - PRIVATE CONTRACTORS PAYMENT
http://opendatacommunities.org/doc/london-borough-council/havering,London Borough of Havering,12/04/2019,-769.56,APR2019L1129,**Redacted Personal Data**,Adults,Adult Services,Adult Community Team,Support with Memory & Cognition,RESIDENTIAL CARE INCOME
http://opendatacommunities.org/doc/london-borough-council/havering,London Borough of Havering,12/04/2019,2358.00,APR2019L1130,**Redacted Personal Data**,Adults,Adult Services,Adult Community Team,Support with Memory & Cognition,RESIDENTIAL PLACEMENTS - PRIVATE CONTRACTORS PAYMENT
http://opendatacommunities.org/doc/london-borough-council/havering,London Borough of Havering,12/04/2019,-548.04,APR2019L1131,**Redacted Personal Data**,Adults,Adult Services,Adult Community Team,Support with Memory & Cognition,RESIDENTIAL CARE INCOME
http://opendatacommunities.org/doc/london-borough-council/havering,London Borough of Havering,12/04/2019,2385.00,APR2019L1132,**Redacted Personal Data**,Adults,Adult Services,Adult Community Team,Support with Memory & Cognition,RESIDENTIAL PLACEMENTS - PRIVATE CONTRACTORS PAYMENT
http://opendatacommunities.org/doc/london-borough-council/havering,London Borough of Havering,15/04/2019,1400.00,APR2019L1133,Home Support Services (Havering & Essex) Ltd_a,Adults,Adult Services,Adult Community Team,Physical Support,HOME CARE - PRIVATE CONTRACTORS PAYMENT
http://opendatacommunities.org/doc/london-borough-council/havering,London Borough of Havering,15/04/2019,1400.00,APR2019L1134,Home Support Services (Havering & Essex) Ltd_a,Adults,Adult Services,Adult Community Team,Physical Support,HOME CARE - PRIVATE CONTRACTORS PAYMENT
http://opendatacommunities.org/doc/london-borough-council/havering,London Borough of Havering,15/04/2019,1400.00,APR2019L1135,Home Support Services (Havering & Essex) Ltd_a,Adults,Adult Services,Adult Community Team,Physical Support,HOME CARE - PRIVATE CONTRACTORS PAYMENT
http://opendatacommunities.org/doc/london-borough-council/havering,London Borough of Havering,15/04/2019,1400.00,APR2019L1136,Home Support Services (Havering & Essex) Ltd_a,Adults,Adult Services,Adult Community Team,Physical Support,HOME CARE - PRIVATE CONTRACTORS PAYMENT
http://opendatacommunities.org/doc/london-borough-council/havering,London Borough of Havering,15/04/2019,684.13,APR2019L1137,Home Support Services (Havering & Essex) Ltd_a,Adults,Adult Services,Adult Community Team,Physical Support,HOME CARE - PRIVATE CONTRACTORS PAYMENT
http://opendatacommunities.org/doc/london-borough-council/havering,London Borough of Havering,15/04/2019,1004.75,APR2019L1138,Home Support Services (Havering & Essex) Ltd_a,Adults,Adult Services,Adult Community Team,Physical Support,HOME CARE - PRIVATE CONTRACTORS PAYMENT
http://opendatacommunities.org/doc/london-borough-council/havering,London Borough of Havering,15/04/2019,820.06,APR2019L1139,Home Support Services (Havering & Essex) Ltd_a,Adults,Adult Services,Adult Community Team,Physical Support,HOME CARE - PRIVATE CONTRACTORS PAYMENT
http://opendatacommunities.org/doc/london-borough-council/havering,London Borough of Havering,15/04/2019,473.76,APR2019L1140,Home Support Services (Havering & Essex) Ltd_a,Adults,Adult Services,Adult Community Team,Physical Support,HOME CARE - PRIVATE CONTRACTORS PAYMENT
http://opendatacommunities.org/doc/london-borough-council/havering,London Borough of Havering,15/04/2019,952.35,APR2019L1141,Home Support Services (Havering & Essex) Ltd_a,Adults,Adult Services,Adult Community Team,Physical Support,HOME CARE - PRIVATE CONTRACTORS PAYMENT
http://opendatacommunities.org/doc/london-borough-council/havering,London Borough of Havering,15/04/2019,714.27,APR2019L1142,Home Support Services (Havering & Essex) Ltd_a,Adults,Adult Services,Adult Community Team,Physical Support,HOME CARE - PRIVATE CONTRACTORS PAYMENT
http://opendatacommunities.org/doc/london-borough-council/havering,London Borough of Havering,15/04/2019,471.50,APR2019L1143,Home Support Services (Havering & Essex) Ltd_a,Adults,Adult Services,Adult Community Team,Physical Support,HOME CARE - PRIVATE CONTRACTORS PAYMENT
http://opendatacommunities.org/doc/london-borough-council/havering,London Borough of Havering,15/04/2019,680.74,APR2019L1144,Home Support Services (Havering & Essex) Ltd_a,Adults,Adult Services,Adult Community Team,Physical Support,HOME CARE - PRIVATE CONTRACTORS PAYMENT
http://opendatacommunities.org/doc/london-borough-council/havering,London Borough of Havering,15/04/2019,1895.04,APR2019L1145,Home Support Services (Havering & Essex) Ltd_a,Adults,Adult Services,Adult Community Team,Physical Support,HOME CARE - PRIVATE CONTRACTORS PAYMENT
http://opendatacommunities.org/doc/london-borough-council/havering,London Borough of Havering,15/04/2019,684.13,APR2019L1146,Home Support Services (Havering & Essex) Ltd_a,Adults,Adult Services,Adult Community Team,Physical Support,HOME CARE - PRIVATE CONTRACTORS PAYMENT
http://opendatacommunities.org/doc/london-borough-council/havering,London Borough of Havering,15/04/2019,1421.28,APR2019L1147,Home Support Services (Havering & Essex) Ltd_a,Adults,Adult Services,Adult Community Team,Physical Support,HOME CARE - PRIVATE CONTRACTORS PAYMENT
http://opendatacommunities.org/doc/london-borough-council/havering,London Borough of Havering,15/04/2019,1895.32,APR2019L1148,Home Support Services (Havering & Essex) Ltd_a,Adults,Adult Services,Adult Community Team,Physical Support,HOME CARE - PRIVATE CONTRACTORS PAYMENT
http://opendatacommunities.org/doc/london-borough-council/havering,London Borough of Havering,15/04/2019,1421.38,APR2019L1149,Home Support Services (Havering & Essex) Ltd_a,Adults,Adult Services,Adult Community Team,Physical Support,HOME CARE - PRIVATE CONTRACTORS PAYMENT
http://opendatacommunities.org/doc/london-borough-council/havering,London Borough of Havering,15/04/2019,476.29,APR2019L1150,Home Support Services (Havering & Essex) Ltd_a,Adults,Adult Services,Adult Community Team,Physical Support,HOME CARE - PRIVATE CONTRACTORS PAYMENT
http://opendatacommunities.org/doc/london-borough-council/havering,London Borough of Havering,15/04/2019,475.45,APR2019L1151,Home Support Services (Havering & Essex) Ltd_a,Adults,Adult Services,Adult Community Team,Physical Support,HOME CARE - PRIVATE CONTRACTORS PAYMENT
http://opendatacommunities.org/doc/london-borough-council/havering,London Borough of Havering,15/04/2019,1891.99,APR2019L1152,Home Support Services (Havering & Essex) Ltd_a,Adults,Adult Services,Adult Community Team,Physical Support,HOME CARE - PRIVATE CONTRACTORS PAYMENT
http://opendatacommunities.org/doc/london-borough-council/havering,London Borough of Havering,15/04/2019,603.48,APR2019L1153,Home Support Services (Havering & Essex) Ltd_a,Adults,Adult Services,Adult Community Team,Physical Support,HOME CARE - PRIVATE CONTRACTORS PAYMENT
http://opendatacommunities.org/doc/london-borough-council/havering,London Borough of Havering,15/04/2019,845.15,APR2019L1154,Home Support Services (Havering & Essex) Ltd_a,Adults,Adult Services,Adult Community Team,Physical Support,HOME CARE - PRIVATE CONTRACTORS PAYMENT
http://opendatacommunities.org/doc/london-borough-council/havering,London Borough of Havering,15/04/2019,556.79,APR2019L1155,Home Support Services (Havering & Essex) Ltd_a,Adults,Adult Services,Adult Community Team,Physical Support,HOME CARE - PRIVATE CONTRACTORS PAYMENT
http://opendatacommunities.org/doc/london-borough-council/havering,London Borough of Havering,15/04/2019,1844.28,APR2019L1156,Home Support Services (Havering & Essex) Ltd_a,Adults,Adult Services,Adult Community Team,Physical Support,HOME CARE - PRIVATE CONTRACTORS PAYMENT
http://opendatacommunities.org/doc/london-borough-council/havering,London Borough of Havering,15/04/2019,473.20,APR2019L1157,Home Support Services (Havering & Essex) Ltd_a,Adults,Adult Services,Adult Community Team,Physical Support,HOME CARE - PRIVATE CONTRACTORS PAYMENT
http://opendatacommunities.org/doc/london-borough-council/havering,London Borough of Havering,15/04/2019,1725.84,APR2019L1158,Home Support Services (Havering & Essex) Ltd_a,Adults,Adult Services,Adult Community Team,Physical Support,HOME CARE - PRIVATE CONTRACTORS PAYMENT
http://opendatacommunities.org/doc/london-borough-council/havering,London Borough of Havering,15/04/2019,1781.07,APR2019L1159,Home Support Services (Havering & Essex) Ltd_a,Adults,Adult Services,Adult Community Team,Physical Support,HOME CARE - PRIVATE CONTRACTORS PAYMENT
